Workbook

Sheet Briza 12
B2: Selectiontool | G2: Taal/Language/Sprache/Språk/Jazyk | H2: 0 | I2: 0 | J2: 0 | K2: Nederlands
B3: Briza 12
G4: =IF(cal!$S$7=1,"Uitvoering",IF(cal!$S$7=2,"Version",IF(cal!$S$7=3,"Ausführung",IF(cal!$S$7=4,"Version",IF(cal!$S$7=5,"Modell",IF(cal!$S$7=6,"Montaje",IF(cal!$S$7=7,"Version",IF(cal!$S$7=8,"Verze",IF(cal!$S$7=9,"ExtraTaal1",IF(cal!$S$7=10,"ExtraTaal2",IF(cal!$S$7=11,"ExtraTaal3",))))))))))) -> Uitvoering | K4: Briza 12 H41 2P casing
B6: =cal!B7 -> Temperaturen | M6: =cal!M7 -> h_atm | N6: 0
B7: =cal!B8 -> Verwarmen: | G7: =cal!G8 -> Koelen: | M7: 0 | N7: 0 | O7: =IF(UnitsNo=1,"m",IF(UnitsNo=2,"ft")) -> m
B8: =cal!B9 -> Water aanvoer | C8: =cal!C9 -> 0 | D8: =cal!D9 -> 0 | E8: 75 | F8: =cal!F9 -> °C | G8: =cal!G9 -> Water aanvoer | H8: =cal!H9 -> 0 | I8: =cal!I9 -> 0 | J8: =cal!J9 -> 0 | K8: 8 | L8: =cal!L9 -> °C | M8: =cal!M9 -> Eenheidsstelsel
B9: =cal!B10 -> Water retour | C9: =cal!C10 -> 0 | D9: =cal!D10 -> 0 | E9: 65 | F9: =cal!F10 -> °C | G9: =cal!G10 -> Water retour | H9: =cal!H10 -> 0 | I9: =cal!I10 -> 0 | J9: =cal!J10 -> 0 | K9: 14 | L9: =cal!L10 -> °C
B10: =cal!B11 -> Ruimte | C10: =cal!C11 -> 0 | D10: =cal!D11 -> 0 | E10: 20 | F10: =cal!F11 -> °C | G10: =cal!G11 -> Ruimte | H10: =cal!H11 -> 0 | I10: =cal!I11 -> 0 | J10: =cal!J11 -> 0 | K10: 25 | L10: =cal!L11 -> °C
G11: =cal!G12 -> Relatieve vochtigheid | K11: 50%
D13: =cal!D14 -> 1.0000 | E13: =cal!E14 -> 1.0000 | F13: =cal!F14 -> 1.0000 | G13: =cal!G14 -> 1.0000 | H13: =cal!H14 -> 1.0000 | I13: =cal!I14 -> 1.0000 | J13: =cal!J14 -> 1.0000 | K13: =cal!K14 -> 0.0003344444444 | L13: =cal!L14 -> 0 | M13: =cal!M14 -> 1 | N13: =cal!N14 -> 1.0000
B14: =cal!B15 -> Snelheidsniveau | C14: =cal!C15 -> Stuurspanning [V] | D14: =cal!D15 -> Warmteafgifte 75/65/20 [W] | E14: =cal!E15 -> Waterdebiet, verwarming [l/h] | F14: =cal!F15 -> Waterzijdig drukverlies [kPa] | G14: =cal!G15 -> Voelb. Koelcapaciteit 8/14/25 [W] | H14: =cal!H15 -> Tot. koelcapaciteit 8/14/25 [W] | I14: =cal!I15 -> Waterdebiet, koeling [l/h] | J14: =cal!J15 -> Waterzijdig drukverlies [kPa] | K14: =cal!K15 -> Geluidsdruk ** [dB(A)] | L14: =cal!L15 -> Geluidsvermogen * [dB(A)] | M14: =cal!M15 -> Opgenomen elektr. vermogen [W] | N14: =cal!N15 -> Luchtdebiet [m³/h] | O14: =cal!O15 -> Uitblaastemp. verwarming [°C] | P14: =cal!P15 -> Uitblaastemp. koeling [°C]
B15: =cal!B16 -> Briza 12 hoogte 41 cm breedte 14 cm lengte 75 cm (Type 1)
B16: =cal!B17 -> 20% | C16: =cal!C17 -> 2 | D16: =IF($E$8<=$E$9,cal!$Z$3,cal!D17) -> 903 | E16: =IF($E$8<=$E$9,"",cal!E17) -> 78 | F16: =IF($E$8<=$E$9,"",cal!F17) -> 0.19 | G16: =IF($K$8>=$K$9,cal!$Z$3,cal!G17) -> 160 | H16: =IF($K$8>=$K$9,"",cal!H17) -> 195 | I16: =IF($K$8>=$K$9,"",cal!I17) -> 28 | J16: =IF($K$8>=$K$9,"",cal!J17) -> 0.03 | K16: =cal!K17 -> 18.5 | L16: =cal!L17 -> 26.5 | M16: =cal!M17 -> 1.6 | N16: =cal!N17 -> 64 | O16: =IF($E$8<=$E$9,"",cal!O17) -> 49.5 | P16: =IF($K$8>=$K$9,"",cal!P17) -> 17.6
B17: =cal!B18 -> 40% | C17: =cal!C18 -> 4 | D17: =IF($E$8<=$E$9,cal!$Z$4,cal!D18) -> 1035 | E17: =IF($E$8<=$E$9,"",cal!E18) -> 89 | F17: =IF($E$8<=$E$9,"",cal!F18) -> 0.24 | G17: =IF($K$8>=$K$9,cal!$Z$5,cal!G18) -> 186 | H17: =IF($K$8>=$K$9,"",cal!H18) -> 223 | I17: =IF($K$8>=$K$9,"",cal!I18) -> 32 | J17: =IF($K$8>=$K$9,"",cal!J18) -> 0.04 | K17: =cal!K18 -> 29.4 | L17: =cal!L18 -> 37.4 | M17: =cal!M18 -> 2.6 | N17: =cal!N18 -> 101 | O17: =IF($E$8<=$E$9,"",cal!O18) -> 45.4 | P17: =IF($K$8>=$K$9,"",cal!P18) -> 19.5
B18: =cal!B19 -> 60% | C18: =cal!C19 -> 6 | D18: =IF($E$8<=$E$9,"",cal!D19) -> 1194 | E18: =IF($E$8<=$E$9,"",cal!E19) -> 103 | F18: =IF($E$8<=$E$9,"",cal!F19) -> 0.31 | G18: =IF($K$8>=$K$9,"",cal!G19) -> 219 | H18: =IF($K$8>=$K$9,"",cal!H19) -> 259 | I18: =IF($K$8>=$K$9,"",cal!I19) -> 37 | J18: =IF($K$8>=$K$9,"",cal!J19) -> 0.05 | K18: =cal!K19 -> 31.3 | L18: =cal!L19 -> 39.3 | M18: =cal!M19 -> 4.3 | N18: =cal!N19 -> 141 | O18: =IF($E$8<=$E$9,"",cal!O19) -> 45.2 | P18: =IF($K$8>=$K$9,"",cal!P19) -> 20.4
B19: =cal!B20 -> 80% | C19: =cal!C20 -> 8 | D19: =IF($E$8<=$E$9,"",cal!D20) -> 1399 | E19: =IF($E$8<=$E$9,"",cal!E20) -> 120 | F19: =IF($E$8<=$E$9,"",cal!F20) -> 0.41 | G19: =IF($K$8>=$K$9,"",cal!G20) -> 256 | H19: =IF($K$8>=$K$9,"",cal!H20) -> 298 | I19: =IF($K$8>=$K$9,"",cal!I20) -> 43 | J19: =IF($K$8>=$K$9,"",cal!J20) -> 0.06 | K19: =cal!K20 -> 37.3 | L19: =cal!L20 -> 45.3 | M19: =cal!M20 -> 7.2 | N19: =cal!N20 -> 178 | O19: =IF($E$8<=$E$9,"",cal!O20) -> 47.7 | P19: =IF($K$8>=$K$9,"",cal!P20) -> 20.7
B20: =cal!B21 -> 100% | C20: =cal!C21 -> 10 | D20: =IF($E$8<=$E$9,"",cal!D21) -> 1669 | E20: =IF($E$8<=$E$9,"",cal!E21) -> 144 | F20: =IF($E$8<=$E$9,"",cal!F21) -> 0.57 | G20: =IF($K$8>=$K$9,"",cal!G21) -> 296 | H20: =IF($K$8>=$K$9,"",cal!H21) -> 338 | I20: =IF($K$8>=$K$9,"",cal!I21) -> 48 | J20: =IF($K$8>=$K$9,"",cal!J21) -> 0.08 | K20: =cal!K21 -> 42.5 | L20: =cal!L21 -> 50.5 | M20: =cal!M21 -> 13.0 | N20: =cal!N21 -> 214 | O20: =IF($E$8<=$E$9,"",cal!O21) -> 51.8 | P20: =IF($K$8>=$K$9,"",cal!P21) -> 20.9
B21: =cal!B22 -> Briza 12 hoogte 41 cm breedte 14 cm lengte 95 cm (Type 2)
B22: =cal!B23 -> 20% | C22: =cal!C23 -> 2 | D22: =IF($E$8<=$E$9,cal!$Z$3,cal!D23) -> 1545 | E22: =IF($E$8<=$E$9,"",cal!E23) -> 133 | F22: =IF($E$8<=$E$9,"",cal!F23) -> 0.64 | G22: =IF($K$8>=$K$9,cal!$Z$3,cal!G23) -> 264 | H22: =IF($K$8>=$K$9,"",cal!H23) -> 323 | I22: =IF($K$8>=$K$9,"",cal!I23) -> 46 | J22: =IF($K$8>=$K$9,"",cal!J23) -> 0.09 | K22: =cal!K23 -> 24.0 | L22: =cal!L23 -> 32.0 | M22: =cal!M23 -> 2.5 | N22: =cal!N23 -> 108 | O22: =IF($E$8<=$E$9,"",cal!O23) -> 50.0 | P22: =IF($K$8>=$K$9,"",cal!P23) -> 17.7
B23: =cal!B24 -> 40% | C23: =cal!C24 -> 4 | D23: =IF($E$8<=$E$9,cal!$Z$4,cal!D24) -> 1699 | E23: =IF($E$8<=$E$9,"",cal!E24) -> 146 | F23: =IF($E$8<=$E$9,"",cal!F24) -> 0.75 | G23: =IF($K$8>=$K$9,cal!$Z$5,cal!G24) -> 300 | H23: =IF($K$8>=$K$9,"",cal!H24) -> 360 | I23: =IF($K$8>=$K$9,"",cal!I24) -> 52 | J23: =IF($K$8>=$K$9,"",cal!J24) -> 0.12 | K23: =cal!K24 -> 30.0 | L23: =cal!L24 -> 38.0 | M23: =cal!M24 -> 4.3 | N23: =cal!N24 -> 172 | O23: =IF($E$8<=$E$9,"",cal!O24) -> 44.4 | P23: =IF($K$8>=$K$9,"",cal!P24) -> 19.8
B24: =cal!B25 -> 60% | C24: =cal!C25 -> 6 | D24: =IF($E$8<=$E$9,"",cal!D25) -> 1797 | E24: =IF($E$8<=$E$9,"",cal!E25) -> 155 | F24: =IF($E$8<=$E$9,"",cal!F25) -> 0.84 | G24: =IF($K$8>=$K$9,"",cal!G25) -> 349 | H24: =IF($K$8>=$K$9,"",cal!H25) -> 412 | I24: =IF($K$8>=$K$9,"",cal!I25) -> 59 | J24: =IF($K$8>=$K$9,"",cal!J25) -> 0.15 | K24: =cal!K25 -> 36.8 | L24: =cal!L25 -> 44.8 | M24: =cal!M25 -> 7.2 | N24: =cal!N25 -> 223 | O24: =IF($E$8<=$E$9,"",cal!O25) -> 44.0 | P24: =IF($K$8>=$K$9,"",cal!P25) -> 20.3
B25: =cal!B26 -> 80% | C25: =cal!C26 -> 8 | D25: =IF($E$8<=$E$9,"",cal!D26) -> 2243 | E25: =IF($E$8<=$E$9,"",cal!E26) -> 193 | F25: =IF($E$8<=$E$9,"",cal!F26) -> 1.25 | G25: =IF($K$8>=$K$9,"",cal!G26) -> 411 | H25: =IF($K$8>=$K$9,"",cal!H26) -> 477 | I25: =IF($K$8>=$K$9,"",cal!I26) -> 68 | J25: =IF($K$8>=$K$9,"",cal!J26) -> 0.19 | K25: =cal!K26 -> 41.5 | L25: =cal!L26 -> 49.5 | M25: =cal!M26 -> 11.5 | N25: =cal!N26 -> 287 | O25: =IF($E$8<=$E$9,"",cal!O26) -> 47.6 | P25: =IF($K$8>=$K$9,"",cal!P26) -> 20.7
B26: =cal!B27 -> 100% | C26: =cal!C27 -> 10 | D26: =IF($E$8<=$E$9,"",cal!D27) -> 2749 | E26: =IF($E$8<=$E$9,"",cal!E27) -> 236 | F26: =IF($E$8<=$E$9,"",cal!F27) -> 1.80 | G26: =IF($K$8>=$K$9,"",cal!G27) -> 487 | H26: =IF($K$8>=$K$9,"",cal!H27) -> 556 | I26: =IF($K$8>=$K$9,"",cal!I27) -> 80 | J26: =IF($K$8>=$K$9,"",cal!J27) -> 0.25 | K26: =cal!K27 -> 44.5 | L26: =cal!L27 -> 52.5 | M26: =cal!M27 -> 18.0 | N26: =cal!N27 -> 346 | O26: =IF($E$8<=$E$9,"",cal!O27) -> 52.3 | P26: =IF($K$8>=$K$9,"",cal!P27) -> 20.8
B27: =cal!B28 -> Briza 12 hoogte 41 cm breedte 14 cm lengte 125 cm (Type 3)
B28: =cal!B29 -> 20% | C28: =cal!C29 -> 2 | D28: =IF($E$8<=$E$9,cal!$Z$3,cal!D29) -> 2431 | E28: =IF($E$8<=$E$9,"",cal!E29) -> 209 | F28: =IF($E$8<=$E$9,"",cal!F29) -> 1.95 | G28: =IF($K$8>=$K$9,cal!$Z$3,cal!G29) -> 433 | H28: =IF($K$8>=$K$9,"",cal!H29) -> 529 | I28: =IF($K$8>=$K$9,"",cal!I29) -> 76 | J28: =IF($K$8>=$K$9,"",cal!J29) -> 0.31 | K28: =cal!K29 -> 24.6 | L28: =cal!L29 -> 32.6 | M28: =cal!M29 -> 2.6 | N28: =cal!N29 -> 146 | O28: =IF($E$8<=$E$9,"",cal!O29) -> 55.6 | P28: =IF($K$8>=$K$9,"",cal!P29) -> 16.2
B29: =cal!B30 -> 40% | C29: =cal!C30 -> 4 | D29: =IF($E$8<=$E$9,cal!$Z$4,cal!D30) -> 2717 | E29: =IF($E$8<=$E$9,"",cal!E30) -> 234 | F29: =IF($E$8<=$E$9,"",cal!F30) -> 2.40 | G29: =IF($K$8>=$K$9,cal!$Z$5,cal!G30) -> 480 | H29: =IF($K$8>=$K$9,"",cal!H30) -> 575 | I29: =IF($K$8>=$K$9,"",cal!I30) -> 82 | J29: =IF($K$8>=$K$9,"",cal!J30) -> 0.36 | K29: =cal!K30 -> 30.2 | L29: =cal!L30 -> 38.2 | M29: =cal!M30 -> 4.8 | N29: =cal!N30 -> 221 | O29: =IF($E$8<=$E$9,"",cal!O30) -> 50.9 | P29: =IF($K$8>=$K$9,"",cal!P30) -> 18.5
B30: =cal!B31 -> 60% | C30: =cal!C31 -> 6 | D30: =IF($E$8<=$E$9,"",cal!D31) -> 3090 | E30: =IF($E$8<=$E$9,"",cal!E31) -> 266 | F30: =IF($E$8<=$E$9,"",cal!F31) -> 3.03 | G30: =IF($K$8>=$K$9,"",cal!G31) -> 548 | H30: =IF($K$8>=$K$9,"",cal!H31) -> 646 | I30: =IF($K$8>=$K$9,"",cal!I31) -> 93 | J30: =IF($K$8>=$K$9,"",cal!J31) -> 0.45 | K30: =cal!K31 -> 37.0 | L30: =cal!L31 -> 45.0 | M30: =cal!M31 -> 8.0 | N30: =cal!N31 -> 298 | O30: =IF($E$8<=$E$9,"",cal!O31) -> 50.8 | P30: =IF($K$8>=$K$9,"",cal!P31) -> 19.5
B31: =cal!B32 -> 80% | C31: =cal!C32 -> 8 | D31: =IF($E$8<=$E$9,"",cal!D32) -> 3617 | E31: =IF($E$8<=$E$9,"",cal!E32) -> 311 | F31: =IF($E$8<=$E$9,"",cal!F32) -> 4.02 | G31: =IF($K$8>=$K$9,"",cal!G32) -> 643 | H31: =IF($K$8>=$K$9,"",cal!H32) -> 746 | I31: =IF($K$8>=$K$9,"",cal!I32) -> 107 | J31: =IF($K$8>=$K$9,"",cal!J32) -> 0.58 | K31: =cal!K32 -> 42.5 | L31: =cal!L32 -> 50.5 | M31: =cal!M32 -> 14.0 | N31: =cal!N32 -> 381 | O31: =IF($E$8<=$E$9,"",cal!O32) -> 53.0 | P31: =IF($K$8>=$K$9,"",cal!P32) -> 20.0
B32: =cal!B33 -> 100% | C32: =cal!C33 -> 10 | D32: =IF($E$8<=$E$9,"",cal!D33) -> 4367 | E32: =IF($E$8<=$E$9,"",cal!E33) -> 375 | F32: =IF($E$8<=$E$9,"",cal!F33) -> 5.65 | G32: =IF($K$8>=$K$9,"",cal!G33) -> 773 | H32: =IF($K$8>=$K$9,"",cal!H33) -> 882 | I32: =IF($K$8>=$K$9,"",cal!I33) -> 126 | J32: =IF($K$8>=$K$9,"",cal!J33) -> 0.78 | K32: =cal!K33 -> 47.0 | L32: =cal!L33 -> 55.0 | M32: =cal!M33 -> 24.0 | N32: =cal!N33 -> 448 | O32: =IF($E$8<=$E$9,"",cal!O33) -> 58.8 | P32: =IF($K$8>=$K$9,"",cal!P33) -> 19.9
B33: =cal!B34 -> Briza 12 hoogte 41 cm breedte 14 cm lengte 145 cm (Type 4)
B34: =cal!B35 -> 20% | C34: =cal!C35 -> 2 | D34: =IF($E$8<=$E$9,cal!$Z$3,cal!D35) -> 2999 | E34: =IF($E$8<=$E$9,"",cal!E35) -> 258 | F34: =IF($E$8<=$E$9,"",cal!F35) -> 3.34 | G34: =IF($K$8>=$K$9,cal!$Z$3,cal!G35) -> 569 | H34: =IF($K$8>=$K$9,"",cal!H35) -> 694 | I34: =IF($K$8>=$K$9,"",cal!I35) -> 99 | J34: =IF($K$8>=$K$9,"",cal!J35) -> 0.58 | K34: =cal!K35 -> 25.7 | L34: =cal!L35 -> 33.7 | M34: =cal!M35 -> 2.8 | N34: =cal!N35 -> 173 | O34: =IF($E$8<=$E$9,"",cal!O35) -> 57.2 | P34: =IF($K$8>=$K$9,"",cal!P35) -> 15.2
B35: =cal!B36 -> 40% | C35: =cal!C36 -> 4 | D35: =IF($E$8<=$E$9,cal!$Z$4,cal!D36) -> 3401 | E35: =IF($E$8<=$E$9,"",cal!E36) -> 292 | F35: =IF($E$8<=$E$9,"",cal!F36) -> 4.19 | G35: =IF($K$8>=$K$9,cal!$Z$5,cal!G36) -> 623 | H35: =IF($K$8>=$K$9,"",cal!H36) -> 747 | I35: =IF($K$8>=$K$9,"",cal!I36) -> 107 | J35: =IF($K$8>=$K$9,"",cal!J36) -> 0.67 | K35: =cal!K36 -> 30.5 | L35: =cal!L36 -> 38.5 | M35: =cal!M36 -> 5.5 | N35: =cal!N36 -> 268 | O35: =IF($E$8<=$E$9,"",cal!O36) -> 51.9 | P35: =IF($K$8>=$K$9,"",cal!P36) -> 18.1
B36: =cal!B37 -> 60% | C36: =cal!C37 -> 6 | D36: =IF($E$8<=$E$9,"",cal!D37) -> 3894 | E36: =IF($E$8<=$E$9,"",cal!E37) -> 335 | F36: =IF($E$8<=$E$9,"",cal!F37) -> 5.38 | G36: =IF($K$8>=$K$9,"",cal!G37) -> 698 | H36: =IF($K$8>=$K$9,"",cal!H37) -> 824 | I36: =IF($K$8>=$K$9,"",cal!I37) -> 118 | J36: =IF($K$8>=$K$9,"",cal!J37) -> 0.80 | K36: =cal!K37 -> 37.3 | L36: =cal!L37 -> 45.3 | M36: =cal!M37 -> 10.3 | N36: =cal!N37 -> 373 | O36: =IF($E$8<=$E$9,"",cal!O37) -> 51.0 | P36: =IF($K$8>=$K$9,"",cal!P37) -> 19.4
B37: =cal!B38 -> 80% | C37: =cal!C38 -> 8 | D37: =IF($E$8<=$E$9,"",cal!D38) -> 4551 | E37: =IF($E$8<=$E$9,"",cal!E38) -> 391 | F37: =IF($E$8<=$E$9,"",cal!F38) -> 7.14 | G37: =IF($K$8>=$K$9,"",cal!G38) -> 808 | H37: =IF($K$8>=$K$9,"",cal!H38) -> 938 | I37: =IF($K$8>=$K$9,"",cal!I38) -> 134 | J37: =IF($K$8>=$K$9,"",cal!J38) -> 1.01 | K37: =cal!K38 -> 43.0 | L37: =cal!L38 -> 51.0 | M37: =cal!M38 -> 18.5 | N37: =cal!N38 -> 466 | O37: =IF($E$8<=$E$9,"",cal!O38) -> 53.9 | P37: =IF($K$8>=$K$9,"",cal!P38) -> 19.8
B38: =cal!B39 -> 100% | C38: =cal!C39 -> 10 | D38: =IF($E$8<=$E$9,"",cal!D39) -> 5444 | E38: =IF($E$8<=$E$9,"",cal!E39) -> 468 | F38: =IF($E$8<=$E$9,"",cal!F39) -> 9.92 | G38: =IF($K$8>=$K$9,"",cal!G39) -> 965 | H38: =IF($K$8>=$K$9,"",cal!H39) -> 1102 | I38: =IF($K$8>=$K$9,"",cal!I39) -> 158 | J38: =IF($K$8>=$K$9,"",cal!J39) -> 1.36 | K38: =cal!K39 -> 47.0 | L38: =cal!L39 -> 55.0 | M38: =cal!M39 -> 28.8 | N38: =cal!N39 -> 510 | O38: =IF($E$8<=$E$9,"",cal!O39) -> 62.1 | P38: =IF($K$8>=$K$9,"",cal!P39) -> 19.4
B39: =cal!B40 -> *Geluidsvermogen gemeten volgens ISO 3741:2010 | P39: v2021-04-26
B40: =cal!B41 -> **Geluidsdruk bij een aangenomen ruimtedemping van 8 dB(A)

Sheet cal (hidden)
E1: Nederlands | F1: English | G1: Deutsch | H1: Français | I1: Norsk | J1: Español | K1: Svenska | L1: Čeština | M1: ExtraTaal1 | N1: ExtraTaal2 | O1: ExtraTaal3 | X1: Briza 12
X2: Briza 12 H38 2P built-in
B3: =IF($S$7=1,NL!B3,IF(cal!$S$7=2,EN!B3,IF(cal!$S$7=3,DE!B3,IF(cal!$S$7=4,FR!B3,IF(cal!$S$7=5,NR!B3,IF(cal!$S$7=6,SP!B3,IF(cal!$S$7=7,SW!B3,IF(cal!$S$7=8,TS!B3,IF(cal!$S$7=9,ExtraTaal1!B3,IF(cal!$S$7=10,ExtraTaal2!B3,IF(cal!$S$7=11,ExtraTaal3!B3,))))))))))) -> Invulformulier | X3: Briza 12 H38 4P built-in | Z3: =IF($S$7=1,NL!R16,IF(cal!$S$7=2,EN!R16,IF(cal!$S$7=3,DE!R16,IF(cal!$S$7=4,FR!R16,IF(cal!$S$7=5,NR!R16,IF(cal!$S$7=6,SP!R16,IF(cal!$S$7=7,SW!R16,IF(cal!$S$7=8,TS!R16,IF(cal!$S$7=9,ExtraTaal1!R16,IF(cal!$S$7=10,ExtraTaal2!R16,IF(cal!$S$7=11,ExtraTaal3!R16,))))))))))) -> Temp. | AA3: =IF($S$7=1,NL!Q7,IF(cal!$S$7=2,EN!Q7,IF(cal!$S$7=3,DE!Q7,IF(cal!$S$7=4,FR!Q7,IF(cal!$S$7=5,NR!Q7,IF(cal!$S$7=6,SP!Q7,IF(cal!$S$7=7,SW!Q7,IF(cal!$S$7=8,TS!Q7,IF(cal!$S$7=9,ExtraTaal1!Q7,IF(cal!$S$7=10,ExtraTaal2!Q7,IF(cal!$S$7=11,ExtraTaal3!Q7,))))))))))) -> Kopieer alle data
W4: 1 | X4: Briza 12 H41 2P casing | Z4: =IF($S$7=1,NL!R17,IF(cal!$S$7=2,EN!R17,IF(cal!$S$7=3,DE!R17,IF(cal!$S$7=4,FR!R17,IF(cal!$S$7=5,NR!R17,IF(cal!$S$7=6,SP!R17,IF(cal!$S$7=7,SW!R17,IF(cal!$S$7=8,TS!R17,IF(cal!$S$7=9,ExtraTaal1!R17,IF(cal!$S$7=10,ExtraTaal2!R17,IF(cal!$S$7=11,ExtraTaal3!R17,))))))))))) -> verw.! | AA4: =IF($S$7=1,NL!Q8,IF(cal!$S$7=2,EN!Q8,IF(cal!$S$7=3,DE!Q8,IF(cal!$S$7=4,FR!Q8,IF(cal!$S$7=5,NR!Q8,IF(cal!$S$7=6,SP!Q8,IF(cal!$S$7=7,SW!Q8,IF(cal!$S$7=8,TS!Q8,IF(cal!$S$7=9,ExtraTaal1!Q8,IF(cal!$S$7=10,ExtraTaal2!Q8,IF(cal!$S$7=11,ExtraTaal3!Q8,))))))))))) -> SI-eenheden
B5: =IF($S$7=1,NL!B5,IF(cal!$S$7=2,EN!B5,IF(cal!$S$7=3,DE!B5,IF(cal!$S$7=4,FR!B5,IF(cal!$S$7=5,NR!B5,IF(cal!$S$7=6,SP!B5,IF(cal!$S$7=7,SW!B5,IF(cal!$S$7=8,TS!B5,IF(cal!$S$7=9,ExtraTaal1!B5,IF(cal!$S$7=10,ExtraTaal2!B5,IF(cal!$S$7=11,ExtraTaal3!B5,))))))))))) -> Randvoorwaarden | X5: Briza 12 H41 4P casing | Z5: =IF($S$7=1,NL!R18,IF(cal!$S$7=2,EN!R18,IF(cal!$S$7=3,DE!R18,IF(cal!$S$7=4,FR!R18,IF(cal!$S$7=5,NR!R18,IF(cal!$S$7=6,SP!R18,IF(cal!$S$7=7,SW!R18,IF(cal!$S$7=8,TS!R18,IF(cal!$S$7=9,ExtraTaal1!R18,IF(cal!$S$7=10,ExtraTaal2!R18,IF(cal!$S$7=11,ExtraTaal3!R18,))))))))))) -> koelen! | AA5: =IF($S$7=1,NL!Q9,IF(cal!$S$7=2,EN!Q9,IF(cal!$S$7=3,DE!Q9,IF(cal!$S$7=4,FR!Q9,IF(cal!$S$7=5,NR!Q9,IF(cal!$S$7=6,SP!Q9,IF(cal!$S$7=7,SW!Q9,IF(cal!$S$7=8,TS!Q9,IF(cal!$S$7=9,ExtraTaal1!Q9,IF(cal!$S$7=10,ExtraTaal2!Q9,IF(cal!$S$7=11,ExtraTaal3!Q9,))))))))))) -> Imperiale-eenheden
X6: Briza 12 H52 2P built-in
B7: =IF($S$7=1,NL!B7,IF(cal!$S$7=2,EN!B7,IF(cal!$S$7=3,DE!B7,IF(cal!$S$7=4,FR!B7,IF(cal!$S$7=5,NR!B7,IF(cal!$S$7=6,SP!B7,IF(cal!$S$7=7,SW!B7,IF(cal!$S$7=8,TS!B7,IF(cal!$S$7=9,ExtraTaal1!B7,IF(cal!$S$7=10,ExtraTaal2!B7,IF(cal!$S$7=11,ExtraTaal3!B7,))))))))))) -> Temperaturen | M7: =IF($S$7=8,"Výška umístění","h_atm") -> h_atm | S7: =IF('Briza 12'!$K$2=cal!$E$1,1,IF('Briza 12'!$K$2=cal!$F$1,2,IF('Briza 12'!$K$2=cal!G1,3,IF('Briza 12'!$K$2=cal!H1,4,IF('Briza 12'!$K$2=cal!I1,5,IF('Briza 12'!$K$2=cal!J1,6,IF('Briza 12'!$K$2=cal!K1,7,IF('Briza 12'!$K$2=cal!L1,8,IF('Briza 12'!$K$2=cal!M1,9,IF('Briza 12'!$K$2=cal!N1,10,IF('Briza 12'!$K$2=cal!O1,11,))))))))))) -> 1 | X7: Briza 12 H52 4P built-in
B8: =IF($S$7=1,NL!B8,IF(cal!$S$7=2,EN!B8,IF(cal!$S$7=3,DE!B8,IF(cal!$S$7=4,FR!B8,IF(cal!$S$7=5,NR!B8,IF(cal!$S$7=6,SP!B8,IF(cal!$S$7=7,SW!B8,IF(cal!$S$7=8,TS!B8,IF(cal!$S$7=9,ExtraTaal1!B8,IF(cal!$S$7=10,ExtraTaal2!B8,IF(cal!$S$7=11,ExtraTaal3!B8,))))))))))) -> Verwarmen: | G8: =IF($S$7=1,NL!G8,IF(cal!$S$7=2,EN!G8,IF(cal!$S$7=3,DE!G8,IF(cal!$S$7=4,FR!G8,IF(cal!$S$7=5,NR!G8,IF(cal!$S$7=6,SP!G8,IF(cal!$S$7=7,SW!G8,IF(cal!$S$7=8,TS!G8,IF(cal!$S$7=9,ExtraTaal1!G8,IF(cal!$S$7=10,ExtraTaal2!G8,IF(cal!$S$7=11,ExtraTaal3!G8,))))))))))) -> Koelen: | M8: ='Briza 12'!M7 -> 0.00 | N8: ='Briza 12'!N7 -> 0.00 | S8: Temp | W8: Temp | X8: Briza 12 H55 2P casing
B9: =IF($S$7=1,NL!B9,IF(cal!$S$7=2,EN!B9,IF(cal!$S$7=3,DE!B9,IF(cal!$S$7=4,FR!B9,IF(cal!$S$7=5,NR!B9,IF(cal!$S$7=6,SP!B9,IF(cal!$S$7=7,SW!B9,IF(cal!$S$7=8,TS!B9,IF(cal!$S$7=9,ExtraTaal1!B9,IF(cal!$S$7=10,ExtraTaal2!B9,IF(cal!$S$7=11,ExtraTaal3!B9,))))))))))) -> Water aanvoer | C9: =IF($S$7=1,NL!C9,IF(cal!$S$7=2,EN!C9,IF(cal!$S$7=3,DE!C9,IF(cal!$S$7=4,FR!C9,IF(cal!$S$7=5,NR!C9,IF(cal!$S$7=6,SP!C9,IF(cal!$S$7=7,SW!C9,IF(cal!$S$7=8,TS!C9,IF(cal!$S$7=9,ExtraTaal1!C9,IF(cal!$S$7=10,ExtraTaal2!C9,IF(cal!$S$7=11,ExtraTaal3!C9,))))))))))) -> 0 | D9: =IF($S$7=1,NL!D9,IF(cal!$S$7=2,EN!D9,IF(cal!$S$7=3,DE!D9,IF(cal!$S$7=4,FR!D9,IF(cal!$S$7=5,NR!D9,IF(cal!$S$7=6,SP!D9,IF(cal!$S$7=7,SW!D9,IF(cal!$S$7=8,TS!D9,IF(cal!$S$7=9,ExtraTaal1!D9,IF(cal!$S$7=10,ExtraTaal2!D9,IF(cal!$S$7=11,ExtraTaal3!D9,))))))))))) -> 0 | E9: ='Briza 12'!E8 -> 75 | F9: =IF($W$4=1,"°C",IF($W$4=2,"°F",)) -> °C | G9: =B9 -> Water aanvoer | H9: =IF($S$7=1,NL!H9,IF(cal!$S$7=2,EN!H9,IF(cal!$S$7=3,DE!H9,IF(cal!$S$7=4,FR!H9,)))) -> 0 | I9: =IF($S$7=1,NL!I9,IF(cal!$S$7=2,EN!I9,IF(cal!$S$7=3,DE!I9,IF(cal!$S$7=4,FR!I9,)))) -> 0 | J9: =IF($S$7=1,NL!J9,IF(cal!$S$7=2,EN!J9,IF(cal!$S$7=3,DE!J9,IF(cal!$S$7=4,FR!J9,)))) -> 0 | K9: ='Briza 12'!K8 -> 8 | L9: =F9 -> °C | M9: =IF($S$7=1,NL!M9,IF(cal!$S$7=2,EN!M9,IF(cal!$S$7=3,DE!M9,IF(cal!$S$7=4,FR!M9,IF(cal!$S$7=5,NR!M9,IF(cal!$S$7=6,SP!M9,)))))) -> Eenheidsstelsel | N9: =IF($S$7=1,NL!N9,IF(cal!$S$7=2,EN!N9,IF(cal!$S$7=3,DE!N9,IF(cal!$S$7=4,FR!N9,IF(cal!$S$7=5,#REF!,))))) -> 0 | S9: =IF($W$4=1,E9,IF($W$4=2,(E9-32)/1.8)) -> 75.0 | W9: =IF($W$4=1,K9,IF($W$4=2,(K9-32)/1.8)) -> 8.0 | X9: Briza 12 H55 4P casing
B10: =IF($S$7=1,NL!B10,IF(cal!$S$7=2,EN!B10,IF(cal!$S$7=3,DE!B10,IF(cal!$S$7=4,FR!B10,IF(cal!$S$7=5,NR!B10,IF(cal!$S$7=6,SP!B10,IF(cal!$S$7=7,SW!B10,IF(cal!$S$7=8,TS!B10,IF(cal!$S$7=9,ExtraTaal1!B10,IF(cal!$S$7=10,ExtraTaal2!B10,IF(cal!$S$7=11,ExtraTaal3!B10,))))))))))) -> Water retour | C10: =IF($S$7=1,NL!C10,IF(cal!$S$7=2,EN!C10,IF(cal!$S$7=3,DE!C10,IF(cal!$S$7=4,FR!C10,IF(cal!$S$7=5,NR!C10,IF(cal!$S$7=6,SP!C10,IF(cal!$S$7=7,SW!C10,IF(cal!$S$7=8,TS!C10,IF(cal!$S$7=9,ExtraTaal1!C10,IF(cal!$S$7=10,ExtraTaal2!C10,IF(cal!$S$7=11,ExtraTaal3!C10,))))))))))) -> 0 | D10: =IF($S$7=1,NL!D10,IF(cal!$S$7=2,EN!D10,IF(cal!$S$7=3,DE!D10,IF(cal!$S$7=4,FR!D10,IF(cal!$S$7=5,NR!D10,IF(cal!$S$7=6,SP!D10,IF(cal!$S$7=7,SW!D10,IF(cal!$S$7=8,TS!D10,IF(cal!$S$7=9,ExtraTaal1!D10,IF(cal!$S$7=10,ExtraTaal2!D10,IF(cal!$S$7=11,ExtraTaal3!D10,))))))))))) -> 0 | E10: ='Briza 12'!E9 -> 65 | F10: =F9 -> °C | G10: =B10 -> Water retour | H10: =IF($S$7=1,NL!H10,IF(cal!$S$7=2,EN!H10,IF(cal!$S$7=3,DE!H10,IF(cal!$S$7=4,FR!H10,)))) -> 0 | I10: =IF($S$7=1,NL!I10,IF(cal!$S$7=2,EN!I10,IF(cal!$S$7=3,DE!I10,IF(cal!$S$7=4,FR!I10,)))) -> 0 | J10: =IF($S$7=1,NL!J10,IF(cal!$S$7=2,EN!J10,IF(cal!$S$7=3,DE!J10,IF(cal!$S$7=4,FR!J10,)))) -> 0 | K10: ='Briza 12'!K9 -> 14 | L10: =F9 -> °C | S10: =IF($W$4=1,E10,IF($W$4=2,(E10-32)/1.8)) -> 65.0 | W10: =IF($W$4=1,K10,IF($W$4=2,(K10-32)/1.8)) -> 14.0 | Y10: p_atm | Z10: h[mm] | AA10: cf_h
B11: =IF($S$7=1,NL!B11,IF(cal!$S$7=2,EN!B11,IF(cal!$S$7=3,DE!B11,IF(cal!$S$7=4,FR!B11,IF(cal!$S$7=5,NR!B11,IF(cal!$S$7=6,SP!B11,IF(cal!$S$7=7,SW!B11,IF(cal!$S$7=8,TS!B11,IF(cal!$S$7=9,ExtraTaal1!B11,IF(cal!$S$7=10,ExtraTaal2!B11,IF(cal!$S$7=11,ExtraTaal3!B11,))))))))))) -> Ruimte | C11: =IF($S$7=1,NL!C11,IF(cal!$S$7=2,EN!C11,IF(cal!$S$7=3,DE!C11,IF(cal!$S$7=4,FR!C11,IF(cal!$S$7=5,NR!C11,IF(cal!$S$7=6,SP!C11,IF(cal!$S$7=7,SW!C11,IF(cal!$S$7=8,TS!C11,IF(cal!$S$7=9,ExtraTaal1!C11,IF(cal!$S$7=10,ExtraTaal2!C11,IF(cal!$S$7=11,ExtraTaal3!C11,))))))))))) -> 0 | D11: =IF($S$7=1,NL!D11,IF(cal!$S$7=2,EN!D11,IF(cal!$S$7=3,DE!D11,IF(cal!$S$7=4,FR!D11,IF(cal!$S$7=5,NR!D11,IF(cal!$S$7=6,SP!D11,IF(cal!$S$7=7,SW!D11,IF(cal!$S$7=8,TS!D11,IF(cal!$S$7=9,ExtraTaal1!D11,IF(cal!$S$7=10,ExtraTaal2!D11,IF(cal!$S$7=11,ExtraTaal3!D11,))))))))))) -> 0 | E11: ='Briza 12'!E10 -> 20 | F11: =F9 -> °C | G11: =B11 -> Ruimte | H11: =IF($S$7=1,NL!H11,IF(cal!$S$7=2,EN!H11,IF(cal!$S$7=3,DE!H11,IF(cal!$S$7=4,FR!H11,)))) -> 0 | K11: ='Briza 12'!K10 -> 25 | L11: =F9 -> °C | S11: 20.0 | W11: 25.0 | Y11: =IF($W$4=1,(101325*(1-((0.0065*M8)/(288.15)))^((9.81*0.028964)/(8.31447*0.0065))),IF($W$4=2,(101325*(1-((0.0065*(M8*0.3048))/(288.15)))^((9.81*0.028964)/(8.31447*0.0065))))) -> 101325 | Z11: =IF($W$4=1,M8/1000,IF($W$4=2,M8*0.0003048)) -> 0 | AA11: =-(0.000265264729874266*Z11^6)+(0.000957582908802335*Z11^5)+(0.00470250661483425*Z11^4)-(0.0298716926548353*Z11^3)+(0.0557086806557086*Z11^2)-(0.0484008125693582*Z11)+1 -> 1
G12: =IF($S$7=1,NL!G12,IF(cal!$S$7=2,EN!G12,IF(cal!$S$7=3,DE!G12,IF(cal!$S$7=4,FR!G12,IF(cal!$S$7=5,NR!G12,IF(cal!$S$7=6,SP!G12,IF(cal!$S$7=7,SW!G12,IF(cal!$S$7=8,TS!G12,IF(cal!$S$7=9,ExtraTaal1!G12,IF(cal!$S$7=10,ExtraTaal2!G12,IF(cal!$S$7=11,ExtraTaal3!G12,))))))))))) -> Relatieve vochtigheid | K12: ='Briza 12'!K11 -> 50%
D14: =IF($W$4=1,1,IF($W$4=2,3.412141633)) -> 1.0000 | E14: =IF($W$4=1,1,IF($W$4=2,0.004403)) -> 1.0000 | F14: =IF($W$4=1,1,IF($W$4=2,4.0147)) -> 1.0000 | G14: =IF($W$4=1,1,IF($W$4=2,3.412141633)) -> 1.0000 | H14: 1.0000 | I14: =IF($W$4=1,1,IF($W$4=2,0.004403)) -> 1.0000 | J14: =IF($W$4=1,1,IF($W$4=2,4.0147)) -> 1.0000 | K14: =IF($W$4=1,0.000334444444444444,IF($W$4=2,0.000568224721372)) -> 0.0003344444444 | M14: =IF($W$4=1,1,IF($W$4=2,1.8)) -> 1 | N14: =IF($W$4=1,1,IF($W$4=2,0.588575)) -> 1.0000 | O14: =IF($W$4=1,0,IF($W$4=2,32)) -> 0.0000
B15: =IF($S$7=1,NL!B15,IF(cal!$S$7=2,EN!B15,IF(cal!$S$7=3,DE!B15,IF(cal!$S$7=4,FR!B15,IF(cal!$S$7=5,NR!B15,IF(cal!$S$7=6,SP!B15,IF(cal!$S$7=7,SW!B15,IF(cal!$S$7=8,TS!B15,IF(cal!$S$7=9,ExtraTaal1!B15,IF(cal!$S$7=10,ExtraTaal2!B15,IF(cal!$S$7=11,ExtraTaal3!B15,))))))))))) -> Snelheidsniveau | C15: =IF($S$7=1,NL!C15,IF(cal!$S$7=2,EN!C15,IF(cal!$S$7=3,DE!C15,IF(cal!$S$7=4,FR!C15,IF(cal!$S$7=5,NR!C15,IF(cal!$S$7=6,SP!C15,IF(cal!$S$7=7,SW!C15,IF(cal!$S$7=8,TS!C15,IF(cal!$S$7=9,ExtraTaal1!C15,IF(cal!$S$7=10,ExtraTaal2!C15,IF(cal!$S$7=11,ExtraTaal3!C15,))))))))))) -> Stuurspanning [V] | D15: =IF($S$7=1,NL!D15,IF(cal!$S$7=2,EN!D15,IF(cal!$S$7=3,DE!D15,IF(cal!$S$7=4,FR!D15,IF(cal!$S$7=5,NR!D15,IF(cal!$S$7=6,SP!D15,IF(cal!$S$7=7,SW!D15,IF(cal!$S$7=8,TS!D15,IF(cal!$S$7=9,ExtraTaal1!D15,IF(cal!$S$7=10,ExtraTaal2!D15,IF(cal!$S$7=11,ExtraTaal3!D15,))))))))))) -> Warmteafgifte 75/65/20 [W] | E15: =IF($S$7=1,NL!E15,IF(cal!$S$7=2,EN!E15,IF(cal!$S$7=3,DE!E15,IF(cal!$S$7=4,FR!E15,IF(cal!$S$7=5,NR!E15,IF(cal!$S$7=6,SP!E15,IF(cal!$S$7=7,SW!E15,IF(cal!$S$7=8,TS!E15,IF(cal!$S$7=9,ExtraTaal1!E15,IF(cal!$S$7=10,ExtraTaal2!E15,IF(cal!$S$7=11,ExtraTaal3!E15,))))))))))) -> Waterdebiet, verwarming [l/h] | F15: =IF($S$7=1,NL!F15,IF(cal!$S$7=2,EN!F15,IF(cal!$S$7=3,DE!F15,IF(cal!$S$7=4,FR!F15,IF(cal!$S$7=5,NR!F15,IF(cal!$S$7=6,SP!F15,IF(cal!$S$7=7,SW!F15,IF(cal!$S$7=8,TS!F15,IF(cal!$S$7=9,ExtraTaal1!F15,IF(cal!$S$7=10,ExtraTaal2!F15,IF(cal!$S$7=11,ExtraTaal3!F15,))))))))))) -> Waterzijdig drukverlies [kPa] | G15: =IF($S$7=1,NL!G15,IF(cal!$S$7=2,EN!G15,IF(cal!$S$7=3,DE!G15,IF(cal!$S$7=4,FR!G15,IF(cal!$S$7=5,NR!G15,IF(cal!$S$7=6,SP!G15,IF(cal!$S$7=7,SW!G15,IF(cal!$S$7=8,TS!G15,IF(cal!$S$7=9,ExtraTaal1!G15,IF(cal!$S$7=10,ExtraTaal2!G15,IF(cal!$S$7=11,ExtraTaal3!G15,))))))))))) -> Voelb. Koelcapaciteit 8/14/25 [W] | H15: =IF($S$7=1,NL!H15,IF(cal!$S$7=2,EN!H15,IF(cal!$S$7=3,DE!H15,IF(cal!$S$7=4,FR!H15,IF(cal!$S$7=5,NR!H15,IF(cal!$S$7=6,SP!H15,IF(cal!$S$7=7,SW!H15,IF(cal!$S$7=8,TS!H15,IF(cal!$S$7=9,ExtraTaal1!H15,IF(cal!$S$7=10,ExtraTaal2!H15,IF(cal!$S$7=11,ExtraTaal3!H15,))))))))))) -> Tot. koelcapaciteit 8/14/25 [W] | I15: =IF($S$7=1,NL!I15,IF(cal!$S$7=2,EN!I15,IF(cal!$S$7=3,DE!I15,IF(cal!$S$7=4,FR!I15,IF(cal!$S$7=5,NR!I15,IF(cal!$S$7=6,SP!I15,IF(cal!$S$7=7,SW!I15,IF(cal!$S$7=8,TS!I15,IF(cal!$S$7=9,ExtraTaal1!I15,IF(cal!$S$7=10,ExtraTaal2!I15,IF(cal!$S$7=11,ExtraTaal3!I15,))))))))))) -> Waterdebiet, koeling [l/h] | J15: =IF($S$7=1,NL!J15,IF(cal!$S$7=2,EN!J15,IF(cal!$S$7=3,DE!J15,IF(cal!$S$7=4,FR!J15,IF(cal!$S$7=5,NR!J15,IF(cal!$S$7=6,SP!J15,IF(cal!$S$7=7,SW!J15,IF(cal!$S$7=8,TS!J15,IF(cal!$S$7=9,ExtraTaal1!J15,IF(cal!$S$7=10,ExtraTaal2!J15,IF(cal!$S$7=11,ExtraTaal3!J15,))))))))))) -> Waterzijdig drukverlies [kPa] | K15: =IF($S$7=1,NL!K15,IF(cal!$S$7=2,EN!K15,IF(cal!$S$7=3,DE!K15,IF(cal!$S$7=4,FR!K15,IF(cal!$S$7=5,NR!K15,IF(cal!$S$7=6,SP!K15,IF(cal!$S$7=7,SW!K15,IF(cal!$S$7=8,TS!K15,IF(cal!$S$7=9,ExtraTaal1!K15,IF(cal!$S$7=10,ExtraTaal2!K15,IF(cal!$S$7=11,ExtraTaal3!K15,))))))))))) -> Geluidsdruk ** [dB(A)] | L15: =IF($S$7=1,NL!L15,IF(cal!$S$7=2,EN!L15,IF(cal!$S$7=3,DE!L15,IF(cal!$S$7=4,FR!L15,IF(cal!$S$7=5,NR!L15,IF(cal!$S$7=6,SP!L15,IF(cal!$S$7=7,SW!L15,IF(cal!$S$7=8,TS!L15,IF(cal!$S$7=9,ExtraTaal1!L15,IF(cal!$S$7=10,ExtraTaal2!L15,IF(cal!$S$7=11,ExtraTaal3!L15,))))))))))) -> Geluidsvermogen * [dB(A)] | M15: =IF($S$7=1,NL!M15,IF(cal!$S$7=2,EN!M15,IF(cal!$S$7=3,DE!M15,IF(cal!$S$7=4,FR!M15,IF(cal!$S$7=5,NR!M15,IF(cal!$S$7=6,SP!M15,IF(cal!$S$7=7,SW!M15,IF(cal!$S$7=8,TS!M15,IF(cal!$S$7=9,ExtraTaal1!M15,IF(cal!$S$7=10,ExtraTaal2!M15,IF(cal!$S$7=11,ExtraTaal3!M15,))))))))))) -> Opgenomen elektr. vermogen [W] | N15: =IF($S$7=1,NL!N15,IF(cal!$S$7=2,EN!N15,IF(cal!$S$7=3,DE!N15,IF(cal!$S$7=4,FR!N15,IF(cal!$S$7=5,NR!N15,IF(cal!$S$7=6,SP!N15,IF(cal!$S$7=7,SW!N15,IF(cal!$S$7=8,TS!N15,IF(cal!$S$7=9,ExtraTaal1!N15,IF(cal!$S$7=10,ExtraTaal2!N15,IF(cal!$S$7=11,ExtraTaal3!N15,))))))))))) -> Luchtdebiet [m³/h] | O15: =IF($S$7=1,NL!O15,IF(cal!$S$7=2,EN!O15,IF(cal!$S$7=3,DE!O15,IF(cal!$S$7=4,FR!O15,IF(cal!$S$7=5,NR!O15,IF(cal!$S$7=6,SP!O15,IF(cal!$S$7=7,SW!O15,IF(cal!$S$7=8,TS!O15,IF(cal!$S$7=9,ExtraTaal1!O15,IF(cal!$S$7=10,ExtraTaal2!O15,IF(cal!$S$7=11,ExtraTaal3!O15,))))))))))) -> Uitblaastemp. verwarming [°C] | P15: =IF($S$7=1,NL!P15,IF(cal!$S$7=2,EN!P15,IF(cal!$S$7=3,DE!P15,IF(cal!$S$7=4,FR!P15,IF(cal!$S$7=5,NR!P15,IF(cal!$S$7=6,SP!P15,IF(cal!$S$7=7,SW!P15,IF(cal!$S$7=8,TS!P15,IF(cal!$S$7=9,ExtraTaal1!P15,IF(cal!$S$7=10,ExtraTaal2!P15,IF(cal!$S$7=11,ExtraTaal3!P15,))))))))))) -> Uitblaastemp. koeling [°C] | W15: Q_verw | X15: dP_verw | Y15: Q_voelb_c | Z15: dP_cool | AA15: Geluid_P | AB15: P_elek | AC15: V_air | AE15: Q_verw | AF15: dP_verw | AG15: Q_voelb_c | AH15: dP_cool | AI15: Geluid_P | AJ15: P_elek | AK15: V_air | AL15: Q_verw | AM15: dP_verw | AN15: Q_voelb_c | AO15: dP_cool | AP15: Geluid_P | AQ15: P_elek | AR15: V_air | AS15: Q_verw | AT15: dP_verw | AU15: Q_voelb_c | AV15: dP_cool | AW15: Geluid_P | AX15: P_elek | AY15: V_air | AZ15: Q_verw | BA15: dP_verw | BB15: Q_voelb_c | BC15: dP_cool | BD15: Geluid_P | BE15: P_elek | BF15: V_air | BG15: Q_verw | BH15: dP_verw | BI15: Q_voelb_c | BJ15: dP_cool | BK15: Geluid_P | BL15: P_elek | BM15: V_air | BN15: Q_verw | BO15: dP_verw | BP15: Q_voelb_c | BQ15: dP_cool | BR15: Geluid_P | BS15: P_elek | BT15: V_air | BU15: Q_verw | BV15: dP_verw | BW15: Q_voelb_c | BX15: dP_cool | BY15: Geluid_P | BZ15: P_elek | CA15: V_air | CB15: Q_verw | CC15: dP_verw | CD15: Q_voelb_c | CE15: dP_cool | CF15: Geluid_P | CG15: P_elek | CH15: V_air
B16: =IF($S$7=1,NL!B16,IF(cal!$S$7=2,EN!B16,IF(cal!$S$7=3,DE!B16,IF(cal!$S$7=4,FR!B16,IF(cal!$S$7=5,NR!B16,IF(cal!$S$7=6,SP!B16,IF(cal!$S$7=7,SW!B16,IF(cal!$S$7=8,TS!B16,IF(cal!$S$7=9,ExtraTaal1!B16,IF(cal!$S$7=10,ExtraTaal2!B16,IF(cal!$S$7=11,ExtraTaal3!B16,))))))))))) -> Briza 12 hoogte 41 cm breedte 14 cm lengte 75 cm (Type 1) | C16: =IF($S$7=1,NL!C16,IF(cal!$S$7=2,EN!C16,IF(cal!$S$7=3,DE!C16,IF(cal!$S$7=4,FR!C16,IF(cal!$S$7=5,NR!C16,IF(cal!$S$7=6,SP!C16,)))))) -> 0 | D16: =IF($S$7=1,NL!D16,IF(cal!$S$7=2,EN!D16,IF(cal!$S$7=3,DE!D16,IF(cal!$S$7=4,FR!D16,IF(cal!$S$7=5,NR!D16,IF(cal!$S$7=6,SP!D16,)))))) -> 0 | E16: =IF($S$7=1,NL!E16,IF(cal!$S$7=2,EN!E16,IF(cal!$S$7=3,DE!E16,IF(cal!$S$7=4,FR!E16,IF(cal!$S$7=5,NR!E16,IF(cal!$S$7=6,SP!E16,)))))) -> 0 | F16: =IF($S$7=1,NL!F16,IF(cal!$S$7=2,EN!F16,IF(cal!$S$7=3,DE!F16,IF(cal!$S$7=4,FR!F16,IF(cal!$S$7=5,NR!F16,IF(cal!$S$7=6,SP!F16,)))))) -> 0 | G16: =IF($S$7=1,NL!G16,IF(cal!$S$7=2,EN!G16,IF(cal!$S$7=3,DE!G16,IF(cal!$S$7=4,FR!G16,IF(cal!$S$7=5,NR!G16,IF(cal!$S$7=6,SP!G16,)))))) -> 0 | H16: =IF($S$7=1,NL!H16,IF(cal!$S$7=2,EN!H16,IF(cal!$S$7=3,DE!H16,IF(cal!$S$7=4,FR!H16,IF(cal!$S$7=5,NR!H16,IF(cal!$S$7=6,SP!H16,)))))) -> 0 | I16: =IF($S$7=1,NL!I16,IF(cal!$S$7=2,EN!I16,IF(cal!$S$7=3,DE!I16,IF(cal!$S$7=4,FR!I16,IF(cal!$S$7=5,NR!I16,IF(cal!$S$7=6,SP!I16,)))))) -> 0 | J16: =IF($S$7=1,NL!J16,IF(cal!$S$7=2,EN!J16,IF(cal!$S$7=3,DE!J16,IF(cal!$S$7=4,FR!J16,IF(cal!$S$7=5,NR!J16,IF(cal!$S$7=6,SP!J16,)))))) -> 0 | K16: =IF($S$7=1,NL!K16,IF(cal!$S$7=2,EN!K16,IF(cal!$S$7=3,DE!K16,IF(cal!$S$7=4,FR!K16,IF(cal!$S$7=5,NR!K16,IF(cal!$S$7=6,SP!K16,)))))) -> 0 | L16: =IF($S$7=1,NL!L16,IF(cal!$S$7=2,EN!L16,IF(cal!$S$7=3,DE!L16,IF(cal!$S$7=4,FR!L16,IF(cal!$S$7=5,NR!L16,IF(cal!$S$7=6,SP!L16,)))))) -> 0 | M16: =IF($S$7=1,NL!M16,IF(cal!$S$7=2,EN!M16,IF(cal!$S$7=3,DE!M16,IF(cal!$S$7=4,FR!M16,IF(cal!$S$7=5,NR!M16,IF(cal!$S$7=6,SP!M16,)))))) -> 0 | N16: =IF($S$7=1,NL!N16,IF(cal!$S$7=2,EN!N16,IF(cal!$S$7=3,DE!N16,IF(cal!$S$7=4,FR!N16,IF(cal!$S$7=5,NR!N16,IF(cal!$S$7=6,SP!N16,)))))) -> 0 | O16: =IF($S$7=1,NL!O16,IF(cal!$S$7=2,EN!O16,IF(cal!$S$7=3,DE!O16,IF(cal!$S$7=4,FR!O16,IF(cal!$S$7=5,NR!O16,IF(cal!$S$7=6,SP!O16,)))))) -> 0 | P16: =IF($S$7=1,NL!P16,IF(cal!$S$7=2,EN!P16,IF(cal!$S$7=3,DE!P16,IF(cal!$S$7=4,FR!P16,IF(cal!$S$7=5,NR!P16,IF(cal!$S$7=6,SP!P16,)))))) -> 0 | S16: n-value | W16: =IF('Briza 12'!$K$4=cal!$X2,1,IF('Briza 12'!$K$4=cal!$X3,2,IF('Briza 12'!$K$4=cal!$X4,3,IF('Briza 12'!$K$4=cal!$X5,4,IF('Briza 12'!$K$4=cal!$X6,5,IF('Briza 12'!$K$4=cal!$X7,6,IF('Briza 12'!$K$4=cal!$X8,7,IF('Briza 12'!$K$4=cal!$X9,8,)))))))) -> 3 | AE16: Briza 12 H38 2P built-in | AL16: Briza 12 H38 4P built-in | AS16: Briza 12 H41 2P casing | AZ16: Briza 12 H41 4P casing | BG16: Briza 12 H52 2P built-in | BN16: Briza 12 H52 4P built-in | BU16: Briza 12 H55 2P casing | CB16: Briza 12 H55 4P casing
B17: 20% | C17: 2 | D17: =(($W$17*$C17^4+$W$18*$C17^3+$W$19*$C17^2+$W$20*$C17+$W$21)*((((Tv_heat-Tr_heat)/LN((Tv_heat-Tl_heat)/(Tr_heat-Tl_heat)))/((75-65)/LN((75-20)/(65-20))))^$S17))*$D$14*$AA$11 -> 903 | E17: =ROUND(((D17/$D$14)/((Tv_heat-Tr_heat)*1.163))*$E$14,IF($W$4=1,0,IF($W$4=2,2))) -> 78 | F17: =($X$18*(E17/$E$14)^$X$20)*$F$14 -> 0.19 | G17: =(($Y$17*$C17^4+$Y$18*$C17^3+$Y$19*$C17^2+$Y$20*$C17+$Y$21)*((((Tv_cool-Tr_cool)/LN((Tv_cool-Tl_cool)/(Tr_cool-Tl_cool)))/((16-18)/LN((16-27)/(18-27))))^S17))*$G$14*$AA$11 -> 160 | H17: =((G17/$G$14)/(IF((237.3*LN((RH*EXP(17.27*(Tl_cool/(Tl_cool+237.3))))))/(17.27-LN((RH*EXP(17.27*(Tl_cool/(Tl_cool+237.3))))))<((Tv_cool+Tr_cool)/2),1,IF(1/(1+((2258*((0.622/((p_atm/(1*611*EXP(17.27*(((Tv_cool+Tr_cool)/2)/(((Tv_cool+Tr_cool)/2)+237.3))))))-1)*1000-(0.622/((p_atm/(RH*611*EXP(17.27*(Tl_cool/(Tl_cool+237.3))))))-1)*1000))/(1005*(((Tv_cool+Tr_cool)/2)-Tl_cool))))*1.039+((-0.000729*$C17+0.001448)*(Tl_cool-((Tv_cool+Tr_cool)/2))+(0.016908*$C17-0.033574))*1.039>1,1,1/(1+((2258*((0.622/((p_atm/(1*611*EXP(17.27*(((Tv_cool+Tr_cool)/2)/(((Tv_cool+Tr_cool)/2)+237.3))))))-1)*1000-(0.622/((p_atm/(RH*611*EXP(17.27*(Tl_cool/(Tl_cool+237.3))))))-1)*1000))/(1005*(((Tv_cool+Tr_cool)/2)-Tl_cool))))*1.039+((-0.000729*$C17+0.001448)*(Tl_cool-((Tv_cool+Tr_cool)/2))+(0.016908*$C17-0.033574))*1.039))))*$H$14 -> 195 | I17: =ROUND(((H17/$H$14)/((Tr_cool-Tv_cool)*1.163))*$I$14,IF($W$4=1,0,IF($W$4=2,2))) -> 28 | J17: =($Z$18*(I17/$I$14)^$Z$20)*$J$14 -> 0.03 | K17: =L17-8 -> 18.5 | L17: =AA17 -> 26.5 | M17: =AB17 -> 1.6 | N17: =AC17*$N$14 -> 64 | O17: =(Tl_heat+(($D17/$G$14)/(1006*$N17*$K$14)))*(0.05*$C17+0.7)*$M$14+$O$14 -> 49.5 | P17: =(Tl_cool-(($G17/$G$14)/(1006*$N17*$K$14)))*$M$14+$O$14 -> 17.6 | S17: 1.000 | W17: =IF($W$16=1,AE17,IF($W$16=2,AL17,IF($W$16=3,AS17,IF($W$16=4,AZ17,IF($W$16=5,BG17,IF($W$16=6,BN17,IF($W$16=7,BU17,IF($W$16=8,CB17)))))))) -> 0.007426362652 | X17: =IF($W$16=1,AF17,IF($W$16=2,AM17,IF($W$16=3,AT17,IF($W$16=4,BA17,IF($W$16=5,BH17,IF($W$16=6,BO17,IF($W$16=7,BV17,IF($W$16=8,CC17)))))))) -> a | Y17: =IF($W$16=1,AG17,IF($W$16=2,AN17,IF($W$16=3,AU17,IF($W$16=4,BB17,IF($W$16=5,BI17,IF($W$16=6,BP17,IF($W$16=7,BW17,IF($W$16=8,CD17)))))))) -> 0 | Z17: =IF($W$16=1,AH17,IF($W$16=2,AO17,IF($W$16=3,AV17,IF($W$16=4,BC17,IF($W$16=5,BJ17,IF($W$16=6,BQ17,IF($W$16=7,BX17,IF($W$16=8,CE17)))))))) -> a | AA17: =IF($W$16=1,AI17,IF($W$16=2,AP17,IF($W$16=3,AW17,IF($W$16=4,BD17,IF($W$16=5,BK17,IF($W$16=6,BR17,IF($W$16=7,BY17,IF($W$16=8,CF17)))))))) -> 26.5 | AB17: =IF($W$16=1,AJ17,IF($W$16=2,AQ17,IF($W$16=3,AX17,IF($W$16=4,BE17,IF($W$16=5,BL17,IF($W$16=6,BS17,IF($W$16=7,BZ17,IF($W$16=8,CG17)))))))) -> 1.6 | AC17: =IF($W$16=1,AK17,IF($W$16=2,AR17,IF($W$16=3,AY17,IF($W$16=4,BF17,IF($W$16=5,BM17,IF($W$16=6,BT17,IF($W$16=7,CA17,IF($W$16=8,CH17)))))))) -> 64 | AD17: c | AE17: -0.05696712201 | AF17: a | AH17: a | AI17: 27.0 | AJ17: 1.6 | AK17: 70 | AM17: a | AO17: a | AP17: =AI17 -> 27.0 | AQ17: 1.8 | AR17: 32 | AS17: 0.007426362652 | AT17: a | AV17: a | AW17: 26.5 | AX17: =AJ17 -> 1.6 | AY17: 64 | AZ17: -0.30147361 | BA17: a | BC17: a | BD17: =AW17 -> 26.5 | BE17: =AQ17 -> 1.8 | BF17: 29 | BG17: 0.6980955656 | BH17: a | BI17: -0.05708272495 | BJ17: a | BK17: 29.0 | BL17: 2.0 | BM17: 89 | BO17: a | BP17: 0.04673112325 | BQ17: a | BR17: =BK17 -> 29.0 | BS17: 1.6 | BT17: 30 | BV17: a | BW17: -0.0010144326 | BX17: a | BY17: 27.2 | BZ17: =BL17 -> 2.0 | CA17: 81 | CB17: -0.2429220968 | CC17: a | CE17: a | CF17: =BY17 -> 27.2 | CG17: =BS17 -> 1.6 | CH17: 27
B18: 40% | C18: 4 | D18: =(($W$17*$C18^4+$W$18*$C18^3+$W$19*$C18^2+$W$20*$C18+$W$21)*((((Tv_heat-Tr_heat)/LN((Tv_heat-Tl_heat)/(Tr_heat-Tl_heat)))/((75-65)/LN((75-20)/(65-20))))^1))*$D$14*$AA$11 -> 1035 | E18: =ROUND(((D18/$D$14)/((Tv_heat-Tr_heat)*1.163))*$E$14,IF($W$4=1,0,IF($W$4=2,2))) -> 89 | F18: =($X$18*(E18/$E$14)^$X$20)*$F$14 -> 0.24 | G18: =(($Y$17*$C18^4+$Y$18*$C18^3+$Y$19*$C18^2+$Y$20*$C18+$Y$21)*((((Tv_cool-Tr_cool)/LN((Tv_cool-Tl_cool)/(Tr_cool-Tl_cool)))/((16-18)/LN((16-27)/(18-27))))^S18))*$G$14*$AA$11 -> 186 | H18: =((G18/$G$14)/(IF((237.3*LN((RH*EXP(17.27*(Tl_cool/(Tl_cool+237.3))))))/(17.27-LN((RH*EXP(17.27*(Tl_cool/(Tl_cool+237.3))))))<((Tv_cool+Tr_cool)/2),1,IF(1/(1+((2258*((0.622/((p_atm/(1*611*EXP(17.27*(((Tv_cool+Tr_cool)/2)/(((Tv_cool+Tr_cool)/2)+237.3))))))-1)*1000-(0.622/((p_atm/(RH*611*EXP(17.27*(Tl_cool/(Tl_cool+237.3))))))-1)*1000))/(1005*(((Tv_cool+Tr_cool)/2)-Tl_cool))))*1.039+((-0.000729*$C18+0.001448)*(Tl_cool-((Tv_cool+Tr_cool)/2))+(0.016908*$C18-0.033574))*1.039>1,1,1/(1+((2258*((0.622/((p_atm/(1*611*EXP(17.27*(((Tv_cool+Tr_cool)/2)/(((Tv_cool+Tr_cool)/2)+237.3))))))-1)*1000-(0.622/((p_atm/(RH*611*EXP(17.27*(Tl_cool/(Tl_cool+237.3))))))-1)*1000))/(1005*(((Tv_cool+Tr_cool)/2)-Tl_cool))))*1.039+((-0.000729*$C18+0.001448)*(Tl_cool-((Tv_cool+Tr_cool)/2))+(0.016908*$C18-0.033574))*1.039))))*$H$14 -> 223 | I18: =ROUND(((H18/$H$14)/((Tr_cool-Tv_cool)*1.163))*$I$14,IF($W$4=1,0,IF($W$4=2,2))) -> 32 | J18: =($Z$18*(I18/$I$14)^$Z$20)*$J$14 -> 0.04 | K18: =L18-8 -> 29.4 | L18: =AA18 -> 37.4 | M18: =AB18 -> 2.6 | N18: =AC18*$N$14 -> 101 | O18: =(Tl_heat+(($D18/$G$14)/(1006*$N18*$K$14)))*(0.05*$C18+0.7)*$M$14+$O$14 -> 45.4 | P18: =(Tl_cool-(($G18/$G$14)/(1006*$N18*$K$14)))*$M$14+$O$14 -> 19.5 | S18: 1.000 | W18: =IF($W$16=1,AE18,IF($W$16=2,AL18,IF($W$16=3,AS18,IF($W$16=4,AZ18,IF($W$16=5,BG18,IF($W$16=6,BN18,IF($W$16=7,BU18,IF($W$16=8,CB18)))))))) -> 0.211738768 | X18: 6.227681964e-05 | Y18: -0.03009975514 | Z18: 6.227681964e-05 | AA18: 37.4 | AB18: 2.6 | AC18: 101 | AD18: d | AE18: 2.158567173 | AF18: 6.227681964e-05 | AH18: =AF18 -> 6.227681964e-05 | AI18: 33.2 | AJ18: 2.6 | AK18: 111 | AL18: 0.5102383173 | AM18: =AF18 -> 6.227681964e-05 | AO18: =AH18 -> 6.227681964e-05 | AP18: =AI18 -> 33.2 | AQ18: 3.0 | AR18: 67 | AS18: 0.211738768 | AT18: =AF18 -> 6.227681964e-05 | AU18: -0.03009975514 | AV18: =AO18 -> 6.227681964e-05 | AW18: 37.4 | AX18: =AJ18 -> 2.6 | AY18: 101 | AZ18: 8.050935653 | BA18: =AF18 -> 6.227681964e-05 | BC18: =AH18 -> 6.227681964e-05 | BD18: =AW18 -> 37.4 | BE18: =AQ18 -> 3.0 | BF18: 61 | BG18: -17.60969186 | BH18: 0.0001326354787 | BI18: 1.082559258 | BJ18: =BH18 -> 0.0001326354787 | BK18: 35.0 | BL18: 3.2 | BM18: 130 | BN18: 0.3018078854 | BO18: =AF18 -> 6.227681964e-05 | BP18: -1.196445701 | BQ18: =BJ18 -> 0.0001326354787 | BR18: =BK18 -> 35.0 | BS18: 2.2 | BT18: 74 | BV18: =BH18 -> 0.0001326354787 | BW18: -0.002007032122 | BX18: =BJ18 -> 0.0001326354787 | BY18: 33.2 | BZ18: =BL18 -> 3.2 | CA18: 118 | CB18: 6.22880444 | CC18: =BO18 -> 6.227681964e-05 | CD18: -0.1004755637 | CE18: =BQ18 -> 0.0001326354787 | CF18: =BY18 -> 33.2 | CG18: =BS18 -> 2.2 | CH18: 67
B19: 60% | C19: 6 | D19: =(($W$17*$C19^4+$W$18*$C19^3+$W$19*$C19^2+$W$20*$C19+$W$21)*((((Tv_heat-Tr_heat)/LN((Tv_heat-Tl_heat)/(Tr_heat-Tl_heat)))/((75-65)/LN((75-20)/(65-20))))^1))*$D$14*$AA$11 -> 1194 | E19: =ROUND(((D19/$D$14)/((Tv_heat-Tr_heat)*1.163))*$E$14,IF($W$4=1,0,IF($W$4=2,2))) -> 103 | F19: 0.31 | G19: =(($Y$17*$C19^4+$Y$18*$C19^3+$Y$19*$C19^2+$Y$20*$C19+$Y$21)*((((Tv_cool-Tr_cool)/LN((Tv_cool-Tl_cool)/(Tr_cool-Tl_cool)))/((16-18)/LN((16-27)/(18-27))))^S19))*$G$14*$AA$11 -> 219 | H19: =((G19/$G$14)/(IF((237.3*LN((RH*EXP(17.27*(Tl_cool/(Tl_cool+237.3))))))/(17.27-LN((RH*EXP(17.27*(Tl_cool/(Tl_cool+237.3))))))<((Tv_cool+Tr_cool)/2),1,IF(1/(1+((2258*((0.622/((p_atm/(1*611*EXP(17.27*(((Tv_cool+Tr_cool)/2)/(((Tv_cool+Tr_cool)/2)+237.3))))))-1)*1000-(0.622/((p_atm/(RH*611*EXP(17.27*(Tl_cool/(Tl_cool+237.3))))))-1)*1000))/(1005*(((Tv_cool+Tr_cool)/2)-Tl_cool))))*1.039+((-0.000729*$C19+0.001448)*(Tl_cool-((Tv_cool+Tr_cool)/2))+(0.016908*$C19-0.033574))*1.039>1,1,1/(1+((2258*((0.622/((p_atm/(1*611*EXP(17.27*(((Tv_cool+Tr_cool)/2)/(((Tv_cool+Tr_cool)/2)+237.3))))))-1)*1000-(0.622/((p_atm/(RH*611*EXP(17.27*(Tl_cool/(Tl_cool+237.3))))))-1)*1000))/(1005*(((Tv_cool+Tr_cool)/2)-Tl_cool))))*1.039+((-0.000729*$C19+0.001448)*(Tl_cool-((Tv_cool+Tr_cool)/2))+(0.016908*$C19-0.033574))*1.039))))*$H$14 -> 259 | I19: =ROUND(((H19/$H$14)/((Tr_cool-Tv_cool)*1.163))*$I$14,IF($W$4=1,0,IF($W$4=2,2))) -> 37 | J19: 0.05 | K19: 31.3 | L19: 39.3 | M19: 4.3 | N19: 141 | O19: =(Tl_heat+(($D19/$G$14)/(1006*$N19*$K$14)))*(0.05*$C19+0.7)*$M$14+$O$14 -> 45.2 | P19: =(Tl_cool-(($G19/$G$14)/(1006*$N19*$K$14)))*$M$14+$O$14 -> 20.4 | S19: 1.000 | W19: 0.194898332 | X19: b | Y19: 0.9305607865 | Z19: b | AA19: 39.3 | AB19: 4.3 | AC19: 141 | AD19: e | AE19: -18.8972888 | AF19: b | AG19: 0.1037363524 | AH19: b | AI19: 40.5 | AJ19: 4.3 | AK19: 155 | AL19: -4.113114629 | AM19: b | AN19: 0.2246738636 | AO19: b | AP19: 40.5 | AQ19: 4.8 | AR19: 95 | AS19: 0.194898332 | AT19: b | AU19: 0.9305607865 | AV19: b | AW19: 39.3 | AX19: 4.3 | AY19: 141 | AZ19: -70.67484161 | BA19: b | BB19: 0.2160051065 | BC19: b | BD19: 39.3 | BE19: 4.8 | BF19: 86 | BG19: 154.9581326 | BH19: b | BI19: -6.145257571 | BJ19: b | BK19: 41.9 | BL19: 5.5 | BM19: 169 | BN19: -1.147072759 | BO19: b | BP19: 10.64850648 | BQ19: b | BR19: 41.9 | BS19: 3.6 | BT19: 118 | BU19: -0.3566357516 | BV19: b | BW19: -0.07211647375 | BX19: b | BY19: 40.2 | BZ19: 5.5 | CA19: 154 | CB19: -50.90190697 | CC19: b | CD19: 1.851640222 | CE19: b | CF19: 40.2 | CG19: 3.6 | CH19: 107
B20: 80% | C20: 8 | D20: =(($W$17*$C20^4+$W$18*$C20^3+$W$19*$C20^2+$W$20*$C20+$W$21)*((((Tv_heat-Tr_heat)/LN((Tv_heat-Tl_heat)/(Tr_heat-Tl_heat)))/((75-65)/LN((75-20)/(65-20))))^1))*$D$14*$AA$11 -> 1399 | E20: =ROUND(((D20/$D$14)/((Tv_heat-Tr_heat)*1.163))*$E$14,IF($W$4=1,0,IF($W$4=2,2))) -> 120 | F20: 0.41 | G20: =(($Y$17*$C20^4+$Y$18*$C20^3+$Y$19*$C20^2+$Y$20*$C20+$Y$21)*((((Tv_cool-Tr_cool)/LN((Tv_cool-Tl_cool)/(Tr_cool-Tl_cool)))/((16-18)/LN((16-27)/(18-27))))^S20))*$G$14*$AA$11 -> 256 | H20: =((G20/$G$14)/(IF((237.3*LN((RH*EXP(17.27*(Tl_cool/(Tl_cool+237.3))))))/(17.27-LN((RH*EXP(17.27*(Tl_cool/(Tl_cool+237.3))))))<((Tv_cool+Tr_cool)/2),1,IF(1/(1+((2258*((0.622/((p_atm/(1*611*EXP(17.27*(((Tv_cool+Tr_cool)/2)/(((Tv_cool+Tr_cool)/2)+237.3))))))-1)*1000-(0.622/((p_atm/(RH*611*EXP(17.27*(Tl_cool/(Tl_cool+237.3))))))-1)*1000))/(1005*(((Tv_cool+Tr_cool)/2)-Tl_cool))))*1.039+((-0.000729*$C20+0.001448)*(Tl_cool-((Tv_cool+Tr_cool)/2))+(0.016908*$C20-0.033574))*1.039>1,1,1/(1+((2258*((0.622/((p_atm/(1*611*EXP(17.27*(((Tv_cool+Tr_cool)/2)/(((Tv_cool+Tr_cool)/2)+237.3))))))-1)*1000-(0.622/((p_atm/(RH*611*EXP(17.27*(Tl_cool/(Tl_cool+237.3))))))-1)*1000))/(1005*(((Tv_cool+Tr_cool)/2)-Tl_cool))))*1.039+((-0.000729*$C20+0.001448)*(Tl_cool-((Tv_cool+Tr_cool)/2))+(0.016908*$C20-0.033574))*1.039))))*$H$14 -> 298 | I20: =ROUND(((H20/$H$14)/((Tr_cool-Tv_cool)*1.163))*$I$14,IF($W$4=1,0,IF($W$4=2,2))) -> 43 | J20: 0.06 | K20: 37.3 | L20: 45.3 | M20: 7.2 | N20: 178 | O20: =(Tl_heat+(($D20/$G$14)/(1006*$N20*$K$14)))*(0.05*$C20+0.7)*$M$14+$O$14 -> 47.7 | P20: =(Tl_cool-(($G20/$G$14)/(1006*$N20*$K$14)))*$M$14+$O$14 -> 20.7 | S20: 1.000 | W20: 57.97328441 | X20: 1.835835009 | Y20: 4.904703067 | Z20: 1.835835009 | AA20: 45.3 | AB20: 7.2 | AC20: 178 | AD20: f | AE20: 134.6998425 | AF20: 1.835835009 | AG20: 14.04547004 | AH20: =AF20 -> 1.835835009 | AI20: 47.0 | AJ20: 7.2 | AK20: 196 | AL20: 69.71259255 | AM20: =AF20 -> 1.835835009 | AN20: 8.287772014 | AO20: =AH20 -> 1.835835009 | AP20: 47.0 | AQ20: 8.0 | AR20: 128 | AS20: 57.97328441 | AT20: =AF20 -> 1.835835009 | AU20: 4.904703067 | AV20: =AO20 -> 1.835835009 | AW20: 45.3 | AX20: 7.2 | AY20: 178 | AZ20: 305.7804913 | BA20: =AF20 -> 1.835835009 | BB20: 7.206334014 | BC20: =AH20 -> 1.835835009 | BD20: 45.3 | BE20: 8.0 | BF20: 116 | BG20: -394.9724174 | BH20: 1.813689327 | BI20: 31.00680881 | BJ20: =BH20 -> 1.813689327 | BK20: 47.7 | BL20: 9.6 | BM20: 212 | BN20: 40.96530403 | BO20: =AF20 -> 1.835835009 | BP20: -22.92309547 | BQ20: =BJ20 -> 1.813689327 | BR20: 47.7 | BS20: 6.3 | BT20: 151 | BU20: 152.8798158 | BV20: =BH20 -> 1.813689327 | BW20: 22.6879858 | BX20: =BJ20 -> 1.813689327 | BY20: 46.1 | BZ20: 9.6 | CA20: 193 | CB20: 203.129884 | CC20: =BO20 -> 1.835835009 | CD20: 4.151420158 | CE20: =BQ20 -> 1.813689327 | CF20: 46.1 | CG20: 6.3 | CH20: 137
B21: 100% | C21: 10 | D21: =(($W$17*$C21^4+$W$18*$C21^3+$W$19*$C21^2+$W$20*$C21+$W$21)*((((Tv_heat-Tr_heat)/LN((Tv_heat-Tl_heat)/(Tr_heat-Tl_heat)))/((75-65)/LN((75-20)/(65-20))))^1))*$D$14*$AA$11 -> 1669 | E21: =ROUND(((D21/$D$14)/((Tv_heat-Tr_heat)*1.163))*$E$14,IF($W$4=1,0,IF($W$4=2,2))) -> 144 | F21: 0.57 | G21: =(($Y$17*$C21^4+$Y$18*$C21^3+$Y$19*$C21^2+$Y$20*$C21+$Y$21)*((((Tv_cool-Tr_cool)/LN((Tv_cool-Tl_cool)/(Tr_cool-Tl_cool)))/((16-18)/LN((16-27)/(18-27))))^S21))*$G$14*$AA$11 -> 296 | H21: =((G21/$G$14)/(IF((237.3*LN((RH*EXP(17.27*(Tl_cool/(Tl_cool+237.3))))))/(17.27-LN((RH*EXP(17.27*(Tl_cool/(Tl_cool+237.3))))))<((Tv_cool+Tr_cool)/2),1,IF(1/(1+((2258*((0.622/((p_atm/(1*611*EXP(17.27*(((Tv_cool+Tr_cool)/2)/(((Tv_cool+Tr_cool)/2)+237.3))))))-1)*1000-(0.622/((p_atm/(RH*611*EXP(17.27*(Tl_cool/(Tl_cool+237.3))))))-1)*1000))/(1005*(((Tv_cool+Tr_cool)/2)-Tl_cool))))*1.039+((-0.000729*$C21+0.001448)*(Tl_cool-((Tv_cool+Tr_cool)/2))+(0.016908*$C21-0.033574))*1.039>1,1,1/(1+((2258*((0.622/((p_atm/(1*611*EXP(17.27*(((Tv_cool+Tr_cool)/2)/(((Tv_cool+Tr_cool)/2)+237.3))))))-1)*1000-(0.622/((p_atm/(RH*611*EXP(17.27*(Tl_cool/(Tl_cool+237.3))))))-1)*1000))/(1005*(((Tv_cool+Tr_cool)/2)-Tl_cool))))*1.039+((-0.000729*$C21+0.001448)*(Tl_cool-((Tv_cool+Tr_cool)/2))+(0.016908*$C21-0.033574))*1.039))))*$H$14 -> 338 | I21: =ROUND(((H21/$H$14)/((Tr_cool-Tv_cool)*1.163))*$I$14,IF($W$4=1,0,IF($W$4=2,2))) -> 48 | J21: 0.08 | K21: 42.5 | L21: 50.5 | M21: 13.0 | N21: 214 | O21: =(Tl_heat+(($D21/$G$14)/(1006*$N21*$K$14)))*(0.05*$C21+0.7)*$M$14+$O$14 -> 51.8 | P21: =(Tl_cool-(($G21/$G$14)/(1006*$N21*$K$14)))*$M$14+$O$14 -> 20.9 | S21: 1.000 | W21: 784.0931206 | X21: 0 | Y21: 102.0758964 | Z21: 0 | AA21: 50.5 | AB21: 13 | AC21: 214 | AD21: g | AE21: 789.8652092 | AG21: 84.4853064 | AI21: 52.0 | AJ21: 13.0 | AK21: 235 | AL21: 672.4156235 | AN21: 82.54900128 | AP21: 52.0 | AQ21: 13.7 | AR21: 157 | AS21: 784.0931206 | AU21: 102.0758964 | AW21: 50.5 | AX21: 13.0 | AY21: 214 | AZ21: 309.527713 | BB21: 77.12870516 | BD21: 50.5 | BE21: 13.7 | BF21: 143 | BG21: 1799.570319 | BI21: 141.6189399 | BK21: 52.0 | BL21: 16.8 | BM21: 250 | BN21: 560.4281733 | BP21: 155.2936679 | BR21: 52.0 | BS21: 10.3 | BT21: 188 | BU21: 1095.212852 | BW21: 124.6876373 | BY21: 50.5 | BZ21: 16.8 | CA21: 228 | CB21: 361.3522797 | CD21: 122.8550146 | CF21: 50.5 | CG21: 10.3 | CH21: 171
B22: =IF($S$7=1,NL!B22,IF(cal!$S$7=2,EN!B22,IF(cal!$S$7=3,DE!B22,IF(cal!$S$7=4,FR!B22,IF(cal!$S$7=5,NR!B22,IF(cal!$S$7=6,SP!B22,IF(cal!$S$7=7,SW!B22,IF(cal!$S$7=8,TS!B22,IF(cal!$S$7=9,ExtraTaal1!B22,IF(cal!$S$7=10,ExtraTaal2!B22,IF(cal!$S$7=11,ExtraTaal3!B22,))))))))))) -> Briza 12 hoogte 41 cm breedte 14 cm lengte 95 cm (Type 2) | C22: =IF($S$7=1,NL!C22,IF(cal!$S$7=2,EN!C22,IF(cal!$S$7=3,DE!C22,IF(cal!$S$7=4,FR!C22,IF(cal!$S$7=5,NR!C22,IF(cal!$S$7=6,SP!C22,)))))) -> 0 | D22: =IF($S$7=1,NL!D22,IF(cal!$S$7=2,EN!D22,IF(cal!$S$7=3,DE!D22,IF(cal!$S$7=4,FR!D22,IF(cal!$S$7=5,NR!D22,IF(cal!$S$7=6,SP!D22,)))))) -> 0 | E22: =IF($S$7=1,NL!E22,IF(cal!$S$7=2,EN!E22,IF(cal!$S$7=3,DE!E22,IF(cal!$S$7=4,FR!E22,IF(cal!$S$7=5,NR!E22,IF(cal!$S$7=6,SP!E22,)))))) -> 0 | F22: =IF($S$7=1,NL!F22,IF(cal!$S$7=2,EN!F22,IF(cal!$S$7=3,DE!F22,IF(cal!$S$7=4,FR!F22,IF(cal!$S$7=5,NR!F22,IF(cal!$S$7=6,SP!F22,)))))) -> 0 | G22: =IF($S$7=1,NL!G22,IF(cal!$S$7=2,EN!G22,IF(cal!$S$7=3,DE!G22,IF(cal!$S$7=4,FR!G22,IF(cal!$S$7=5,NR!G22,IF(cal!$S$7=6,SP!G22,)))))) -> 0 | H22: =IF($S$7=1,NL!H22,IF(cal!$S$7=2,EN!H22,IF(cal!$S$7=3,DE!H22,IF(cal!$S$7=4,FR!H22,IF(cal!$S$7=5,NR!H22,IF(cal!$S$7=6,SP!H22,)))))) -> 0 | I22: =IF($S$7=1,NL!I22,IF(cal!$S$7=2,EN!I22,IF(cal!$S$7=3,DE!I22,IF(cal!$S$7=4,FR!I22,IF(cal!$S$7=5,NR!I22,IF(cal!$S$7=6,SP!I22,)))))) -> 0 | J22: =IF($S$7=1,NL!J22,IF(cal!$S$7=2,EN!J22,IF(cal!$S$7=3,DE!J22,IF(cal!$S$7=4,FR!J22,IF(cal!$S$7=5,NR!J22,IF(cal!$S$7=6,SP!J22,)))))) -> 0 | K22: =IF($S$7=1,NL!K22,IF(cal!$S$7=2,EN!K22,IF(cal!$S$7=3,DE!K22,IF(cal!$S$7=4,FR!K22,IF(cal!$S$7=5,NR!K22,IF(cal!$S$7=6,SP!K22,)))))) -> 0 | L22: =IF($S$7=1,NL!L22,IF(cal!$S$7=2,EN!L22,IF(cal!$S$7=3,DE!L22,IF(cal!$S$7=4,FR!L22,IF(cal!$S$7=5,NR!L22,IF(cal!$S$7=6,SP!L22,)))))) -> 0 | M22: =IF($S$7=1,NL!M22,IF(cal!$S$7=2,EN!M22,IF(cal!$S$7=3,DE!M22,IF(cal!$S$7=4,FR!M22,IF(cal!$S$7=5,NR!M22,IF(cal!$S$7=6,SP!M22,)))))) -> 0 | N22: =IF($S$7=1,NL!N22,IF(cal!$S$7=2,EN!N22,IF(cal!$S$7=3,DE!N22,IF(cal!$S$7=4,FR!N22,IF(cal!$S$7=5,NR!N22,IF(cal!$S$7=6,SP!N22,)))))) -> 0 | O22: =IF($S$7=1,NL!O22,IF(cal!$S$7=2,EN!O22,IF(cal!$S$7=3,DE!O22,IF(cal!$S$7=4,FR!O22,IF(cal!$S$7=5,NR!O22,IF(cal!$S$7=6,SP!O22,)))))) -> 0 | P22: =IF($S$7=1,NL!P22,IF(cal!$S$7=2,EN!P22,IF(cal!$S$7=3,DE!P22,IF(cal!$S$7=4,FR!P22,IF(cal!$S$7=5,NR!P22,IF(cal!$S$7=6,SP!P22,)))))) -> 0 | S22: n-value | W22: H | X22: 41.0 | Y22: B | Z22: 14.0 | AA22: L | AB22: 75.0 | AE22: H | AF22: =38*IF($W$4=1,1,IF($W$4=2,1/2.54)) -> 38 | AG22: B | AH22: =12*IF($W$4=1,1,IF($W$4=2,1/2.54)) -> 12 | AI22: L | AJ22: =52*IF($W$4=1,1,IF($W$4=2,1/2.54)) -> 52 | AL22: H | AM22: =38*IF($W$4=1,1,IF($W$4=2,1/2.54)) -> 38 | AN22: B | AO22: =12*IF($W$4=1,1,IF($W$4=2,1/2.54)) -> 12 | AP22: L | AQ22: =52*IF($W$4=1,1,IF($W$4=2,1/2.54)) -> 52 | AS22: H | AT22: =41*IF($W$4=1,1,IF($W$4=2,1/2.54)) -> 41 | AU22: B | AV22: =14*IF($W$4=1,1,IF($W$4=2,1/2.54)) -> 14 | AW22: L | AX22: =75*IF($W$4=1,1,IF($W$4=2,1/2.54)) -> 75 | AZ22: H | BA22: =41*IF($W$4=1,1,IF($W$4=2,1/2.54)) -> 41 | BB22: B | BC22: =14*IF($W$4=1,1,IF($W$4=2,1/2.54)) -> 14 | BD22: L | BE22: =75*IF($W$4=1,1,IF($W$4=2,1/2.54)) -> 75 | BG22: H | BH22: =52*IF($W$4=1,1,IF($W$4=2,1/2.54)) -> 52 | BI22: B | BJ22: =12*IF($W$4=1,1,IF($W$4=2,1/2.54)) -> 12 | BK22: L | BL22: =52*IF($W$4=1,1,IF($W$4=2,1/2.54)) -> 52 | BN22: H | BO22: =52*IF($W$4=1,1,IF($W$4=2,1/2.54)) -> 52 | BP22: B | BQ22: =12*IF($W$4=1,1,IF($W$4=2,1/2.54)) -> 12 | BR22: L | BS22: =52*IF($W$4=1,1,IF($W$4=2,1/2.54)) -> 52 | BU22: H | BV22: =55*IF($W$4=1,1,IF($W$4=2,1/2.54)) -> 55 | BW22: B | BX22: =14*IF($W$4=1,1,IF($W$4=2,1/2.54)) -> 14 | BY22: L | BZ22: =75*IF($W$4=1,1,IF($W$4=2,1/2.54)) -> 75 | CB22: H | CC22: =55*IF($W$4=1,1,IF($W$4=2,1/2.54)) -> 55 | CD22: B | CE22: =14*IF($W$4=1,1,IF($W$4=2,1/2.54)) -> 14 | CF22: L | CG22: =75*IF($W$4=1,1,IF($W$4=2,1/2.54)) -> 75
B23: 20% | C23: 2 | D23: =(($W$23*$C23^4+$W$24*$C23^3+$W$25*$C23^2+$W$26*$C23+$W$27)*((((Tv_heat-Tr_heat)/LN((Tv_heat-Tl_heat)/(Tr_heat-Tl_heat)))/((75-65)/LN((75-20)/(65-20))))^1))*$D$14*$AA$11 -> 1545 | E23: =ROUND(((D23/$D$14)/((Tv_heat-Tr_heat)*1.163))*$E$14,IF($W$4=1,0,IF($W$4=2,2))) -> 133 | F23: =($X$24*(E23/$E$14)^$X$26)*$F$14 -> 0.64 | G23: =(($Y$23*$C23^4+$Y$24*$C23^3+$Y$25*$C23^2+$Y$26*$C23+$Y$27)*((((Tv_cool-Tr_cool)/LN((Tv_cool-Tl_cool)/(Tr_cool-Tl_cool)))/((16-18)/LN((16-27)/(18-27))))^S23))*$G$14*$AA$11 -> 264 | H23: =((G23/$G$14)/(IF((237.3*LN((RH*EXP(17.27*(Tl_cool/(Tl_cool+237.3))))))/(17.27-LN((RH*EXP(17.27*(Tl_cool/(Tl_cool+237.3))))))<((Tv_cool+Tr_cool)/2),1,IF(1/(1+((2258*((0.622/((p_atm/(1*611*EXP(17.27*(((Tv_cool+Tr_cool)/2)/(((Tv_cool+Tr_cool)/2)+237.3))))))-1)*1000-(0.622/((p_atm/(RH*611*EXP(17.27*(Tl_cool/(Tl_cool+237.3))))))-1)*1000))/(1005*(((Tv_cool+Tr_cool)/2)-Tl_cool))))*1.039+((-0.000729*$C23+0.001448)*(Tl_cool-((Tv_cool+Tr_cool)/2))+(0.016908*$C23-0.033574))*1.039>1,1,1/(1+((2258*((0.622/((p_atm/(1*611*EXP(17.27*(((Tv_cool+Tr_cool)/2)/(((Tv_cool+Tr_cool)/2)+237.3))))))-1)*1000-(0.622/((p_atm/(RH*611*EXP(17.27*(Tl_cool/(Tl_cool+237.3))))))-1)*1000))/(1005*(((Tv_cool+Tr_cool)/2)-Tl_cool))))*1.039+((-0.000729*$C23+0.001448)*(Tl_cool-((Tv_cool+Tr_cool)/2))+(0.016908*$C23-0.033574))*1.039))))*$H$14 -> 323 | I23: =ROUND(((H23/$H$14)/((Tr_cool-Tv_cool)*1.163))*$I$14,IF($W$4=1,0,IF($W$4=2,2))) -> 46 | J23: =($Z$24*(I23/$I$14)^$Z$26)*$J$14 -> 0.09 | K23: =L23-8 -> 24.0 | L23: =AA23 -> 32.0 | M23: =AB23 -> 2.5 | N23: =AC23*$N$14 -> 108 | O23: =(Tl_heat+(($D23/$G$14)/(1006*$N23*$K$14)))*(0.05*$C23+0.7)*$M$14+$O$14 -> 50.0 | P23: =(Tl_cool-((G23/$G$14)/(1006*N23*$K$14)))*$M$14+$O$14 -> 17.7 | S23: 1.000 | W23: =IF($W$16=1,AE23,IF($W$16=2,AL23,IF($W$16=3,AS23,IF($W$16=4,AZ23,IF($W$16=5,BG23,IF($W$16=6,BN23,IF($W$16=7,BU23,IF($W$16=8,CB23)))))))) -> -1.802775579 | X23: =IF($W$16=1,AF23,IF($W$16=2,AM23,IF($W$16=3,AT23,IF($W$16=4,BA23,IF($W$16=5,BH23,IF($W$16=6,BO23,IF($W$16=7,BV23,IF($W$16=8,CC23)))))))) -> a | Y23: =IF($W$16=1,AG23,IF($W$16=2,AN23,IF($W$16=3,AU23,IF($W$16=4,BB23,IF($W$16=5,BI23,IF($W$16=6,BP23,IF($W$16=7,BW23,IF($W$16=8,CD23)))))))) -> 0 | Z23: =IF($W$16=1,AH23,IF($W$16=2,AO23,IF($W$16=3,AV23,IF($W$16=4,BC23,IF($W$16=5,BJ23,IF($W$16=6,BQ23,IF($W$16=7,BX23,IF($W$16=8,CE23)))))))) -> a | AA23: =IF($W$16=1,AI23,IF($W$16=2,AP23,IF($W$16=3,AW23,IF($W$16=4,BD23,IF($W$16=5,BK23,IF($W$16=6,BR23,IF($W$16=7,BY23,IF($W$16=8,CF23)))))))) -> 32 | AB23: =IF($W$16=1,AJ23,IF($W$16=2,AQ23,IF($W$16=3,AX23,IF($W$16=4,BE23,IF($W$16=5,BL23,IF($W$16=6,BS23,IF($W$16=7,BZ23,IF($W$16=8,CG23)))))))) -> 2.5 | AC23: =IF($W$16=1,AK23,IF($W$16=2,AR23,IF($W$16=3,AY23,IF($W$16=4,BF23,IF($W$16=5,BM23,IF($W$16=6,BT23,IF($W$16=7,CA23,IF($W$16=8,CH23)))))))) -> 108 | AD23: c | AE23: -1.396669028 | AF23: a | AH23: a | AI23: 29.5 | AJ23: 2.5 | AK23: 119 | AM23: a | AO23: a | AP23: =AI23 -> 29.5 | AQ23: 2.0 | AR23: 57 | AS23: -1.802775579 | AT23: a | AV23: a | AW23: 32.0 | AX23: =AJ23 -> 2.5 | AY23: 108 | BA23: a | BC23: a | BD23: =AW23 -> 32.0 | BE23: =AQ23 -> 2.0 | BF23: 52 | BG23: 0.4983070998 | BH23: a | BJ23: a | BK23: 29.8 | BL23: 2.2 | BM23: 127 | BN23: -0.175672297 | BO23: a | BQ23: a | BR23: =BK23 -> 29.8 | BS23: 2.1 | BT23: 79 | BV23: a | BX23: a | BY23: 31 | BZ23: =BL23 -> 2.2 | CA23: 116 | CB23: -0.1803034464 | CC23: a | CE23: a | CF23: =BY23 -> 31 | CG23: =BS23 -> 2.1 | CH23: 72
B24: 40% | C24: 4 | D24: =(($W$23*$C24^4+$W$24*$C24^3+$W$25*$C24^2+$W$26*$C24+$W$27)*((((Tv_heat-Tr_heat)/LN((Tv_heat-Tl_heat)/(Tr_heat-Tl_heat)))/((75-65)/LN((75-20)/(65-20))))^1))*$D$14*$AA$11 -> 1699 | E24: =ROUND(((D24/$D$14)/((Tv_heat-Tr_heat)*1.163))*$E$14,IF($W$4=1,0,IF($W$4=2,2))) -> 146 | F24: =($X$24*(E24/$E$14)^$X$26)*$F$14 -> 0.75 | G24: =(($Y$23*$C24^4+$Y$24*$C24^3+$Y$25*$C24^2+$Y$26*$C24+$Y$27)*((((Tv_cool-Tr_cool)/LN((Tv_cool-Tl_cool)/(Tr_cool-Tl_cool)))/((16-18)/LN((16-27)/(18-27))))^S24))*$G$14*$AA$11 -> 300 | H24: =((G24/$G$14)/(IF((237.3*LN((RH*EXP(17.27*(Tl_cool/(Tl_cool+237.3))))))/(17.27-LN((RH*EXP(17.27*(Tl_cool/(Tl_cool+237.3))))))<((Tv_cool+Tr_cool)/2),1,IF(1/(1+((2258*((0.622/((p_atm/(1*611*EXP(17.27*(((Tv_cool+Tr_cool)/2)/(((Tv_cool+Tr_cool)/2)+237.3))))))-1)*1000-(0.622/((p_atm/(RH*611*EXP(17.27*(Tl_cool/(Tl_cool+237.3))))))-1)*1000))/(1005*(((Tv_cool+Tr_cool)/2)-Tl_cool))))*1.039+((-0.000729*$C24+0.001448)*(Tl_cool-((Tv_cool+Tr_cool)/2))+(0.016908*$C24-0.033574))*1.039>1,1,1/(1+((2258*((0.622/((p_atm/(1*611*EXP(17.27*(((Tv_cool+Tr_cool)/2)/(((Tv_cool+Tr_cool)/2)+237.3))))))-1)*1000-(0.622/((p_atm/(RH*611*EXP(17.27*(Tl_cool/(Tl_cool+237.3))))))-1)*1000))/(1005*(((Tv_cool+Tr_cool)/2)-Tl_cool))))*1.039+((-0.000729*$C24+0.001448)*(Tl_cool-((Tv_cool+Tr_cool)/2))+(0.016908*$C24-0.033574))*1.039))))*$H$14 -> 360 | I24: =ROUND(((H24/$H$14)/((Tr_cool-Tv_cool)*1.163))*$I$14,IF($W$4=1,0,IF($W$4=2,2))) -> 52 | J24: =($Z$24*(I24/$I$14)^$Z$26)*$J$14 -> 0.12 | K24: 30.0 | L24: 38.0 | M24: 4.3 | N24: 172 | O24: =(Tl_heat+(($D24/$G$14)/(1006*$N24*$K$14)))*(0.05*$C24+0.7)*$M$14+$O$14 -> 44.4 | P24: =(Tl_cool-((G24/$G$14)/(1006*N24*$K$14)))*$M$14+$O$14 -> 19.8 | S24: 1.000 | W24: 44.48546117 | X24: 8.912587692e-05 | Y24: 0.01476638839 | Z24: 8.912587692e-05 | AA24: 38 | AB24: 4.3 | AC24: 172 | AD24: d | AE24: 38.14334995 | AF24: 8.912587692e-05 | AH24: =AF24 -> 8.912587692e-05 | AI24: 35.5 | AJ24: 4.3 | AK24: 189 | AL24: 1.439101944 | AM24: =AF24 -> 8.912587692e-05 | AN24: 0.09056230583 | AO24: =AH24 -> 8.912587692e-05 | AP24: 35.5 | AQ24: 3.4 | AR24: 101 | AS24: 44.48546117 | AT24: =AF24 -> 8.912587692e-05 | AU24: 0.01476638839 | AV24: =AO24 -> 8.912587692e-05 | AW24: 38.0 | AX24: 4.3 | AY24: 172 | AZ24: 0.9685779642 | BA24: =AF24 -> 8.912587692e-05 | BB24: 0.1360465769 | BC24: =AH24 -> 8.912587692e-05 | BD24: 38.0 | BE24: 3.4 | BF24: 92 | BG24: -13.26322773 | BH24: 0.0001674794288 | BI24: -0.1558033627 | BJ24: =BH24 -> 0.0001674794288 | BK24: 35.2 | BL24: 3.6 | BM24: 193 | BN24: 5.310983637 | BO24: =AF24 -> 8.912587692e-05 | BP24: -0.1358528689 | BQ24: =BJ24 -> 0.0001674794288 | BR24: 35.2 | BS24: 3.4 | BT24: 135 | BU24: -0.3693504667 | BV24: =BH24 -> 0.0001674794288 | BW24: -0.1460590621 | BX24: =BJ24 -> 0.0001674794288 | BY24: 35.8 | BZ24: 3.6 | CA24: 176 | CB24: 5.194823263 | CC24: =BO24 -> 8.912587692e-05 | CD24: -0.1056502059 | CE24: =BQ24 -> 0.0001674794288 | CF24: 35.8 | CG24: 3.4 | CH24: 123
B25: 60% | C25: 6 | D25: =(($W$23*$C25^4+$W$24*$C25^3+$W$25*$C25^2+$W$26*$C25+$W$27)*((((Tv_heat-Tr_heat)/LN((Tv_heat-Tl_heat)/(Tr_heat-Tl_heat)))/((75-65)/LN((75-20)/(65-20))))^1))*$D$14*$AA$11 -> 1797 | E25: =ROUND(((D25/$D$14)/((Tv_heat-Tr_heat)*1.163))*$E$14,IF($W$4=1,0,IF($W$4=2,2))) -> 155 | F25: 0.84 | G25: =(($Y$23*$C25^4+$Y$24*$C25^3+$Y$25*$C25^2+$Y$26*$C25+$Y$27)*((((Tv_cool-Tr_cool)/LN((Tv_cool-Tl_cool)/(Tr_cool-Tl_cool)))/((16-18)/LN((16-27)/(18-27))))^S25))*$G$14*$AA$11 -> 349 | H25: =((G25/$G$14)/(IF((237.3*LN((RH*EXP(17.27*(Tl_cool/(Tl_cool+237.3))))))/(17.27-LN((RH*EXP(17.27*(Tl_cool/(Tl_cool+237.3))))))<((Tv_cool+Tr_cool)/2),1,IF(1/(1+((2258*((0.622/((p_atm/(1*611*EXP(17.27*(((Tv_cool+Tr_cool)/2)/(((Tv_cool+Tr_cool)/2)+237.3))))))-1)*1000-(0.622/((p_atm/(RH*611*EXP(17.27*(Tl_cool/(Tl_cool+237.3))))))-1)*1000))/(1005*(((Tv_cool+Tr_cool)/2)-Tl_cool))))*1.039+((-0.000729*$C25+0.001448)*(Tl_cool-((Tv_cool+Tr_cool)/2))+(0.016908*$C25-0.033574))*1.039>1,1,1/(1+((2258*((0.622/((p_atm/(1*611*EXP(17.27*(((Tv_cool+Tr_cool)/2)/(((Tv_cool+Tr_cool)/2)+237.3))))))-1)*1000-(0.622/((p_atm/(RH*611*EXP(17.27*(Tl_cool/(Tl_cool+237.3))))))-1)*1000))/(1005*(((Tv_cool+Tr_cool)/2)-Tl_cool))))*1.039+((-0.000729*$C25+0.001448)*(Tl_cool-((Tv_cool+Tr_cool)/2))+(0.016908*$C25-0.033574))*1.039))))*$H$14 -> 412 | I25: =ROUND(((H25/$H$14)/((Tr_cool-Tv_cool)*1.163))*$I$14,IF($W$4=1,0,IF($W$4=2,2))) -> 59 | J25: 0.15 | K25: 36.8 | L25: 44.8 | M25: 7.2 | N25: 223 | O25: =(Tl_heat+(($D25/$G$14)/(1006*$N25*$K$14)))*(0.05*$C25+0.7)*$M$14+$O$14 -> 44.0 | P25: =(Tl_cool-((G25/$G$14)/(1006*N25*$K$14)))*$M$14+$O$14 -> 20.3 | S25: 1.000 | W25: -360.6249422 | X25: b | Y25: 0.9525315559 | Z25: b | AA25: 44.8 | AB25: 7.2 | AC25: 223 | AD25: e | AE25: -348.7212625 | AF25: b | AG25: 0.9505010322 | AH25: b | AI25: 42.9 | AJ25: 7.2 | AK25: 245 | AL25: -13.47617652 | AM25: b | AN25: -0.7055344536 | AO25: b | AP25: 42.9 | AQ25: 5.7 | AR25: 158 | AS25: -360.6249422 | AT25: b | AU25: 0.9525315559 | AV25: b | AW25: 44.8 | AX25: 7.2 | AY25: 223 | AZ25: -6.434274913 | BA25: b | BB25: -1.800745182 | BC25: b | BD25: 44.8 | BE25: 5.7 | BF25: 144 | BG25: 122.0580451 | BH25: b | BI25: 3.046235735 | BJ25: b | BK25: 42.6 | BL25: 5.7 | BM25: 262 | BN25: -44.71995446 | BO25: b | BP25: 2.358849175 | BQ25: b | BR25: 42.6 | BS25: 5.9 | BT25: 185 | BU25: 4.060861907 | BV25: b | BW25: 2.421631672 | BX25: b | BY25: 42.4 | BZ25: 5.7 | CA25: 238 | CB25: -41.88656907 | CC25: b | CD25: 1.970736777 | CE25: b | CF25: 42.4 | CG25: 5.9 | CH25: 168
B26: 80% | C26: 8 | D26: =(($W$23*$C26^4+$W$24*$C26^3+$W$25*$C26^2+$W$26*$C26+$W$27)*((((Tv_heat-Tr_heat)/LN((Tv_heat-Tl_heat)/(Tr_heat-Tl_heat)))/((75-65)/LN((75-20)/(65-20))))^1))*$D$14*$AA$11 -> 2243 | E26: =ROUND(((D26/$D$14)/((Tv_heat-Tr_heat)*1.163))*$E$14,IF($W$4=1,0,IF($W$4=2,2))) -> 193 | F26: 1.25 | G26: =(($Y$23*$C26^4+$Y$24*$C26^3+$Y$25*$C26^2+$Y$26*$C26+$Y$27)*((((Tv_cool-Tr_cool)/LN((Tv_cool-Tl_cool)/(Tr_cool-Tl_cool)))/((16-18)/LN((16-27)/(18-27))))^S26))*$G$14*$AA$11 -> 411 | H26: =((G26/$G$14)/(IF((237.3*LN((RH*EXP(17.27*(Tl_cool/(Tl_cool+237.3))))))/(17.27-LN((RH*EXP(17.27*(Tl_cool/(Tl_cool+237.3))))))<((Tv_cool+Tr_cool)/2),1,IF(1/(1+((2258*((0.622/((p_atm/(1*611*EXP(17.27*(((Tv_cool+Tr_cool)/2)/(((Tv_cool+Tr_cool)/2)+237.3))))))-1)*1000-(0.622/((p_atm/(RH*611*EXP(17.27*(Tl_cool/(Tl_cool+237.3))))))-1)*1000))/(1005*(((Tv_cool+Tr_cool)/2)-Tl_cool))))*1.039+((-0.000729*$C26+0.001448)*(Tl_cool-((Tv_cool+Tr_cool)/2))+(0.016908*$C26-0.033574))*1.039>1,1,1/(1+((2258*((0.622/((p_atm/(1*611*EXP(17.27*(((Tv_cool+Tr_cool)/2)/(((Tv_cool+Tr_cool)/2)+237.3))))))-1)*1000-(0.622/((p_atm/(RH*611*EXP(17.27*(Tl_cool/(Tl_cool+237.3))))))-1)*1000))/(1005*(((Tv_cool+Tr_cool)/2)-Tl_cool))))*1.039+((-0.000729*$C26+0.001448)*(Tl_cool-((Tv_cool+Tr_cool)/2))+(0.016908*$C26-0.033574))*1.039))))*$H$14 -> 477 | I26: =ROUND(((H26/$H$14)/((Tr_cool-Tv_cool)*1.163))*$I$14,IF($W$4=1,0,IF($W$4=2,2))) -> 68 | J26: 0.19 | K26: 41.5 | L26: 49.5 | M26: 11.5 | N26: 287 | O26: =(Tl_heat+(($D26/$G$14)/(1006*$N26*$K$14)))*(0.05*$C26+0.7)*$M$14+$O$14 -> 47.6 | P26: =(Tl_cool-((G26/$G$14)/(1006*N26*$K$14)))*$M$14+$O$14 -> 20.7 | S26: 1.000 | W26: 1211.686146 | X26: 1.814809646 | Y26: 6.87886396 | Z26: 1.814809646 | AA26: 49.5 | AB26: 11.5 | AC26: 287 | AD26: f | AE26: 1373.145052 | AF26: 1.814809646 | AG26: 12.30369451 | AH26: =AF26 -> 1.814809646 | AI26: 48.7 | AJ26: 11.5 | AK26: 315 | AL26: 117.5196586 | AM26: =AF26 -> 1.814809646 | AN26: 15.38147267 | AO26: =AH26 -> 1.814809646 | AP26: 48.7 | AQ26: 8.4 | AR26: 213 | AS26: 1211.686146 | AT26: =AF26 -> 1.814809646 | AU26: 6.87886396 | AV26: =AO26 -> 1.814809646 | AW26: 49.5 | AX26: 11.5 | AY26: 287 | AZ26: 80.73214552 | BA26: =AF26 -> 1.814809646 | BB26: 21.49305279 | BC26: =AH26 -> 1.814809646 | BD26: 49.5 | BE26: 8.4 | BF26: 194 | BG26: -187.671573 | BH26: 1.820813869 | BI26: 15.0038693 | BJ26: =BH26 -> 1.820813869 | BK26: 48.8 | BL26: 9.6 | BM26: 320 | BN26: 203.9442337 | BO26: =AF26 -> 1.814809646 | BP26: 13.52000657 | BQ26: =BJ26 -> 1.820813869 | BR26: 48.8 | BS26: 10.0 | BT26: 251 | BU26: 251.4328582 | BV26: =BH26 -> 1.820813869 | BW26: 20.92701539 | BX26: =BJ26 -> 1.820813869 | BY26: 47.9 | BZ26: 9.6 | CA26: 291 | CB26: 185.1317142 | CC26: =BO26 -> 1.814809646 | CD26: 12.85954626 | CE26: =BQ26 -> 1.820813869 | CF26: 47.9 | CG26: 10.0 | CH26: 228
B27: 100% | C27: 10 | D27: =(($W$23*$C27^4+$W$24*$C27^3+$W$25*$C27^2+$W$26*$C27+$W$27)*((((Tv_heat-Tr_heat)/LN((Tv_heat-Tl_heat)/(Tr_heat-Tl_heat)))/((75-65)/LN((75-20)/(65-20))))^1))*$D$14*$AA$11 -> 2749 | E27: =ROUND(((D27/$D$14)/((Tv_heat-Tr_heat)*1.163))*$E$14,IF($W$4=1,0,IF($W$4=2,2))) -> 236 | F27: 1.80 | G27: =(($Y$23*$C27^4+$Y$24*$C27^3+$Y$25*$C27^2+$Y$26*$C27+$Y$27)*((((Tv_cool-Tr_cool)/LN((Tv_cool-Tl_cool)/(Tr_cool-Tl_cool)))/((16-18)/LN((16-27)/(18-27))))^S27))*$G$14*$AA$11 -> 487 | H27: =((G27/$G$14)/(IF((237.3*LN((RH*EXP(17.27*(Tl_cool/(Tl_cool+237.3))))))/(17.27-LN((RH*EXP(17.27*(Tl_cool/(Tl_cool+237.3))))))<((Tv_cool+Tr_cool)/2),1,IF(1/(1+((2258*((0.622/((p_atm/(1*611*EXP(17.27*(((Tv_cool+Tr_cool)/2)/(((Tv_cool+Tr_cool)/2)+237.3))))))-1)*1000-(0.622/((p_atm/(RH*611*EXP(17.27*(Tl_cool/(Tl_cool+237.3))))))-1)*1000))/(1005*(((Tv_cool+Tr_cool)/2)-Tl_cool))))*1.039+((-0.000729*$C27+0.001448)*(Tl_cool-((Tv_cool+Tr_cool)/2))+(0.016908*$C27-0.033574))*1.039>1,1,1/(1+((2258*((0.622/((p_atm/(1*611*EXP(17.27*(((Tv_cool+Tr_cool)/2)/(((Tv_cool+Tr_cool)/2)+237.3))))))-1)*1000-(0.622/((p_atm/(RH*611*EXP(17.27*(Tl_cool/(Tl_cool+237.3))))))-1)*1000))/(1005*(((Tv_cool+Tr_cool)/2)-Tl_cool))))*1.039+((-0.000729*$C27+0.001448)*(Tl_cool-((Tv_cool+Tr_cool)/2))+(0.016908*$C27-0.033574))*1.039))))*$H$14 -> 556 | I27: =ROUND(((H27/$H$14)/((Tr_cool-Tv_cool)*1.163))*$I$14,IF($W$4=1,0,IF($W$4=2,2))) -> 80 | J27: 0.25 | K27: 44.5 | L27: 52.5 | M27: 18.0 | N27: 346 | O27: =(Tl_heat+(($D27/$G$14)/(1006*$N27*$K$14)))*(0.05*$C27+0.7)*$M$14+$O$14 -> 52.3 | P27: =(Tl_cool-((G27/$G$14)/(1006*N27*$K$14)))*$M$14+$O$14 -> 20.8 | S27: 1.000 | W27: 237.1456872 | X27: 0 | Y27: 173.5639004 | Z27: 0 | AA27: 52.5 | AB27: 18 | AC27: 346 | AD27: g | AE27: -15.10061212 | AG27: 169.3557443 | AI27: 53.0 | AJ27: 18.0 | AK27: 380 | AL27: 1150.156846 | AN27: 135.9908269 | AP27: 53.0 | AQ27: 14.4 | AR27: 252 | AS27: 237.1456872 | AU27: 173.5639004 | AW27: 52.5 | AX27: 18.0 | AY27: 346 | AZ27: 1067.226938 | BB27: 110.716901 | BD27: 52.5 | BE27: 14.4 | BF27: 229 | BG27: 2449.938064 | BI27: 278.2573076 | BK27: 53.0 | BL27: 15.6 | BM27: 365 | BN27: 781.2037567 | BP27: 197.771754 | BR27: 53.0 | BS27: 15.6 | BT27: 282 | BU27: 1733.690291 | BW27: 244.8221044 | BY27: 51.5 | BZ27: 15.6 | CA27: 332 | CB27: 758.5353119 | CD27: 192.2610869 | CF27: 51.5 | CG27: 15.6 | CH27: 257
B28: =IF($S$7=1,NL!B28,IF(cal!$S$7=2,EN!B28,IF(cal!$S$7=3,DE!B28,IF(cal!$S$7=4,FR!B28,IF(cal!$S$7=5,NR!B28,IF(cal!$S$7=6,SP!B28,IF(cal!$S$7=7,SW!B28,IF(cal!$S$7=8,TS!B28,IF(cal!$S$7=9,ExtraTaal1!B28,IF(cal!$S$7=10,ExtraTaal2!B28,IF(cal!$S$7=11,ExtraTaal3!B28,))))))))))) -> Briza 12 hoogte 41 cm breedte 14 cm lengte 125 cm (Type 3) | C28: =IF($S$7=1,NL!C28,IF(cal!$S$7=2,EN!C28,IF(cal!$S$7=3,DE!C28,IF(cal!$S$7=4,FR!C28,IF(cal!$S$7=5,NR!C28,IF(cal!$S$7=6,SP!C28,)))))) -> 0 | D28: =IF($S$7=1,NL!D28,IF(cal!$S$7=2,EN!D28,IF(cal!$S$7=3,DE!D28,IF(cal!$S$7=4,FR!D28,IF(cal!$S$7=5,NR!D28,IF(cal!$S$7=6,SP!D28,)))))) -> 0 | E28: =IF($S$7=1,NL!E28,IF(cal!$S$7=2,EN!E28,IF(cal!$S$7=3,DE!E28,IF(cal!$S$7=4,FR!E28,IF(cal!$S$7=5,NR!E28,IF(cal!$S$7=6,SP!E28,)))))) -> 0 | F28: =IF($S$7=1,NL!F28,IF(cal!$S$7=2,EN!F28,IF(cal!$S$7=3,DE!F28,IF(cal!$S$7=4,FR!F28,IF(cal!$S$7=5,NR!F28,IF(cal!$S$7=6,SP!F28,)))))) -> 0 | G28: =IF($S$7=1,NL!G28,IF(cal!$S$7=2,EN!G28,IF(cal!$S$7=3,DE!G28,IF(cal!$S$7=4,FR!G28,IF(cal!$S$7=5,NR!G28,IF(cal!$S$7=6,SP!G28,)))))) -> 0 | H28: =IF($S$7=1,NL!H28,IF(cal!$S$7=2,EN!H28,IF(cal!$S$7=3,DE!H28,IF(cal!$S$7=4,FR!H28,IF(cal!$S$7=5,NR!H28,IF(cal!$S$7=6,SP!H28,)))))) -> 0 | I28: =IF($S$7=1,NL!I28,IF(cal!$S$7=2,EN!I28,IF(cal!$S$7=3,DE!I28,IF(cal!$S$7=4,FR!I28,IF(cal!$S$7=5,NR!I28,IF(cal!$S$7=6,SP!I28,)))))) -> 0 | J28: =IF($S$7=1,NL!J28,IF(cal!$S$7=2,EN!J28,IF(cal!$S$7=3,DE!J28,IF(cal!$S$7=4,FR!J28,IF(cal!$S$7=5,NR!J28,IF(cal!$S$7=6,SP!J28,)))))) -> 0 | K28: =IF($S$7=1,NL!K28,IF(cal!$S$7=2,EN!K28,IF(cal!$S$7=3,DE!K28,IF(cal!$S$7=4,FR!K28,IF(cal!$S$7=5,NR!K28,IF(cal!$S$7=6,SP!K28,)))))) -> 0 | L28: =IF($S$7=1,NL!L28,IF(cal!$S$7=2,EN!L28,IF(cal!$S$7=3,DE!L28,IF(cal!$S$7=4,FR!L28,IF(cal!$S$7=5,NR!L28,IF(cal!$S$7=6,SP!L28,)))))) -> 0 | M28: =IF($S$7=1,NL!M28,IF(cal!$S$7=2,EN!M28,IF(cal!$S$7=3,DE!M28,IF(cal!$S$7=4,FR!M28,IF(cal!$S$7=5,NR!M28,IF(cal!$S$7=6,SP!M28,)))))) -> 0 | N28: =IF($S$7=1,NL!N28,IF(cal!$S$7=2,EN!N28,IF(cal!$S$7=3,DE!N28,IF(cal!$S$7=4,FR!N28,IF(cal!$S$7=5,NR!N28,IF(cal!$S$7=6,SP!N28,)))))) -> 0 | O28: =IF($S$7=1,NL!O28,IF(cal!$S$7=2,EN!O28,IF(cal!$S$7=3,DE!O28,IF(cal!$S$7=4,FR!O28,IF(cal!$S$7=5,NR!O28,IF(cal!$S$7=6,SP!O28,)))))) -> 0 | P28: =IF($S$7=1,NL!P28,IF(cal!$S$7=2,EN!P28,IF(cal!$S$7=3,DE!P28,IF(cal!$S$7=4,FR!P28,IF(cal!$S$7=5,NR!P28,IF(cal!$S$7=6,SP!P28,)))))) -> 0 | S28: n-value | W28: H | X28: 41.0 | Y28: B | Z28: 14.0 | AA28: L | AB28: 95.0 | AE28: H | AF28: =38*IF($W$4=1,1,IF($W$4=2,1/2.54)) -> 38 | AG28: B | AH28: =12*IF($W$4=1,1,IF($W$4=2,1/2.54)) -> 12 | AI28: L | AJ28: =72*IF($W$4=1,1,IF($W$4=2,1/2.54)) -> 72 | AL28: H | AM28: =38*IF($W$4=1,1,IF($W$4=2,1/2.54)) -> 38 | AN28: B | AO28: =12*IF($W$4=1,1,IF($W$4=2,1/2.54)) -> 12 | AP28: L | AQ28: =72*IF($W$4=1,1,IF($W$4=2,1/2.54)) -> 72 | AS28: H | AT28: =41*IF($W$4=1,1,IF($W$4=2,1/2.54)) -> 41 | AU28: B | AV28: =14*IF($W$4=1,1,IF($W$4=2,1/2.54)) -> 14 | AW28: L | AX28: =95*IF($W$4=1,1,IF($W$4=2,1/2.54)) -> 95 | AZ28: H | BA28: =41*IF($W$4=1,1,IF($W$4=2,1/2.54)) -> 41 | BB28: B | BC28: =14*IF($W$4=1,1,IF($W$4=2,1/2.54)) -> 14 | BD28: L | BE28: =95*IF($W$4=1,1,IF($W$4=2,1/2.54)) -> 95 | BG28: H | BH28: =52*IF($W$4=1,1,IF($W$4=2,1/2.54)) -> 52 | BI28: B | BJ28: =12*IF($W$4=1,1,IF($W$4=2,1/2.54)) -> 12 | BK28: L | BL28: =72*IF($W$4=1,1,IF($W$4=2,1/2.54)) -> 72 | BN28: H | BO28: =52*IF($W$4=1,1,IF($W$4=2,1/2.54)) -> 52 | BP28: B | BQ28: =12*IF($W$4=1,1,IF($W$4=2,1/2.54)) -> 12 | BR28: L | BS28: =72*IF($W$4=1,1,IF($W$4=2,1/2.54)) -> 72 | BU28: H | BV28: =55*IF($W$4=1,1,IF($W$4=2,1/2.54)) -> 55 | BW28: B | BX28: =14*IF($W$4=1,1,IF($W$4=2,1/2.54)) -> 14 | BY28: L | BZ28: =95*IF($W$4=1,1,IF($W$4=2,1/2.54)) -> 95 | CB28: H | CC28: =55*IF($W$4=1,1,IF($W$4=2,1/2.54)) -> 55 | CD28: B | CE28: =14*IF($W$4=1,1,IF($W$4=2,1/2.54)) -> 14 | CF28: L | CG28: =95*IF($W$4=1,1,IF($W$4=2,1/2.54)) -> 95
B29: 20% | C29: 2 | D29: =(($W$29*$C29^4+$W$30*$C29^3+$W$31*$C29^2+$W$32*$C29+$W$33)*((((Tv_heat-Tr_heat)/LN((Tv_heat-Tl_heat)/(Tr_heat-Tl_heat)))/((75-65)/LN((75-20)/(65-20))))^1))*$D$14*$AA$11 -> 2431 | E29: =ROUND(((D29/$D$14)/((Tv_heat-Tr_heat)*1.163))*$E$14,IF($W$4=1,0,IF($W$4=2,2))) -> 209 | F29: =($X$30*(E29/$E$14)^$X$32)*$F$14 -> 1.95 | G29: =(($Y$29*$C29^4+$Y$30*$C29^3+$Y$31*$C29^2+$Y$32*$C29+$Y$33)*((((Tv_cool-Tr_cool)/LN((Tv_cool-Tl_cool)/(Tr_cool-Tl_cool)))/((16-18)/LN((16-27)/(18-27))))^S29))*$G$14*$AA$11 -> 433 | H29: =((G29/$G$14)/(IF((237.3*LN((RH*EXP(17.27*(Tl_cool/(Tl_cool+237.3))))))/(17.27-LN((RH*EXP(17.27*(Tl_cool/(Tl_cool+237.3))))))<((Tv_cool+Tr_cool)/2),1,IF(1/(1+((2258*((0.622/((p_atm/(1*611*EXP(17.27*(((Tv_cool+Tr_cool)/2)/(((Tv_cool+Tr_cool)/2)+237.3))))))-1)*1000-(0.622/((p_atm/(RH*611*EXP(17.27*(Tl_cool/(Tl_cool+237.3))))))-1)*1000))/(1005*(((Tv_cool+Tr_cool)/2)-Tl_cool))))*1.039+((-0.000729*$C29+0.001448)*(Tl_cool-((Tv_cool+Tr_cool)/2))+(0.016908*$C29-0.033574))*1.039>1,1,1/(1+((2258*((0.622/((p_atm/(1*611*EXP(17.27*(((Tv_cool+Tr_cool)/2)/(((Tv_cool+Tr_cool)/2)+237.3))))))-1)*1000-(0.622/((p_atm/(RH*611*EXP(17.27*(Tl_cool/(Tl_cool+237.3))))))-1)*1000))/(1005*(((Tv_cool+Tr_cool)/2)-Tl_cool))))*1.039+((-0.000729*$C29+0.001448)*(Tl_cool-((Tv_cool+Tr_cool)/2))+(0.016908*$C29-0.033574))*1.039))))*$H$14 -> 529 | I29: =ROUND(((H29/$H$14)/((Tr_cool-Tv_cool)*1.163))*$I$14,IF($W$4=1,0,IF($W$4=2,2))) -> 76 | J29: =($Z$30*(I29/$I$14)^$Z$32)*$J$14 -> 0.31 | K29: =L29-8 -> 24.6 | L29: =AA29 -> 32.6 | M29: =AB29 -> 2.6 | N29: =AC29*$N$14 -> 146 | O29: =(Tl_heat+(($D29/$G$14)/(1006*$N29*$K$14)))*(0.05*$C29+0.7)*$M$14+$O$14 -> 55.6 | P29: =(Tl_cool-((G29/$G$14)/(1006*N29*$K$14)))*$M$14+$O$14 -> 16.2 | S29: 1.000 | W29: =IF($W$16=1,AE29,IF($W$16=2,AL29,IF($W$16=3,AS29,IF($W$16=4,AZ29,IF($W$16=5,BG29,IF($W$16=6,BN29,IF($W$16=7,BU29,IF($W$16=8,CB29)))))))) -> -0.002638673631 | X29: =IF($W$16=1,AF29,IF($W$16=2,AM29,IF($W$16=3,AT29,IF($W$16=4,BA29,IF($W$16=5,BH29,IF($W$16=6,BO29,IF($W$16=7,BV29,IF($W$16=8,CC29)))))))) -> a | Y29: =IF($W$16=1,AG29,IF($W$16=2,AN29,IF($W$16=3,AU29,IF($W$16=4,BB29,IF($W$16=5,BI29,IF($W$16=6,BP29,IF($W$16=7,BW29,IF($W$16=8,CD29)))))))) -> 0 | Z29: =IF($W$16=1,AH29,IF($W$16=2,AO29,IF($W$16=3,AV29,IF($W$16=4,BC29,IF($W$16=5,BJ29,IF($W$16=6,BQ29,IF($W$16=7,BX29,IF($W$16=8,CE29)))))))) -> a | AA29: =IF($W$16=1,AI29,IF($W$16=2,AP29,IF($W$16=3,AW29,IF($W$16=4,BD29,IF($W$16=5,BK29,IF($W$16=6,BR29,IF($W$16=7,BY29,IF($W$16=8,CF29)))))))) -> 32.6 | AB29: =IF($W$16=1,AJ29,IF($W$16=2,AQ29,IF($W$16=3,AX29,IF($W$16=4,BE29,IF($W$16=5,BL29,IF($W$16=6,BS29,IF($W$16=7,BZ29,IF($W$16=8,CG29)))))))) -> 2.6 | AC29: =IF($W$16=1,AK29,IF($W$16=2,AR29,IF($W$16=3,AY29,IF($W$16=4,BF29,IF($W$16=5,BM29,IF($W$16=6,BT29,IF($W$16=7,CA29,IF($W$16=8,CH29)))))))) -> 146 | AD29: c | AE29: -2.325518706 | AF29: a | AH29: a | AI29: 31.1 | AJ29: 2.6 | AK29: 160 | AM29: a | AO29: a | AP29: =AI29 -> 31.1 | AQ29: 2.3 | AR29: 80 | AS29: -0.002638673631 | AT29: a | AV29: a | AW29: 32.6 | AX29: =AJ29 -> 2.6 | AY29: 146 | BA29: a | BC29: a | BD29: =AW29 -> 32.6 | BE29: =AQ29 -> 2.3 | BF29: 73 | BG29: 0.4989856931 | BH29: a | BJ29: a | BK29: 32.0 | BL29: 2.8 | BM29: 168 | BO29: a | BP29: 0.06630157722 | BQ29: a | BR29: =BK29 -> 32.0 | BS29: 2.3 | BT29: 123 | BV29: a | BX29: a | BY29: 31.1 | BZ29: =BL29 -> 2.8 | CA29: 153 | CB29: -0.2678494074 | CC29: a | CE29: a | CF29: =BY29 -> 31.1 | CG29: =BS29 -> 2.3 | CH29: 112
B30: 40% | C30: 4 | D30: =(($W$29*$C30^4+$W$30*$C30^3+$W$31*$C30^2+$W$32*$C30+$W$33)*((((Tv_heat-Tr_heat)/LN((Tv_heat-Tl_heat)/(Tr_heat-Tl_heat)))/((75-65)/LN((75-20)/(65-20))))^1))*$D$14*$AA$11 -> 2717 | E30: =ROUND(((D30/$D$14)/((Tv_heat-Tr_heat)*1.163))*$E$14,IF($W$4=1,0,IF($W$4=2,2))) -> 234 | F30: =($X$30*(E30/$E$14)^$X$32)*$F$14 -> 2.40 | G30: =(($Y$29*$C30^4+$Y$30*$C30^3+$Y$31*$C30^2+$Y$32*$C30+$Y$33)*((((Tv_cool-Tr_cool)/LN((Tv_cool-Tl_cool)/(Tr_cool-Tl_cool)))/((16-18)/LN((16-27)/(18-27))))^S30))*$G$14*$AA$11 -> 480 | H30: =((G30/$G$14)/(IF((237.3*LN((RH*EXP(17.27*(Tl_cool/(Tl_cool+237.3))))))/(17.27-LN((RH*EXP(17.27*(Tl_cool/(Tl_cool+237.3))))))<((Tv_cool+Tr_cool)/2),1,IF(1/(1+((2258*((0.622/((p_atm/(1*611*EXP(17.27*(((Tv_cool+Tr_cool)/2)/(((Tv_cool+Tr_cool)/2)+237.3))))))-1)*1000-(0.622/((p_atm/(RH*611*EXP(17.27*(Tl_cool/(Tl_cool+237.3))))))-1)*1000))/(1005*(((Tv_cool+Tr_cool)/2)-Tl_cool))))*1.039+((-0.000729*$C30+0.001448)*(Tl_cool-((Tv_cool+Tr_cool)/2))+(0.016908*$C30-0.033574))*1.039>1,1,1/(1+((2258*((0.622/((p_atm/(1*611*EXP(17.27*(((Tv_cool+Tr_cool)/2)/(((Tv_cool+Tr_cool)/2)+237.3))))))-1)*1000-(0.622/((p_atm/(RH*611*EXP(17.27*(Tl_cool/(Tl_cool+237.3))))))-1)*1000))/(1005*(((Tv_cool+Tr_cool)/2)-Tl_cool))))*1.039+((-0.000729*$C30+0.001448)*(Tl_cool-((Tv_cool+Tr_cool)/2))+(0.016908*$C30-0.033574))*1.039))))*$H$14 -> 575 | I30: =ROUND(((H30/$H$14)/((Tr_cool-Tv_cool)*1.163))*$I$14,IF($W$4=1,0,IF($W$4=2,2))) -> 82 | J30: =($Z$30*(I30/$I$14)^$Z$32)*$J$14 -> 0.36 | K30: 30.2 | L30: 38.2 | M30: 4.8 | N30: 221 | O30: =(Tl_heat+(($D30/$G$14)/(1006*$N30*$K$14)))*(0.05*$C30+0.7)*$M$14+$O$14 -> 50.9 | P30: =(Tl_cool-((G30/$G$14)/(1006*N30*$K$14)))*$M$14+$O$14 -> 18.5 | S30: 1.000 | W30: 1.478566111 | X30: 0.000120489315 | Y30: 0.09571949915 | Z30: 0.000120489315 | AA30: 38.2 | AB30: 4.8 | AC30: 221 | AD30: d | AE30: 61.9306591 | AF30: 0.000120489315 | AH30: =AF30 -> 0.000120489315 | AI30: 38.0 | AJ30: 4.8 | AK30: 243 | AL30: 1.613705609 | AM30: =AF30 -> 0.000120489315 | AN30: 0.1508165175 | AO30: =AH30 -> 0.000120489315 | AP30: 38.0 | AQ30: 4.1 | AR30: 164 | AS30: 1.478566111 | AT30: =AF30 -> 0.000120489315 | AU30: 0.09571949915 | AV30: =AO30 -> 0.000120489315 | AW30: 38.2 | AX30: 4.8 | AY30: 221 | AZ30: 1.063651691 | BA30: =AF30 -> 0.000120489315 | BB30: 0.1712351716 | BC30: =AH30 -> 0.000120489315 | BD30: 38.2 | BE30: 4.1 | BF30: 149 | BG30: -14.07651864 | BH30: 0.0002364386444 | BI30: -0.4636209245 | BJ30: =BH30 -> 0.0002364386444 | BK30: 38.3 | BL30: 5.4 | BM30: 259 | BN30: 1.551976573 | BO30: =AF30 -> 0.000120489315 | BP30: -1.821386727 | BQ30: =BJ30 -> 0.0002364386444 | BR30: 38.3 | BS30: 4.2 | BT30: 201 | BU30: -0.8815084964 | BV30: =BH30 -> 0.0002364386444 | BW30: -0.2615692787 | BX30: =BJ30 -> 0.0002364386444 | BY30: 37.1 | BZ30: 5.4 | CA30: 236 | CB30: 7.545208833 | CC30: =BO30 -> 0.000120489315 | CD30: -0.2012348172 | CE30: =BQ30 -> 0.0002364386444 | CF30: 37.1 | CG30: 4.2 | CH30: 183
B31: 60% | C31: 6 | D31: =(($W$29*$C31^4+$W$30*$C31^3+$W$31*$C31^2+$W$32*$C31+$W$33)*((((Tv_heat-Tr_heat)/LN((Tv_heat-Tl_heat)/(Tr_heat-Tl_heat)))/((75-65)/LN((75-20)/(65-20))))^1))*$D$14*$AA$11 -> 3090 | E31: =ROUND(((D31/$D$14)/((Tv_heat-Tr_heat)*1.163))*$E$14,IF($W$4=1,0,IF($W$4=2,2))) -> 266 | F31: 3.03 | G31: =(($Y$29*$C31^4+$Y$30*$C31^3+$Y$31*$C31^2+$Y$32*$C31+$Y$33)*((((Tv_cool-Tr_cool)/LN((Tv_cool-Tl_cool)/(Tr_cool-Tl_cool)))/((16-18)/LN((16-27)/(18-27))))^S31))*$G$14*$AA$11 -> 548 | H31: =((G31/$G$14)/(IF((237.3*LN((RH*EXP(17.27*(Tl_cool/(Tl_cool+237.3))))))/(17.27-LN((RH*EXP(17.27*(Tl_cool/(Tl_cool+237.3))))))<((Tv_cool+Tr_cool)/2),1,IF(1/(1+((2258*((0.622/((p_atm/(1*611*EXP(17.27*(((Tv_cool+Tr_cool)/2)/(((Tv_cool+Tr_cool)/2)+237.3))))))-1)*1000-(0.622/((p_atm/(RH*611*EXP(17.27*(Tl_cool/(Tl_cool+237.3))))))-1)*1000))/(1005*(((Tv_cool+Tr_cool)/2)-Tl_cool))))*1.039+((-0.000729*$C31+0.001448)*(Tl_cool-((Tv_cool+Tr_cool)/2))+(0.016908*$C31-0.033574))*1.039>1,1,1/(1+((2258*((0.622/((p_atm/(1*611*EXP(17.27*(((Tv_cool+Tr_cool)/2)/(((Tv_cool+Tr_cool)/2)+237.3))))))-1)*1000-(0.622/((p_atm/(RH*611*EXP(17.27*(Tl_cool/(Tl_cool+237.3))))))-1)*1000))/(1005*(((Tv_cool+Tr_cool)/2)-Tl_cool))))*1.039+((-0.000729*$C31+0.001448)*(Tl_cool-((Tv_cool+Tr_cool)/2))+(0.016908*$C31-0.033574))*1.039))))*$H$14 -> 646 | I31: =ROUND(((H31/$H$14)/((Tr_cool-Tv_cool)*1.163))*$I$14,IF($W$4=1,0,IF($W$4=2,2))) -> 93 | J31: 0.45 | K31: 37.0 | L31: 45.0 | M31: 8.0 | N31: 298 | O31: =(Tl_heat+(($D31/$G$14)/(1006*$N31*$K$14)))*(0.05*$C31+0.7)*$M$14+$O$14 -> 50.8 | P31: =(Tl_cool-((G31/$G$14)/(1006*N31*$K$14)))*$M$14+$O$14 -> 19.5 | S31: 1.000 | W31: -6.676712314 | X31: b | Y31: 0.7827958312 | Z31: b | AA31: 45 | AB31: 8 | AC31: 298 | AD31: e | AE31: -556.9381723 | AF31: b | AG31: 2.419203203 | AH31: b | AI31: 46.0 | AJ31: 8.0 | AK31: 328 | AL31: -14.06460146 | AM31: b | AN31: -0.6754723603 | AO31: b | AP31: 46.0 | AQ31: 7.4 | AR31: 242 | AS31: -6.676712314 | AT31: b | AU31: 0.7827958312 | AV31: b | AW31: 45.0 | AX31: 8.0 | AY31: 298 | AZ31: -4.235884898 | BA31: b | BB31: -1.46640814 | BC31: b | BD31: 45.0 | BE31: 7.4 | BF31: 220 | BG31: 136.6446568 | BH31: b | BI31: 8.742356027 | BJ31: b | BK31: 45.7 | BL31: 10.0 | BM31: 353 | BN31: -16.2568621 | BO31: b | BP31: 17.495928 | BQ31: b | BR31: 45.7 | BS31: 7.5 | BT31: 286 | BU31: 10.60170495 | BV31: b | BW31: 4.673461784 | BX31: b | BY31: 44.5 | BZ31: 10.0 | CA31: 321 | CB31: -62.12513398 | CC31: b | CD31: 3.337019406 | CE31: b | CF31: 44.5 | CG31: 7.5 | CH31: 260
B32: 80% | C32: 8 | D32: =(($W$29*$C32^4+$W$30*$C32^3+$W$31*$C32^2+$W$32*$C32+$W$33)*((((Tv_heat-Tr_heat)/LN((Tv_heat-Tl_heat)/(Tr_heat-Tl_heat)))/((75-65)/LN((75-20)/(65-20))))^1))*$D$14*$AA$11 -> 3617 | E32: =ROUND(((D32/$D$14)/((Tv_heat-Tr_heat)*1.163))*$E$14,IF($W$4=1,0,IF($W$4=2,2))) -> 311 | F32: 4.02 | G32: =(($Y$29*$C32^4+$Y$30*$C32^3+$Y$31*$C32^2+$Y$32*$C32+$Y$33)*((((Tv_cool-Tr_cool)/LN((Tv_cool-Tl_cool)/(Tr_cool-Tl_cool)))/((16-18)/LN((16-27)/(18-27))))^S32))*$G$14*$AA$11 -> 643 | H32: =((G32/$G$14)/(IF((237.3*LN((RH*EXP(17.27*(Tl_cool/(Tl_cool+237.3))))))/(17.27-LN((RH*EXP(17.27*(Tl_cool/(Tl_cool+237.3))))))<((Tv_cool+Tr_cool)/2),1,IF(1/(1+((2258*((0.622/((p_atm/(1*611*EXP(17.27*(((Tv_cool+Tr_cool)/2)/(((Tv_cool+Tr_cool)/2)+237.3))))))-1)*1000-(0.622/((p_atm/(RH*611*EXP(17.27*(Tl_cool/(Tl_cool+237.3))))))-1)*1000))/(1005*(((Tv_cool+Tr_cool)/2)-Tl_cool))))*1.039+((-0.000729*$C32+0.001448)*(Tl_cool-((Tv_cool+Tr_cool)/2))+(0.016908*$C32-0.033574))*1.039>1,1,1/(1+((2258*((0.622/((p_atm/(1*611*EXP(17.27*(((Tv_cool+Tr_cool)/2)/(((Tv_cool+Tr_cool)/2)+237.3))))))-1)*1000-(0.622/((p_atm/(RH*611*EXP(17.27*(Tl_cool/(Tl_cool+237.3))))))-1)*1000))/(1005*(((Tv_cool+Tr_cool)/2)-Tl_cool))))*1.039+((-0.000729*$C32+0.001448)*(Tl_cool-((Tv_cool+Tr_cool)/2))+(0.016908*$C32-0.033574))*1.039))))*$H$14 -> 746 | I32: =ROUND(((H32/$H$14)/((Tr_cool-Tv_cool)*1.163))*$I$14,IF($W$4=1,0,IF($W$4=2,2))) -> 107 | J32: 0.58 | K32: 42.5 | L32: 50.5 | M32: 14.0 | N32: 381 | O32: =(Tl_heat+(($D32/$G$14)/(1006*$N32*$K$14)))*(0.05*$C32+0.7)*$M$14+$O$14 -> 53.0 | P32: =(Tl_cool-((G32/$G$14)/(1006*N32*$K$14)))*$M$14+$O$14 -> 20.0 | S32: 1.000 | W32: 142.0684929 | X32: 1.814562502 | Y32: 9.402432844 | Z32: 1.814562502 | AA32: 50.5 | AB32: 14 | AC32: 381 | AD32: f | AE32: 2180.468988 | AF32: 1.814562502 | AG32: 7.018076693 | AH32: =AF32 -> 1.814562502 | AI32: 52.0 | AJ32: 14.0 | AK32: 419 | AL32: 185.799076 | AM32: =AF32 -> 1.814562502 | AN32: 17.10518211 | AO32: =AH32 -> 1.814562502 | AP32: 52.0 | AQ32: 12.6 | AR32: 305 | AS32: 142.0684929 | AT32: =AF32 -> 1.814562502 | AU32: 9.402432844 | AV32: =AO32 -> 1.814562502 | AW32: 50.5 | AX32: 14.0 | AY32: 381 | AZ32: 114.9413532 | BA32: =AF32 -> 1.814562502 | BB32: 22.25052489 | BC32: =AH32 -> 1.814562502 | BD32: 50.5 | BE32: 12.6 | BF32: 278 | BG32: -107.3225051 | BH32: 1.81207946 | BI32: 4.113377897 | BJ32: =BH32 -> 1.81207946 | BK32: 51.7 | BL32: 18.0 | BM32: 437 | BN32: 174.2619045 | BO32: =AF32 -> 1.814562502 | BP32: -28.25053518 | BQ32: =BJ32 -> 1.81207946 | BR32: 51.7 | BS32: 12.8 | BT32: 360 | BU32: 390.820803 | BV32: =BH32 -> 1.81207946 | BW32: 26.67695736 | BX32: =BJ32 -> 1.81207946 | BY32: 50.5 | BZ32: 18.0 | CA32: 398 | CB32: 307.8019218 | CC32: =BO32 -> 1.814562502 | CD32: 23.25660387 | CE32: =BQ32 -> 1.81207946 | CF32: 50.5 | CG32: 12.8 | CH32: 328
B33: 100% | C33: 10 | D33: =(($W$29*$C33^4+$W$30*$C33^3+$W$31*$C33^2+$W$32*$C33+$W$33)*((((Tv_heat-Tr_heat)/LN((Tv_heat-Tl_heat)/(Tr_heat-Tl_heat)))/((75-65)/LN((75-20)/(65-20))))^1))*$D$14*$AA$11 -> 4367 | E33: =ROUND(((D33/$D$14)/((Tv_heat-Tr_heat)*1.163))*$E$14,IF($W$4=1,0,IF($W$4=2,2))) -> 375 | F33: 5.65 | G33: =(($Y$29*$C33^4+$Y$30*$C33^3+$Y$31*$C33^2+$Y$32*$C33+$Y$33)*((((Tv_cool-Tr_cool)/LN((Tv_cool-Tl_cool)/(Tr_cool-Tl_cool)))/((16-18)/LN((16-27)/(18-27))))^S33))*$G$14*$AA$11 -> 773 | H33: =((G33/$G$14)/(IF((237.3*LN((RH*EXP(17.27*(Tl_cool/(Tl_cool+237.3))))))/(17.27-LN((RH*EXP(17.27*(Tl_cool/(Tl_cool+237.3))))))<((Tv_cool+Tr_cool)/2),1,IF(1/(1+((2258*((0.622/((p_atm/(1*611*EXP(17.27*(((Tv_cool+Tr_cool)/2)/(((Tv_cool+Tr_cool)/2)+237.3))))))-1)*1000-(0.622/((p_atm/(RH*611*EXP(17.27*(Tl_cool/(Tl_cool+237.3))))))-1)*1000))/(1005*(((Tv_cool+Tr_cool)/2)-Tl_cool))))*1.039+((-0.000729*$C33+0.001448)*(Tl_cool-((Tv_cool+Tr_cool)/2))+(0.016908*$C33-0.033574))*1.039>1,1,1/(1+((2258*((0.622/((p_atm/(1*611*EXP(17.27*(((Tv_cool+Tr_cool)/2)/(((Tv_cool+Tr_cool)/2)+237.3))))))-1)*1000-(0.622/((p_atm/(RH*611*EXP(17.27*(Tl_cool/(Tl_cool+237.3))))))-1)*1000))/(1005*(((Tv_cool+Tr_cool)/2)-Tl_cool))))*1.039+((-0.000729*$C33+0.001448)*(Tl_cool-((Tv_cool+Tr_cool)/2))+(0.016908*$C33-0.033574))*1.039))))*$H$14 -> 882 | I33: =ROUND(((H33/$H$14)/((Tr_cool-Tv_cool)*1.163))*$I$14,IF($W$4=1,0,IF($W$4=2,2))) -> 126 | J33: 0.78 | K33: 47.0 | L33: 55.0 | M33: 24.0 | N33: 448 | O33: =(Tl_heat+(($D33/$G$14)/(1006*$N33*$K$14)))*(0.05*$C33+0.7)*$M$14+$O$14 -> 58.8 | P33: =(Tl_cool-((G33/$G$14)/(1006*N33*$K$14)))*$M$14+$O$14 -> 19.9 | S33: 1.000 | W33: 2161.546139 | X33: 0 | Y33: 290.7155392 | Z33: 0 | AA33: 55 | AB33: 24 | AC33: 448 | AD33: g | AE33: 12.55973553 | AG33: 302.414134 | AI33: 56.5 | AJ33: 24.0 | AK33: 492 | AL33: 1773.71326 | AN33: 237.2471092 | AP33: 56.5 | AQ33: 20.9 | AR33: 400 | AS33: 2161.546139 | AU33: 290.7155392 | AW33: 55.0 | AX33: 24.0 | AY33: 448 | AZ33: 1703.014518 | BB33: 199.9546089 | BD33: 55.0 | BE33: 20.9 | BF33: 364 | BG33: 3667.295933 | BI33: 468.3656011 | BK33: 56.0 | BL33: 28.8 | BM33: 513 | BN33: 1354.418859 | BP33: 381.7681116 | BR33: 56.0 | BS33: 22.3 | BT33: 423 | BU33: 2743.741129 | BW33: 404.4385595 | BY33: 54.5 | BZ33: 28.8 | CA33: 467 | CB33: 1146.735002 | CD33: 292.4953956 | CF33: 54.5 | CG33: 22.3 | CH33: 385
B34: =IF($S$7=1,NL!B34,IF(cal!$S$7=2,EN!B34,IF(cal!$S$7=3,DE!B34,IF(cal!$S$7=4,FR!B34,IF(cal!$S$7=5,NR!B34,IF(cal!$S$7=6,SP!B34,IF(cal!$S$7=7,SW!B34,IF(cal!$S$7=8,TS!B34,IF(cal!$S$7=9,ExtraTaal1!B34,IF(cal!$S$7=10,ExtraTaal2!B34,IF(cal!$S$7=11,ExtraTaal3!B34,))))))))))) -> Briza 12 hoogte 41 cm breedte 14 cm lengte 145 cm (Type 4) | C34: =IF($S$7=1,NL!C34,IF(cal!$S$7=2,EN!C34,IF(cal!$S$7=3,DE!C34,IF(cal!$S$7=4,FR!C34,IF(cal!$S$7=5,NR!C34,IF(cal!$S$7=6,SP!C34,)))))) -> 0 | D34: =IF($S$7=1,NL!D34,IF(cal!$S$7=2,EN!D34,IF(cal!$S$7=3,DE!D34,IF(cal!$S$7=4,FR!D34,IF(cal!$S$7=5,NR!D34,IF(cal!$S$7=6,SP!D34,)))))) -> 0 | E34: =IF($S$7=1,NL!E34,IF(cal!$S$7=2,EN!E34,IF(cal!$S$7=3,DE!E34,IF(cal!$S$7=4,FR!E34,IF(cal!$S$7=5,NR!E34,IF(cal!$S$7=6,SP!E34,)))))) -> 0 | F34: =IF($S$7=1,NL!F34,IF(cal!$S$7=2,EN!F34,IF(cal!$S$7=3,DE!F34,IF(cal!$S$7=4,FR!F34,IF(cal!$S$7=5,NR!F34,IF(cal!$S$7=6,SP!F34,)))))) -> 0 | G34: =IF($S$7=1,NL!G34,IF(cal!$S$7=2,EN!G34,IF(cal!$S$7=3,DE!G34,IF(cal!$S$7=4,FR!G34,IF(cal!$S$7=5,NR!G34,IF(cal!$S$7=6,SP!G34,)))))) -> 0 | H34: =IF($S$7=1,NL!H34,IF(cal!$S$7=2,EN!H34,IF(cal!$S$7=3,DE!H34,IF(cal!$S$7=4,FR!H34,IF(cal!$S$7=5,NR!H34,IF(cal!$S$7=6,SP!H34,)))))) -> 0 | I34: =IF($S$7=1,NL!I34,IF(cal!$S$7=2,EN!I34,IF(cal!$S$7=3,DE!I34,IF(cal!$S$7=4,FR!I34,IF(cal!$S$7=5,NR!I34,IF(cal!$S$7=6,SP!I34,)))))) -> 0 | J34: =IF($S$7=1,NL!J34,IF(cal!$S$7=2,EN!J34,IF(cal!$S$7=3,DE!J34,IF(cal!$S$7=4,FR!J34,IF(cal!$S$7=5,NR!J34,IF(cal!$S$7=6,SP!J34,)))))) -> 0 | K34: =IF($S$7=1,NL!K34,IF(cal!$S$7=2,EN!K34,IF(cal!$S$7=3,DE!K34,IF(cal!$S$7=4,FR!K34,IF(cal!$S$7=5,NR!K34,IF(cal!$S$7=6,SP!K34,)))))) -> 0 | L34: =IF($S$7=1,NL!L34,IF(cal!$S$7=2,EN!L34,IF(cal!$S$7=3,DE!L34,IF(cal!$S$7=4,FR!L34,IF(cal!$S$7=5,NR!L34,IF(cal!$S$7=6,SP!L34,)))))) -> 0 | M34: =IF($S$7=1,NL!M34,IF(cal!$S$7=2,EN!M34,IF(cal!$S$7=3,DE!M34,IF(cal!$S$7=4,FR!M34,IF(cal!$S$7=5,NR!M34,IF(cal!$S$7=6,SP!M34,)))))) -> 0 | N34: =IF($S$7=1,NL!N34,IF(cal!$S$7=2,EN!N34,IF(cal!$S$7=3,DE!N34,IF(cal!$S$7=4,FR!N34,IF(cal!$S$7=5,NR!N34,IF(cal!$S$7=6,SP!N34,)))))) -> 0 | O34: =IF($S$7=1,NL!O34,IF(cal!$S$7=2,EN!O34,IF(cal!$S$7=3,DE!O34,IF(cal!$S$7=4,FR!O34,IF(cal!$S$7=5,NR!O34,IF(cal!$S$7=6,SP!O34,)))))) -> 0 | P34: =IF($S$7=1,NL!P34,IF(cal!$S$7=2,EN!P34,IF(cal!$S$7=3,DE!P34,IF(cal!$S$7=4,FR!P34,IF(cal!$S$7=5,NR!P34,IF(cal!$S$7=6,SP!P34,)))))) -> 0 | S34: n-value | W34: H | X34: 41.0 | Y34: B | Z34: 14.0 | AA34: L | AB34: 125.0 | AE34: H | AF34: =38*IF($W$4=1,1,IF($W$4=2,1/2.54)) -> 38 | AG34: B | AH34: =12*IF($W$4=1,1,IF($W$4=2,1/2.54)) -> 12 | AI34: L | AJ34: =102*IF($W$4=1,1,IF($W$4=2,1/2.54)) -> 102 | AL34: H | AM34: =38*IF($W$4=1,1,IF($W$4=2,1/2.54)) -> 38 | AN34: B | AO34: =12*IF($W$4=1,1,IF($W$4=2,1/2.54)) -> 12 | AP34: L | AQ34: =102*IF($W$4=1,1,IF($W$4=2,1/2.54)) -> 102 | AS34: H | AT34: =41*IF($W$4=1,1,IF($W$4=2,1/2.54)) -> 41 | AU34: B | AV34: =14*IF($W$4=1,1,IF($W$4=2,1/2.54)) -> 14 | AW34: L | AX34: =125*IF($W$4=1,1,IF($W$4=2,1/2.54)) -> 125 | AZ34: H | BA34: =41*IF($W$4=1,1,IF($W$4=2,1/2.54)) -> 41 | BB34: B | BC34: =14*IF($W$4=1,1,IF($W$4=2,1/2.54)) -> 14 | BD34: L | BE34: =125*IF($W$4=1,1,IF($W$4=2,1/2.54)) -> 125 | BG34: H | BH34: =52*IF($W$4=1,1,IF($W$4=2,1/2.54)) -> 52 | BI34: B | BJ34: =12*IF($W$4=1,1,IF($W$4=2,1/2.54)) -> 12 | BK34: L | BL34: =102*IF($W$4=1,1,IF($W$4=2,1/2.54)) -> 102 | BN34: H | BO34: =52*IF($W$4=1,1,IF($W$4=2,1/2.54)) -> 52 | BP34: B | BQ34: =12*IF($W$4=1,1,IF($W$4=2,1/2.54)) -> 12 | BR34: L | BS34: =102*IF($W$4=1,1,IF($W$4=2,1/2.54)) -> 102 | BU34: H | BV34: =55*IF($W$4=1,1,IF($W$4=2,1/2.54)) -> 55 | BW34: B | BX34: =14*IF($W$4=1,1,IF($W$4=2,1/2.54)) -> 14 | BY34: L | BZ34: =125*IF($W$4=1,1,IF($W$4=2,1/2.54)) -> 125 | CB34: H | CC34: =55*IF($W$4=1,1,IF($W$4=2,1/2.54)) -> 55 | CD34: B | CE34: =14*IF($W$4=1,1,IF($W$4=2,1/2.54)) -> 14 | CF34: L | CG34: =125*IF($W$4=1,1,IF($W$4=2,1/2.54)) -> 125
B35: 20% | C35: 2 | D35: =(($W$35*$C35^4+$W$36*$C35^3+$W$37*$C35^2+$W$38*$C35+$W$39)*((((Tv_heat-Tr_heat)/LN((Tv_heat-Tl_heat)/(Tr_heat-Tl_heat)))/((75-65)/LN((75-20)/(65-20))))^1))*$D$14*$AA$11 -> 2999 | E35: =ROUND(((D35/$D$14)/((Tv_heat-Tr_heat)*1.163))*$E$14,IF($W$4=1,0,IF($W$4=2,2))) -> 258 | F35: =($X$36*(E35/$E$14)^$X$38)*$F$14 -> 3.34 | G35: =(($Y$35*$C35^4+$Y$36*$C35^3+$Y$37*$C35^2+$Y$38*$C35+$Y$39)*((((Tv_cool-Tr_cool)/LN((Tv_cool-Tl_cool)/(Tr_cool-Tl_cool)))/((16-18)/LN((16-27)/(18-27))))^S35))*$G$14*$AA$11 -> 569 | H35: =((G35/$G$14)/(IF((237.3*LN((RH*EXP(17.27*(Tl_cool/(Tl_cool+237.3))))))/(17.27-LN((RH*EXP(17.27*(Tl_cool/(Tl_cool+237.3))))))<((Tv_cool+Tr_cool)/2),1,IF(1/(1+((2258*((0.622/((p_atm/(1*611*EXP(17.27*(((Tv_cool+Tr_cool)/2)/(((Tv_cool+Tr_cool)/2)+237.3))))))-1)*1000-(0.622/((p_atm/(RH*611*EXP(17.27*(Tl_cool/(Tl_cool+237.3))))))-1)*1000))/(1005*(((Tv_cool+Tr_cool)/2)-Tl_cool))))*1.039+((-0.000729*$C35+0.001448)*(Tl_cool-((Tv_cool+Tr_cool)/2))+(0.016908*$C35-0.033574))*1.039>1,1,1/(1+((2258*((0.622/((p_atm/(1*611*EXP(17.27*(((Tv_cool+Tr_cool)/2)/(((Tv_cool+Tr_cool)/2)+237.3))))))-1)*1000-(0.622/((p_atm/(RH*611*EXP(17.27*(Tl_cool/(Tl_cool+237.3))))))-1)*1000))/(1005*(((Tv_cool+Tr_cool)/2)-Tl_cool))))*1.039+((-0.000729*$C35+0.001448)*(Tl_cool-((Tv_cool+Tr_cool)/2))+(0.016908*$C35-0.033574))*1.039))))*$H$14 -> 694 | I35: =ROUND(((H35/$H$14)/((Tr_cool-Tv_cool)*1.163))*$I$14,IF($W$4=1,0,IF($W$4=2,2))) -> 99 | J35: =($Z$36*(I35/$I$14)^$Z$38)*$J$14 -> 0.58 | K35: =L35-8 -> 25.7 | L35: =AA35 -> 33.7 | M35: =AB35 -> 2.8 | N35: =AC35*$N$14 -> 173 | O35: =(Tl_heat+(($D35/$G$14)/(1006*$N35*$K$14)))*(0.05*$C35+0.7)*$M$14+$O$14 -> 57.2 | P35: =(Tl_cool-((G35/$G$14)/(1006*N35*$K$14)))*$M$14+$O$14 -> 15.2 | S35: 1.000 | W35: =IF($W$16=1,AE35,IF($W$16=2,AL35,IF($W$16=3,AS35,IF($W$16=4,AZ35,IF($W$16=5,BG35,IF($W$16=6,BN35,IF($W$16=7,BU35,IF($W$16=8,CB35)))))))) -> 0 | X35: =IF($W$16=1,AF35,IF($W$16=2,AM35,IF($W$16=3,AT35,IF($W$16=4,BA35,IF($W$16=5,BH35,IF($W$16=6,BO35,IF($W$16=7,BV35,IF($W$16=8,CC35)))))))) -> a | Y35: =IF($W$16=1,AG35,IF($W$16=2,AN35,IF($W$16=3,AU35,IF($W$16=4,BB35,IF($W$16=5,BI35,IF($W$16=6,BP35,IF($W$16=7,BW35,IF($W$16=8,CD35)))))))) -> 0 | Z35: =IF($W$16=1,AH35,IF($W$16=2,AO35,IF($W$16=3,AV35,IF($W$16=4,BC35,IF($W$16=5,BJ35,IF($W$16=6,BQ35,IF($W$16=7,BX35,IF($W$16=8,CE35)))))))) -> a | AA35: =IF($W$16=1,AI35,IF($W$16=2,AP35,IF($W$16=3,AW35,IF($W$16=4,BD35,IF($W$16=5,BK35,IF($W$16=6,BR35,IF($W$16=7,BY35,IF($W$16=8,CF35)))))))) -> 33.7 | AB35: =IF($W$16=1,AJ35,IF($W$16=2,AQ35,IF($W$16=3,AX35,IF($W$16=4,BE35,IF($W$16=5,BL35,IF($W$16=6,BS35,IF($W$16=7,BZ35,IF($W$16=8,CG35)))))))) -> 2.8 | AC35: =IF($W$16=1,AK35,IF($W$16=2,AR35,IF($W$16=3,AY35,IF($W$16=4,BF35,IF($W$16=5,BM35,IF($W$16=6,BT35,IF($W$16=7,CA35,IF($W$16=8,CH35)))))))) -> 173 | AD35: c | AE35: -2.955956018 | AF35: a | AH35: a | AI35: 34.0 | AJ35: 2.8 | AK35: 190 | AM35: a | AO35: a | AP35: =AI35 -> 34.0 | AQ35: 2.5 | AR35: 98 | AT35: a | AV35: a | AW35: 33.7 | AX35: =AJ35 -> 2.8 | AY35: 173 | BA35: a | BC35: a | BD35: =AW35 -> 33.7 | BE35: =AQ35 -> 2.5 | BF35: 89 | BH35: a | BI35: 0.1144943768 | BJ35: a | BK35: 34.2 | BL35: 2.8 | BM35: 200 | BN35: -0.2240995466 | BO35: a | BQ35: a | BR35: =BK35 -> 34.2 | BS35: 2.7 | BT35: 139 | BV35: a | BX35: a | BY35: 33 | BZ35: =BL35 -> 2.8 | CA35: 182 | CC35: a | CE35: a | CF35: =BY35 -> 33 | CG35: =BS35 -> 2.7 | CH35: 126
B36: 40% | C36: 4 | D36: =(($W$35*$C36^4+$W$36*$C36^3+$W$37*$C36^2+$W$38*$C36+$W$39)*((((Tv_heat-Tr_heat)/LN((Tv_heat-Tl_heat)/(Tr_heat-Tl_heat)))/((75-65)/LN((75-20)/(65-20))))^1))*$D$14*$AA$11 -> 3401 | E36: =ROUND(((D36/$D$14)/((Tv_heat-Tr_heat)*1.163))*$E$14,IF($W$4=1,0,IF($W$4=2,2))) -> 292 | F36: =($X$36*(E36/$E$14)^$X$38)*$F$14 -> 4.19 | G36: =(($Y$35*$C36^4+$Y$36*$C36^3+$Y$37*$C36^2+$Y$38*$C36+$Y$39)*((((Tv_cool-Tr_cool)/LN((Tv_cool-Tl_cool)/(Tr_cool-Tl_cool)))/((16-18)/LN((16-27)/(18-27))))^S36))*$G$14*$AA$11 -> 623 | H36: =((G36/$G$14)/(IF((237.3*LN((RH*EXP(17.27*(Tl_cool/(Tl_cool+237.3))))))/(17.27-LN((RH*EXP(17.27*(Tl_cool/(Tl_cool+237.3))))))<((Tv_cool+Tr_cool)/2),1,IF(1/(1+((2258*((0.622/((p_atm/(1*611*EXP(17.27*(((Tv_cool+Tr_cool)/2)/(((Tv_cool+Tr_cool)/2)+237.3))))))-1)*1000-(0.622/((p_atm/(RH*611*EXP(17.27*(Tl_cool/(Tl_cool+237.3))))))-1)*1000))/(1005*(((Tv_cool+Tr_cool)/2)-Tl_cool))))*1.039+((-0.000729*$C36+0.001448)*(Tl_cool-((Tv_cool+Tr_cool)/2))+(0.016908*$C36-0.033574))*1.039>1,1,1/(1+((2258*((0.622/((p_atm/(1*611*EXP(17.27*(((Tv_cool+Tr_cool)/2)/(((Tv_cool+Tr_cool)/2)+237.3))))))-1)*1000-(0.622/((p_atm/(RH*611*EXP(17.27*(Tl_cool/(Tl_cool+237.3))))))-1)*1000))/(1005*(((Tv_cool+Tr_cool)/2)-Tl_cool))))*1.039+((-0.000729*$C36+0.001448)*(Tl_cool-((Tv_cool+Tr_cool)/2))+(0.016908*$C36-0.033574))*1.039))))*$H$14 -> 747 | I36: =ROUND(((H36/$H$14)/((Tr_cool-Tv_cool)*1.163))*$I$14,IF($W$4=1,0,IF($W$4=2,2))) -> 107 | J36: =($Z$36*(I36/$I$14)^$Z$38)*$J$14 -> 0.67 | K36: 30.5 | L36: 38.5 | M36: 5.5 | N36: 268 | O36: =(Tl_heat+(($D36/$G$14)/(1006*$N36*$K$14)))*(0.05*$C36+0.7)*$M$14+$O$14 -> 51.9 | P36: =(Tl_cool-((G36/$G$14)/(1006*N36*$K$14)))*$M$14+$O$14 -> 18.1 | S36: 1.000 | W36: 1.511866067 | X36: 0.0001293291521 | Y36: 0.186322154 | Z36: 0.0001293291521 | AA36: 38.5 | AB36: 5.5 | AC36: 268 | AD36: d | AE36: 78.37497387 | AF36: 0.0001293291521 | AG36: -0.9895255553 | AH36: =AF36 -> 0.0001293291521 | AI36: 39.4 | AJ36: 5.5 | AK36: 295 | AL36: 1.907508603 | AM36: =AF36 -> 0.0001293291521 | AN36: 0.1759815092 | AO36: =AH36 -> 0.0001293291521 | AP36: 39.4 | AQ36: 4.5 | AR36: 174 | AS36: 1.511866067 | AT36: =AF36 -> 0.0001293291521 | AU36: 0.186322154 | AV36: =AO36 -> 0.0001293291521 | AW36: 38.5 | AX36: 5.5 | AY36: 268 | AZ36: 1.426761087 | BA36: =AF36 -> 0.0001293291521 | BB36: 0.2115184659 | BC36: =AH36 -> 0.0001293291521 | BD36: 38.5 | BE36: 4.5 | BF36: 158 | BG36: -1.019395258 | BH36: 0.0002716990575 | BI36: -3.058020269 | BJ36: =BH36 -> 0.0002716990575 | BK36: 40.0 | BL36: 5.5 | BM36: 297 | BN36: 7.327370775 | BO36: =AF36 -> 0.0001293291521 | BP36: -0.2264193964 | BQ36: =BJ36 -> 0.0002716990575 | BR36: 40.0 | BS36: 5.2 | BT36: 251 | BU36: -1.703273168 | BV36: =BH36 -> 0.0002716990575 | BW36: -0.311933296 | BX36: =BJ36 -> 0.0002716990575 | BY36: 38.8 | BZ36: 5.5 | CA36: 270 | CB36: 1.134489457 | CC36: =BO36 -> 0.0001293291521 | CD36: -0.3378093391 | CE36: =BQ36 -> 0.0002716990575 | CF36: 38.8 | CG36: 5.2 | CH36: 228
B37: 60% | C37: 6 | D37: =(($W$35*$C37^4+$W$36*$C37^3+$W$37*$C37^2+$W$38*$C37+$W$39)*((((Tv_heat-Tr_heat)/LN((Tv_heat-Tl_heat)/(Tr_heat-Tl_heat)))/((75-65)/LN((75-20)/(65-20))))^1))*$D$14*$AA$11 -> 3894 | E37: =ROUND(((D37/$D$14)/((Tv_heat-Tr_heat)*1.163))*$E$14,IF($W$4=1,0,IF($W$4=2,2))) -> 335 | F37: 5.38 | G37: =(($Y$35*$C37^4+$Y$36*$C37^3+$Y$37*$C37^2+$Y$38*$C37+$Y$39)*((((Tv_cool-Tr_cool)/LN((Tv_cool-Tl_cool)/(Tr_cool-Tl_cool)))/((16-18)/LN((16-27)/(18-27))))^S37))*$G$14*$AA$11 -> 698 | H37: =((G37/$G$14)/(IF((237.3*LN((RH*EXP(17.27*(Tl_cool/(Tl_cool+237.3))))))/(17.27-LN((RH*EXP(17.27*(Tl_cool/(Tl_cool+237.3))))))<((Tv_cool+Tr_cool)/2),1,IF(1/(1+((2258*((0.622/((p_atm/(1*611*EXP(17.27*(((Tv_cool+Tr_cool)/2)/(((Tv_cool+Tr_cool)/2)+237.3))))))-1)*1000-(0.622/((p_atm/(RH*611*EXP(17.27*(Tl_cool/(Tl_cool+237.3))))))-1)*1000))/(1005*(((Tv_cool+Tr_cool)/2)-Tl_cool))))*1.039+((-0.000729*$C37+0.001448)*(Tl_cool-((Tv_cool+Tr_cool)/2))+(0.016908*$C37-0.033574))*1.039>1,1,1/(1+((2258*((0.622/((p_atm/(1*611*EXP(17.27*(((Tv_cool+Tr_cool)/2)/(((Tv_cool+Tr_cool)/2)+237.3))))))-1)*1000-(0.622/((p_atm/(RH*611*EXP(17.27*(Tl_cool/(Tl_cool+237.3))))))-1)*1000))/(1005*(((Tv_cool+Tr_cool)/2)-Tl_cool))))*1.039+((-0.000729*$C37+0.001448)*(Tl_cool-((Tv_cool+Tr_cool)/2))+(0.016908*$C37-0.033574))*1.039))))*$H$14 -> 824 | I37: =ROUND(((H37/$H$14)/((Tr_cool-Tv_cool)*1.163))*$I$14,IF($W$4=1,0,IF($W$4=2,2))) -> 118 | J37: 0.80 | K37: 37.3 | L37: 45.3 | M37: 10.3 | N37: 373 | O37: =(Tl_heat+(($D37/$G$14)/(1006*$N37*$K$14)))*(0.05*$C37+0.7)*$M$14+$O$14 -> 51.0 | P37: =(Tl_cool-((G37/$G$14)/(1006*N37*$K$14)))*$M$14+$O$14 -> 19.4 | S37: 1.000 | W37: -6.786190864 | X37: b | Y37: -0.2518869763 | Z37: b | AA37: 45.3 | AB37: 10.3 | AC37: 373 | AD37: e | AE37: -704.3094999 | AF37: b | AG37: 21.04226447 | AH37: b | AI37: 46.4 | AJ37: 10.3 | AK37: 410 | AL37: -17.74672925 | AM37: b | AN37: -1.042020952 | AO37: b | AP37: 46.4 | AQ37: 9.0 | AR37: 249 | AS37: -6.786190864 | AT37: b | AU37: -0.2518869763 | AV37: b | AW37: 45.3 | AX37: 10.3 | AY37: 373 | AZ37: -10.16365605 | BA37: b | BB37: -2.312432306 | BC37: b | BD37: 45.3 | BE37: 9.0 | BF37: 227 | BG37: 10.78117468 | BH37: b | BI37: 28.3618066 | BJ37: b | BK37: 47.0 | BL37: 10.0 | BM37: 396 | BN37: -68.30313375 | BO37: b | BP37: 3.885307598 | BQ37: b | BR37: 47.0 | BS37: 9.1 | BT37: 334 | BU37: 26.26805005 | BV37: b | BW37: 5.571272066 | BX37: b | BY37: 45.5 | BZ37: 10.0 | CA37: 360 | CB37: -6.653151375 | CC37: b | CD37: 6.504147276 | CE37: b | CF37: 45.5 | CG37: 9.1 | CH37: 304
B38: 80% | C38: 8 | D38: =(($W$35*$C38^4+$W$36*$C38^3+$W$37*$C38^2+$W$38*$C38+$W$39)*((((Tv_heat-Tr_heat)/LN((Tv_heat-Tl_heat)/(Tr_heat-Tl_heat)))/((75-65)/LN((75-20)/(65-20))))^1))*$D$14*$AA$11 -> 4551 | E38: =ROUND(((D38/$D$14)/((Tv_heat-Tr_heat)*1.163))*$E$14,IF($W$4=1,0,IF($W$4=2,2))) -> 391 | F38: 7.14 | G38: =(($Y$35*$C38^4+$Y$36*$C38^3+$Y$37*$C38^2+$Y$38*$C38+$Y$39)*((((Tv_cool-Tr_cool)/LN((Tv_cool-Tl_cool)/(Tr_cool-Tl_cool)))/((16-18)/LN((16-27)/(18-27))))^S38))*$G$14*$AA$11 -> 808 | H38: =((G38/$G$14)/(IF((237.3*LN((RH*EXP(17.27*(Tl_cool/(Tl_cool+237.3))))))/(17.27-LN((RH*EXP(17.27*(Tl_cool/(Tl_cool+237.3))))))<((Tv_cool+Tr_cool)/2),1,IF(1/(1+((2258*((0.622/((p_atm/(1*611*EXP(17.27*(((Tv_cool+Tr_cool)/2)/(((Tv_cool+Tr_cool)/2)+237.3))))))-1)*1000-(0.622/((p_atm/(RH*611*EXP(17.27*(Tl_cool/(Tl_cool+237.3))))))-1)*1000))/(1005*(((Tv_cool+Tr_cool)/2)-Tl_cool))))*1.039+((-0.000729*$C38+0.001448)*(Tl_cool-((Tv_cool+Tr_cool)/2))+(0.016908*$C38-0.033574))*1.039>1,1,1/(1+((2258*((0.622/((p_atm/(1*611*EXP(17.27*(((Tv_cool+Tr_cool)/2)/(((Tv_cool+Tr_cool)/2)+237.3))))))-1)*1000-(0.622/((p_atm/(RH*611*EXP(17.27*(Tl_cool/(Tl_cool+237.3))))))-1)*1000))/(1005*(((Tv_cool+Tr_cool)/2)-Tl_cool))))*1.039+((-0.000729*$C38+0.001448)*(Tl_cool-((Tv_cool+Tr_cool)/2))+(0.016908*$C38-0.033574))*1.039))))*$H$14 -> 938 | I38: =ROUND(((H38/$H$14)/((Tr_cool-Tv_cool)*1.163))*$I$14,IF($W$4=1,0,IF($W$4=2,2))) -> 134 | J38: 1.01 | K38: 43.0 | L38: 51.0 | M38: 18.5 | N38: 466 | O38: =(Tl_heat+(($D38/$G$14)/(1006*$N38*$K$14)))*(0.05*$C38+0.7)*$M$14+$O$14 -> 53.9 | P38: =(Tl_cool-((G38/$G$14)/(1006*N38*$K$14)))*$M$14+$O$14 -> 19.8 | S38: 1.000 | W38: 199.5924374 | X38: 1.829330159 | Y38: 15.66445536 | Z38: 1.829330159 | AA38: 51 | AB38: 18.5 | AC38: 466 | AD38: f | AE38: 2760.940409 | AF38: 1.829330159 | AG38: -83.40631659 | AH38: =AF38 -> 1.829330159 | AI38: 52.2 | AJ38: 18.5 | AK38: 512 | AL38: 249.0579922 | AM38: =AF38 -> 1.829330159 | AN38: 25.70166885 | AO38: =AH38 -> 1.829330159 | AP38: 52.2 | AQ38: 17.0 | AR38: 318 | AS38: 199.5924374 | AT38: =AF38 -> 1.829330159 | AU38: 15.66445536 | AV38: =AO38 -> 1.829330159 | AW38: 51.0 | AX38: 18.5 | AY38: 466 | AZ38: 191.91979 | BA38: =AF38 -> 1.829330159 | BB38: 34.90758347 | BC38: =AH38 -> 1.829330159 | BD38: 51.0 | BE38: 17.0 | BF38: 289 | BG38: 534.8841978 | BH38: 1.815439155 | BI38: -38.70731927 | BJ38: =BH38 -> 1.815439155 | BK38: 52.5 | BL38: 18.0 | BM38: 500 | BN38: 411.5965362 | BO38: =AF38 -> 1.829330159 | BP38: 30.98959677 | BQ38: =BJ38 -> 1.815439155 | BR38: 52.5 | BS38: 16.0 | BT38: 432 | BU38: 398.1010259 | BV38: =BH38 -> 1.815439155 | BW38: 34.97111416 | BX38: =BJ38 -> 1.815439155 | BY38: 50.8 | BZ38: 18.0 | CA38: 455 | CB38: 140.5340506 | CC38: =BO38 -> 1.829330159 | CD38: 9.261657388 | CE38: =BQ38 -> 1.815439155 | CF38: 50.8 | CG38: 16.0 | CH38: 393
B39: 100% | C39: 10 | D39: =(($W$35*$C39^4+$W$36*$C39^3+$W$37*$C39^2+$W$38*$C39+$W$39)*((((Tv_heat-Tr_heat)/LN((Tv_heat-Tl_heat)/(Tr_heat-Tl_heat)))/((75-65)/LN((75-20)/(65-20))))^1))*$D$14*$AA$11 -> 5444 | E39: =ROUND(((D39/$D$14)/((Tv_heat-Tr_heat)*1.163))*$E$14,IF($W$4=1,0,IF($W$4=2,2))) -> 468 | F39: 9.92 | G39: =(($Y$35*$C39^4+$Y$36*$C39^3+$Y$37*$C39^2+$Y$38*$C39+$Y$39)*((((Tv_cool-Tr_cool)/LN((Tv_cool-Tl_cool)/(Tr_cool-Tl_cool)))/((16-18)/LN((16-27)/(18-27))))^S39))*$G$14*$AA$11 -> 965 | H39: =((G39/$G$14)/(IF((237.3*LN((RH*EXP(17.27*(Tl_cool/(Tl_cool+237.3))))))/(17.27-LN((RH*EXP(17.27*(Tl_cool/(Tl_cool+237.3))))))<((Tv_cool+Tr_cool)/2),1,IF(1/(1+((2258*((0.622/((p_atm/(1*611*EXP(17.27*(((Tv_cool+Tr_cool)/2)/(((Tv_cool+Tr_cool)/2)+237.3))))))-1)*1000-(0.622/((p_atm/(RH*611*EXP(17.27*(Tl_cool/(Tl_cool+237.3))))))-1)*1000))/(1005*(((Tv_cool+Tr_cool)/2)-Tl_cool))))*1.039+((-0.000729*$C39+0.001448)*(Tl_cool-((Tv_cool+Tr_cool)/2))+(0.016908*$C39-0.033574))*1.039>1,1,1/(1+((2258*((0.622/((p_atm/(1*611*EXP(17.27*(((Tv_cool+Tr_cool)/2)/(((Tv_cool+Tr_cool)/2)+237.3))))))-1)*1000-(0.622/((p_atm/(RH*611*EXP(17.27*(Tl_cool/(Tl_cool+237.3))))))-1)*1000))/(1005*(((Tv_cool+Tr_cool)/2)-Tl_cool))))*1.039+((-0.000729*$C39+0.001448)*(Tl_cool-((Tv_cool+Tr_cool)/2))+(0.016908*$C39-0.033574))*1.039))))*$H$14 -> 1102 | I39: =ROUND(((H39/$H$14)/((Tr_cool-Tv_cool)*1.163))*$I$14,IF($W$4=1,0,IF($W$4=2,2))) -> 158 | J39: 1.36 | K39: 47.0 | L39: 55.0 | M39: 28.8 | N39: 510 | O39: =(Tl_heat+(($D39/$G$14)/(1006*$N39*$K$14)))*(0.05*$C39+0.7)*$M$14+$O$14 -> 62.1 | P39: =(Tl_cool-((G39/$G$14)/(1006*N39*$K$14)))*$M$14+$O$14 -> 19.4 | S39: 1.000 | W39: 2614.564209 | X39: 0 | Y39: 379.7620831 | Z39: 0 | AA39: 55 | AB39: 28.8 | AC39: 510 | AD39: g | AE39: -11.08146688 | AG39: 482.8074434 | AI39: 56.0 | AJ39: 28.8 | AK39: 560 | AL39: 2163.60481 | AN39: 283.0273063 | AP39: 56.0 | AQ39: 28.8 | AR39: 420 | AS39: 2614.564209 | AU39: 379.7620831 | AW39: 55.0 | AX39: 28.8 | AY39: 510 | AZ39: 2025.647069 | BB39: 228.6064063 | BD39: 55.0 | BE39: 28.8 | BF39: 382 | BG39: 3546.90266 | BI39: 613.1687952 | BK39: 56.5 | BL39: 28.8 | BM39: 583 | BN39: 1396.965717 | BP39: 389.5552244 | BR39: 56.5 | BS39: 27.3 | BT39: 508 | BU39: 3621.175589 | BW39: 500.4299071 | BY39: 54.5 | BZ39: 28.8 | CA39: 531 | CB39: 1716.317461 | CD39: 414.9879357 | CF39: 54.5 | CG39: 27.3 | CH39: 462
B40: =IF($S$7=1,NL!B40,IF(cal!$S$7=2,EN!B40,IF(cal!$S$7=3,DE!B40,IF(cal!$S$7=4,FR!B40,IF(cal!$S$7=5,NR!B40,IF(cal!$S$7=6,SP!B40,IF(cal!$S$7=7,SW!B40,IF(cal!$S$7=8,TS!B40,IF(cal!$S$7=9,ExtraTaal1!B40,IF(cal!$S$7=10,ExtraTaal2!B40,IF(cal!$S$7=11,ExtraTaal3!B40,))))))))))) -> *Geluidsvermogen gemeten volgens ISO 3741:2010 | P40: ='Briza 12'!P39 -> v2021-04-26 | W40: H | X40: 41.0 | Y40: B | Z40: 14.0 | AA40: L | AB40: 145.0 | AE40: H | AF40: =38*IF($W$4=1,1,IF($W$4=2,1/2.54)) -> 38 | AG40: B | AH40: =12*IF($W$4=1,1,IF($W$4=2,1/2.54)) -> 12 | AI40: L | AJ40: =122*IF($W$4=1,1,IF($W$4=2,1/2.54)) -> 122 | AL40: H | AM40: =38*IF($W$4=1,1,IF($W$4=2,1/2.54)) -> 38 | AN40: B | AO40: =12*IF($W$4=1,1,IF($W$4=2,1/2.54)) -> 12 | AP40: L | AQ40: =122*IF($W$4=1,1,IF($W$4=2,1/2.54)) -> 122 | AS40: H | AT40: =41*IF($W$4=1,1,IF($W$4=2,1/2.54)) -> 41 | AU40: B | AV40: =14*IF($W$4=1,1,IF($W$4=2,1/2.54)) -> 14 | AW40: L | AX40: =145*IF($W$4=1,1,IF($W$4=2,1/2.54)) -> 145 | AZ40: H | BA40: =41*IF($W$4=1,1,IF($W$4=2,1/2.54)) -> 41 | BB40: B | BC40: =14*IF($W$4=1,1,IF($W$4=2,1/2.54)) -> 14 | BD40: L | BE40: =145*IF($W$4=1,1,IF($W$4=2,1/2.54)) -> 145 | BG40: H | BH40: =52*IF($W$4=1,1,IF($W$4=2,1/2.54)) -> 52 | BI40: B | BJ40: =12*IF($W$4=1,1,IF($W$4=2,1/2.54)) -> 12 | BK40: L | BL40: =122*IF($W$4=1,1,IF($W$4=2,1/2.54)) -> 122 | BN40: H | BO40: =52*IF($W$4=1,1,IF($W$4=2,1/2.54)) -> 52 | BP40: B | BQ40: =12*IF($W$4=1,1,IF($W$4=2,1/2.54)) -> 12 | BR40: L | BS40: =122*IF($W$4=1,1,IF($W$4=2,1/2.54)) -> 122 | BU40: H | BV40: =55*IF($W$4=1,1,IF($W$4=2,1/2.54)) -> 55 | BW40: B | BX40: =14*IF($W$4=1,1,IF($W$4=2,1/2.54)) -> 14 | BY40: L | BZ40: =145*IF($W$4=1,1,IF($W$4=2,1/2.54)) -> 145 | CB40: H | CC40: =55*IF($W$4=1,1,IF($W$4=2,1/2.54)) -> 55 | CD40: B | CE40: =14*IF($W$4=1,1,IF($W$4=2,1/2.54)) -> 14 | CF40: L | CG40: =145*IF($W$4=1,1,IF($W$4=2,1/2.54)) -> 145
B41: =IF($S$7=1,NL!B41,IF(cal!$S$7=2,EN!B41,IF(cal!$S$7=3,DE!B41,IF(cal!$S$7=4,FR!B41,IF(cal!$S$7=5,NR!B41,IF(cal!$S$7=6,SP!B41,IF(cal!$S$7=7,SW!B41,IF(cal!$S$7=8,TS!B41,IF(cal!$S$7=9,ExtraTaal1!B41,IF(cal!$S$7=10,ExtraTaal2!B41,IF(cal!$S$7=11,ExtraTaal3!B41,))))))))))) -> **Geluidsdruk bij een aangenomen ruimtedemping van 8 dB(A)

Sheet NL (hidden)
B3: Invulformulier
H4: Hydraulisch mengsel: | I4: 0 | J4: 0 | K4: 0
B5: Randvoorwaarden | H5: Toestel - Ventilator - Uitvoering: | I5: 0 | J5: 0 | K5: 0
B7: Temperaturen | Q7: Kopieer alle data
B8: Verwarmen: | G8: Koelen: | Q8: SI-eenheden
B9: ="Water aanvoer" -> Water aanvoer | E9: =cal!E9 -> 75 | G9: =B9 -> Water aanvoer | K9: =cal!K9 -> 8 | M9: Eenheidsstelsel | Q9: Imperiale-eenheden
B10: ="Water retour" -> Water retour | E10: =cal!E10 -> 65 | G10: =B10 -> Water retour | K10: =cal!K10 -> 14
B11: ="Ruimte" -> Ruimte | E11: =cal!E11 -> 20 | G11: =B11 -> Ruimte | K11: =cal!K11 -> 25
G12: Relatieve vochtigheid | K12: =cal!K12 -> 50%
B15: Snelheidsniveau | C15: Stuurspanning [V] | D15: =CONCATENATE("Warmteafgifte ",ROUND(E9,0),"/",ROUND(E10,0),"/",ROUND(E11,0)," ["&IF(UnitsNo=1,"W",IF(UnitsNo=2,"Btu/h"))&"]") -> Warmteafgifte 75/65/20 [W] | E15: ="Waterdebiet, verwarming ["&IF(UnitsNo=1,"l/h",IF(UnitsNo=2,"GPM"))&"]" -> Waterdebiet, verwarming [l/h] | F15: ="Waterzijdig drukverlies ["&IF(UnitsNo=1,"kPa",IF(UnitsNo=2,"inH2O"))&"]" -> Waterzijdig drukverlies [kPa] | G15: =CONCATENATE("Voelb. Koelcapaciteit ",ROUND(K9,0),"/",,ROUND(K10,0),"/",,ROUND(K11,0)," ["&IF(UnitsNo=1,"W",IF(UnitsNo=2,"Btu/h"))&"]") -> Voelb. Koelcapaciteit 8/14/25 [W] | H15: =CONCATENATE("Tot. koelcapaciteit ",,ROUND(K9,0),"/",,ROUND(K10,0),"/",,ROUND(K11,0)," ["&IF(UnitsNo=1,"W",IF(UnitsNo=2,"Btu/h"))&"]") -> Tot. koelcapaciteit 8/14/25 [W] | I15: ="Waterdebiet, koeling ["&IF(UnitsNo=1,"l/h",IF(UnitsNo=2,"GPM"))&"]" -> Waterdebiet, koeling [l/h] | J15: ="Waterzijdig drukverlies ["&IF(UnitsNo=1,"kPa",IF(UnitsNo=2,"inH2O"))&"]" -> Waterzijdig drukverlies [kPa] | K15: Geluidsdruk ** [dB(A)] | L15: Geluidsvermogen * [dB(A)] | M15: Opgenomen elektr. vermogen [W] | N15: ="Luchtdebiet ["&IF(UnitsNo=1,"m³/h",IF(UnitsNo=2,"CFM"))&"]" -> Luchtdebiet [m³/h] | O15: ="Uitblaastemp. verwarming ["&IF(UnitsNo=1,"°C",IF(UnitsNo=2,"°F"))&"]" -> Uitblaastemp. verwarming [°C] | P15: ="Uitblaastemp. koeling ["&IF(UnitsNo=1,"°C",IF(UnitsNo=2,"°F"))&"]" -> Uitblaastemp. koeling [°C]
B16: =cal!$X$1&" "&$T$16&" "&ROUND(cal!X22,1)&IF(UnitsNo=1," cm",IF(UnitsNo=2," in"))& " "&$T$17&" "&ROUND(cal!Z22,1)&IF(UnitsNo=1," cm",IF(UnitsNo=2," in"))&" "&$T$18&" "&ROUND(cal!AB22,1)&IF(UnitsNo=1," cm",IF(UnitsNo=2," in"))&" (Type 1)" -> Briza 12 hoogte 41 cm breedte 14 cm lengte 75 cm (Type 1) | R16: Temp. | T16: hoogte
R17: verw.! | T17: breedte
R18: koelen! | T18: lengte
B22: =cal!$X$1&" "&$T$16&" "&ROUND(cal!X28,1)&IF(UnitsNo=1," cm",IF(UnitsNo=2," in"))& " "&$T$17&" "&ROUND(cal!Z28,1)&IF(UnitsNo=1," cm",IF(UnitsNo=2," in"))&" "&$T$18&" "&ROUND(cal!AB28,1)&IF(UnitsNo=1," cm",IF(UnitsNo=2," in"))&" (Type 2)" -> Briza 12 hoogte 41 cm breedte 14 cm lengte 95 cm (Type 2)
B28: =cal!$X$1&" "&$T$16&" "&ROUND(cal!X34,1)&IF(UnitsNo=1," cm",IF(UnitsNo=2," in"))& " "&$T$17&" "&ROUND(cal!Z34,1)&IF(UnitsNo=1," cm",IF(UnitsNo=2," in"))&" "&$T$18&" "&ROUND(cal!AB34,1)&IF(UnitsNo=1," cm",IF(UnitsNo=2," in"))&" (Type 3)" -> Briza 12 hoogte 41 cm breedte 14 cm lengte 125 cm (Type 3)
B34: =cal!$X$1&" "&$T$16&" "&ROUND(cal!X40,1)&IF(UnitsNo=1," cm",IF(UnitsNo=2," in"))& " "&$T$17&" "&ROUND(cal!Z40,1)&IF(UnitsNo=1," cm",IF(UnitsNo=2," in"))&" "&$T$18&" "&ROUND(cal!AB40,1)&IF(UnitsNo=1," cm",IF(UnitsNo=2," in"))&" (Type 4)" -> Briza 12 hoogte 41 cm breedte 14 cm lengte 145 cm (Type 4)
B40: *Geluidsvermogen gemeten volgens ISO 3741:2010 | N40: =cal!P40 -> v2021-04-26
B41: **Geluidsdruk bij een aangenomen ruimtedemping van 8 dB(A)

Sheet EN (hidden)
B3: Formulary
H4: Hydraulic mix: | I4: 0 | J4: 0 | K4: 0
B5: Conditions | H5: Device - Ventilator - Utilization: | I5: 0 | J5: 0 | K5: 0
B7: Temperatures | Q7: Copy all data
B8: Heating: | G8: Cooling: | Q8: SI-units
B9: Supply water | E9: =cal!E9 -> 75 | G9: =B9 -> Supply water | K9: =cal!K9 -> 8 | M9: Unit conversion | Q9: Imperial-units
B10: Return water | E10: =cal!E10 -> 65 | G10: =B10 -> Return water | K10: =cal!K10 -> 14
B11: Entering air | E11: =cal!E11 -> 20 | G11: =B11 -> Entering air | K11: =cal!K11 -> 25
G12: Relative humidity | K12: =cal!K12 -> 50%
B15: Speed level | C15: Control voltage [V] | D15: =CONCATENATE("Heat output ",ROUND(E9,0),"/",ROUND(E10,0),"/",ROUND(E11,0)," ["&IF(cal!$W$4=1,"W",IF(cal!$W$4=2,"Btu/h"))&"]") -> Heat output 75/65/20 [W] | E15: ="Water flowrate, heating ["&IF(cal!$W$4=1,"l/h",IF(cal!$W$4=2,"GPM"))&"]" -> Water flowrate, heating [l/h] | F15: ="Watersided pressure loss ["&IF(cal!$W$4=1,"kPa",IF(cal!$W$4=2,"inH2O"))&"]" -> Watersided pressure loss [kPa] | G15: =CONCATENATE("Sens. cooling capacity ",ROUND(K9,0),"/",ROUND(K10,0),"/",ROUND(K11,0)," ["&IF(cal!$W$4=1,"W",IF(cal!$W$4=2,"Btu/h"))&"]") -> Sens. cooling capacity 8/14/25 [W] | H15: =CONCATENATE("Tot. cooling capacity ",ROUND(K9,0),"/",ROUND(K10,0),"/",ROUND(K11,0)," ["&IF(cal!$W$4=1,"W",IF(cal!$W$4=2,"Btu/h"))&"]") -> Tot. cooling capacity 8/14/25 [W] | I15: ="Water flowrate, cooling ["&IF(cal!$W$4=1,"l/h",IF(cal!$W$4=2,"GPM"))&"]" -> Water flowrate, cooling [l/h] | J15: ="Watersided pressure loss ["&IF(cal!$W$4=1,"kPa",IF(cal!$W$4=2,"inH2O"))&"]" -> Watersided pressure loss [kPa] | K15: Sound pressure ** [dB(A)] | L15: Sound power * [dB(A)] | M15: Electrical power [W] | N15: ="Air flowrate ["&IF(cal!$W$4=1,"m³/h",IF(cal!$W$4=2,"CFM"))&"]" -> Air flowrate [m³/h] | O15: ="Air exhaust temp. heating ["&IF(cal!$W$4=1,"°C",IF(cal!$W$4=2,"°F"))&"]" -> Air exhaust temp. heating [°C] | P15: ="Air exhaust temp. cooling ["&IF(cal!$W$4=1,"°C",IF(cal!$W$4=2,"°F"))&"]" -> Air exhaust temp. cooling [°C]
B16: =cal!$X$1&" "&$T$16&" "&ROUND(cal!X22,1)&IF(UnitsNo=1," cm",IF(UnitsNo=2," in"))& " "&$T$17&" "&ROUND(cal!Z22,1)&IF(UnitsNo=1," cm",IF(UnitsNo=2," in"))&" "&$T$18&" "&ROUND(cal!AB22,1)&IF(UnitsNo=1," cm",IF(UnitsNo=2," in"))&" (Type 1)" -> Briza 12 height 41 cm width 14 cm length 75 cm (Type 1) | R16: Temp. | T16: height
R17: heating! | T17: width
R18: cooling! | T18: length
B22: =cal!$X$1&" "&$T$16&" "&ROUND(cal!X28,1)&IF(UnitsNo=1," cm",IF(UnitsNo=2," in"))& " "&$T$17&" "&ROUND(cal!Z28,1)&IF(UnitsNo=1," cm",IF(UnitsNo=2," in"))&" "&$T$18&" "&ROUND(cal!AB28,1)&IF(UnitsNo=1," cm",IF(UnitsNo=2," in"))&" (Type 2)" -> Briza 12 height 41 cm width 14 cm length 95 cm (Type 2)
B28: =cal!$X$1&" "&$T$16&" "&ROUND(cal!X34,1)&IF(UnitsNo=1," cm",IF(UnitsNo=2," in"))& " "&$T$17&" "&ROUND(cal!Z34,1)&IF(UnitsNo=1," cm",IF(UnitsNo=2," in"))&" "&$T$18&" "&ROUND(cal!AB34,1)&IF(UnitsNo=1," cm",IF(UnitsNo=2," in"))&" (Type 3)" -> Briza 12 height 41 cm width 14 cm length 125 cm (Type 3)
B34: =cal!$X$1&" "&$T$16&" "&ROUND(cal!X40,1)&IF(UnitsNo=1," cm",IF(UnitsNo=2," in"))& " "&$T$17&" "&ROUND(cal!Z40,1)&IF(UnitsNo=1," cm",IF(UnitsNo=2," in"))&" "&$T$18&" "&ROUND(cal!AB40,1)&IF(UnitsNo=1," cm",IF(UnitsNo=2," in"))&" (Type 4)" -> Briza 12 height 41 cm width 14 cm length 145 cm (Type 4)
B40: *Sound power according to ISO 3741:2010 | N40: =cal!P40 -> v2021-04-26
B41: **Sound pressure with an assumed room damping of 8dB(A)

Sheet DE (hidden)
B3: Eingabefelder
H4: Hydraulikgemisch:
B5: Auslegungsrandbedingungen | H5: Gerät - Lüfter - Ausfürhung: | I5: 0 | J5: 0 | K5: 0
B7: Temperaturen | Q7: Kopieren Sie alle daten
B8: Heizen: | G8: Kühlen: | Q8: SI-einheiten
B9: ="Vorlauf wasser" -> Vorlauf wasser | E9: =cal!E9 -> 75 | G9: =B9 -> Vorlauf wasser | K9: =cal!K9 -> 8 | M9: Einheiten | Q9: Imperiale-einheiten
B10: ="Rücklauf wasser" -> Rücklauf wasser | E10: =cal!E10 -> 65 | G10: =B10 -> Rücklauf wasser | K10: =cal!K10 -> 14
B11: ="Raum" -> Raum | E11: =cal!E11 -> 20 | G11: =B11 -> Raum | K11: =cal!K11 -> 25
G12: Relative Luftfeuchtigkeit | K12: =cal!K12 -> 50%
B15: Drehzahlstufe | C15: Regelspannung [V] | D15: =CONCATENATE("Wärmeleistung ",ROUND(E9,0),"/",ROUND(E10,0),"/",ROUND(E11,0)," ["&IF(cal!$W$4=1,"W",IF(cal!$W$4=2,"Btu/h"))&"]") -> Wärmeleistung 75/65/20 [W] | E15: ="Heizmittelstrom ["&IF(cal!$W$4=1,"l/h",IF(cal!$W$4=2,"GPM"))&"]" -> Heizmittelstrom [l/h] | F15: ="zug. wassers. Druckverlust ["&IF(cal!$W$4=1,"kPa",IF(cal!$W$4=2,"inH2O"))&"]" -> zug. wassers. Druckverlust [kPa] | G15: =CONCATENATE("Sens. Kälteleistung ",ROUND(K9,0),"/",ROUND(K10,0),"/",ROUND(K11,0)," ["&IF(cal!$W$4=1,"W",IF(cal!$W$4=2,"Btu/h"))&"]") -> Sens. Kälteleistung 8/14/25 [W] | H15: =CONCATENATE("Tot. Kälteleistung ",ROUND(K9,0),"/",ROUND(K10,0),"/",ROUND(K11,0)," ["&IF(cal!$W$4=1,"W",IF(cal!$W$4=2,"Btu/h"))&"]") -> Tot. Kälteleistung 8/14/25 [W] | I15: ="Kühlmittelstrom ["&IF(cal!$W$4=1,"l/h",IF(cal!$W$4=2,"GPM"))&"]" -> Kühlmittelstrom [l/h] | J15: ="zug. wassers. Druckverlust ["&IF(cal!$W$4=1,"kPa",IF(cal!$W$4=2,"inH2O"))&"]" -> zug. wassers. Druckverlust [kPa] | K15: Schalldruckpegel ** [dB(A)] | L15: Schallleistungspegel * [dB(A)] | M15: Leistungsaufnahme [W] | N15: ="Luftvolumenstrom ["&IF(cal!$W$4=1,"m³/h",IF(cal!$W$4=2,"CFM"))&"]" -> Luftvolumenstrom [m³/h] | O15: ="Luftaustrittstemp. Heizung ["&IF(cal!$W$4=1,"°C",IF(cal!$W$4=2,"°F"))&"]" -> Luftaustrittstemp. Heizung [°C] | P15: ="Luftaustrittstemp. Kühlung ["&IF(cal!$W$4=1,"°C",IF(cal!$W$4=2,"°F"))&"]" -> Luftaustrittstemp. Kühlung [°C]
B16: =cal!$X$1&" "&$T$16&" "&ROUND(cal!X22,1)&IF(UnitsNo=1," cm",IF(UnitsNo=2," in"))& " "&$T$17&" "&ROUND(cal!Z22,1)&IF(UnitsNo=1," cm",IF(UnitsNo=2," in"))&" "&$T$18&" "&ROUND(cal!AB22,1)&IF(UnitsNo=1," cm",IF(UnitsNo=2," in"))&" (Type 1)" -> Briza 12 höhe 41 cm breite 14 cm länge 75 cm (Type 1) | R16: Temp. | T16: höhe
R17: heizen! | T17: breite
R18: kühlen! | T18: länge
B22: =cal!$X$1&" "&$T$16&" "&ROUND(cal!X28,1)&IF(UnitsNo=1," cm",IF(UnitsNo=2," in"))& " "&$T$17&" "&ROUND(cal!Z28,1)&IF(UnitsNo=1," cm",IF(UnitsNo=2," in"))&" "&$T$18&" "&ROUND(cal!AB28,1)&IF(UnitsNo=1," cm",IF(UnitsNo=2," in"))&" (Type 2)" -> Briza 12 höhe 41 cm breite 14 cm länge 95 cm (Type 2)
B28: =cal!$X$1&" "&$T$16&" "&ROUND(cal!X34,1)&IF(UnitsNo=1," cm",IF(UnitsNo=2," in"))& " "&$T$17&" "&ROUND(cal!Z34,1)&IF(UnitsNo=1," cm",IF(UnitsNo=2," in"))&" "&$T$18&" "&ROUND(cal!AB34,1)&IF(UnitsNo=1," cm",IF(UnitsNo=2," in"))&" (Type 3)" -> Briza 12 höhe 41 cm breite 14 cm länge 125 cm (Type 3)
B34: =cal!$X$1&" "&$T$16&" "&ROUND(cal!X40,1)&IF(UnitsNo=1," cm",IF(UnitsNo=2," in"))& " "&$T$17&" "&ROUND(cal!Z40,1)&IF(UnitsNo=1," cm",IF(UnitsNo=2," in"))&" "&$T$18&" "&ROUND(cal!AB40,1)&IF(UnitsNo=1," cm",IF(UnitsNo=2," in"))&" (Type 4)" -> Briza 12 höhe 41 cm breite 14 cm länge 145 cm (Type 4)
B40: *Schallleistungspegel nach ISO 3741:2010
B41: **Schalldruckpegel bei angenommener Raumdämpfung von 8dB(A)

Sheet FR (hidden)
B3: Formulaire
H4: Mélange hydraulique:
B5: Conditions | H5: Appareil - Ventilateur - Version: | I5: 0 | J5: 0 | K5: 0
B7: Températures | Q7: Copier toutes des données
B8: Chauffer: | G8: Refroidir: | Q8: Unités-SI
B9: ="Entrée de l'eau" -> Entrée de l'eau | E9: =cal!E9 -> 75 | G9: =B9 -> Entrée de l'eau | K9: =cal!K9 -> 8 | M9: Système unitaire | Q9: Unités-Impériales
B10: ="Retour de l'eau" -> Retour de l'eau | E10: =cal!E10 -> 65 | G10: =B10 -> Retour de l'eau | K10: =cal!K10 -> 14
B11: ="Ambiante" -> Ambiante | E11: =cal!E11 -> 20 | G11: =B11 -> Ambiante | K11: =cal!K11 -> 25
G12: Humidité relative | K12: =cal!K12 -> 50%
B15: Niveau de vitesse | C15: Voltage [V] | D15: =CONCATENATE("Puissance de cha. ",ROUND(E9,0),"/",ROUND(E10,0),"/",ROUND(E11,0)," ["&IF(cal!$W$4=1,"W",IF(cal!$W$4=2,"Btu/h"))&"]") -> Puissance de cha. 75/65/20 [W] | E15: ="Débit d'eau, chauffer ["&IF(cal!$W$4=1,"l/h",IF(cal!$W$4=2,"GPM"))&"]" -> Débit d'eau, chauffer [l/h] | F15: ="Perte de charge ["&IF(cal!$W$4=1,"kPa",IF(cal!$W$4=2,"inH2O"))&"]" -> Perte de charge [kPa] | G15: =CONCATENATE("Puissance sens. de refr. ",ROUND(K9,0),"/",ROUND(K10,0),"/",ROUND(K11,0)," ["&IF(cal!$W$4=1,"W",IF(cal!$W$4=2,"Btu/h"))&"]") -> Puissance sens. de refr. 8/14/25 [W] | H15: =CONCATENATE("Puissance tot. de refr. ",ROUND(K9,0),"/",ROUND(K10,0),"/",ROUND(K11,0)," ["&IF(cal!$W$4=1,"W",IF(cal!$W$4=2,"Btu/h"))&"]") -> Puissance tot. de refr. 8/14/25 [W] | I15: ="Débit d'eau, refroidir ["&IF(cal!$W$4=1,"l/h",IF(cal!$W$4=2,"GPM"))&"]" -> Débit d'eau, refroidir [l/h] | J15: ="Perte de charge ["&IF(cal!$W$4=1,"kPa",IF(cal!$W$4=2,"inH2O"))&"]" -> Perte de charge [kPa] | K15: Pression sonore ** [dB(A)] | L15: Puissance sonore * [dB(A)] | M15: Puissance absorbée [W] | N15: ="Débit d'air ["&IF(cal!$W$4=1,"m³/h",IF(cal!$W$4=2,"CFM"))&"]" -> Débit d'air [m³/h] | O15: ="Temp. de la sortie d'air cha. ["&IF(cal!$W$4=1,"°C",IF(cal!$W$4=2,"°F"))&"]" -> Temp. de la sortie d'air cha. [°C] | P15: ="Temp. de la sortie d'air refr. ["&IF(cal!$W$4=1,"°C",IF(cal!$W$4=2,"°F"))&"]" -> Temp. de la sortie d'air refr. [°C]
B16: =cal!$X$1&" "&$T$16&" "&ROUND(cal!X22,1)&IF(UnitsNo=1," cm",IF(UnitsNo=2," in"))& " "&$T$17&" "&ROUND(cal!Z22,1)&IF(UnitsNo=1," cm",IF(UnitsNo=2," in"))&" "&$T$18&" "&ROUND(cal!AB22,1)&IF(UnitsNo=1," cm",IF(UnitsNo=2," in"))&" (Type 1)" -> Briza 12 hauteur 41 cm largeur 14 cm longueur 75 cm (Type 1) | R16: Temp. | T16: hauteur
R17: chauf.! | T17: largeur
R18: refr.! | T18: longueur
B22: =cal!$X$1&" "&$T$16&" "&ROUND(cal!X28,1)&IF(UnitsNo=1," cm",IF(UnitsNo=2," in"))& " "&$T$17&" "&ROUND(cal!Z28,1)&IF(UnitsNo=1," cm",IF(UnitsNo=2," in"))&" "&$T$18&" "&ROUND(cal!AB28,1)&IF(UnitsNo=1," cm",IF(UnitsNo=2," in"))&" (Type 2)" -> Briza 12 hauteur 41 cm largeur 14 cm longueur 95 cm (Type 2)
B28: =cal!$X$1&" "&$T$16&" "&ROUND(cal!X34,1)&IF(UnitsNo=1," cm",IF(UnitsNo=2," in"))& " "&$T$17&" "&ROUND(cal!Z34,1)&IF(UnitsNo=1," cm",IF(UnitsNo=2," in"))&" "&$T$18&" "&ROUND(cal!AB34,1)&IF(UnitsNo=1," cm",IF(UnitsNo=2," in"))&" (Type 3)" -> Briza 12 hauteur 41 cm largeur 14 cm longueur 125 cm (Type 3)
B34: =cal!$X$1&" "&$T$16&" "&ROUND(cal!X40,1)&IF(UnitsNo=1," cm",IF(UnitsNo=2," in"))& " "&$T$17&" "&ROUND(cal!Z40,1)&IF(UnitsNo=1," cm",IF(UnitsNo=2," in"))&" "&$T$18&" "&ROUND(cal!AB40,1)&IF(UnitsNo=1," cm",IF(UnitsNo=2," in"))&" (Type 4)" -> Briza 12 hauteur 41 cm largeur 14 cm longueur 145 cm (Type 4)
B40: *Puissance sonore testé selon ISO 3741:2010 | N40: =cal!P40 -> v2021-04-26
B41: **Pression sonore avec une atténuation ambiante du 8dB(A)

Sheet NR (hidden)
B3: Modell
H4: Væske blanding: | I4: 0 | J4: 0 | K4: 0
B5: Conditions | H5: Modell: | I5: 0 | J5: 0 | K5: 0
B7: Temperaturer | Q7: Kopier alle data
B8: Varme: | G8: Kjøling: | Q8: SI-enheter
B9: Tur vann | C9: 0 | D9: 0 | E9: =cal!E9 -> 75 | G9: =B9 -> Tur vann | K9: =cal!K9 -> 8 | M9: Enhetssystem | Q9: Imperiale-enheter
B10: Retur vann | C10: 0 | D10: 0 | E10: =cal!E10 -> 65 | G10: =B10 -> Retur vann | K10: =cal!K10 -> 14
B11: Rom | C11: 0 | D11: 0 | E11: =cal!E11 -> 20 | G11: =B11 -> Rom | K11: =cal!K11 -> 25
G12: Relativ fuktighet | K12: =cal!K12 -> 50%
B15: Hastighet | C15: Styresignal [V] | D15: =CONCATENATE("Varme effekt ",ROUND(E9,0),"/",ROUND(E10,0),"/",ROUND(E11,0)," ["&IF(cal!$W$4=1,"W",IF(cal!$W$4=2,"Btu/h"))&"]") -> Varme effekt 75/65/20 [W] | E15: ="Vannmengde, varme ["&IF(cal!$W$4=1,"l/h",IF(cal!$W$4=2,"GPM"))&"]" -> Vannmengde, varme [l/h] | F15: ="Trykktap ["&IF(cal!$W$4=1,"kPa",IF(cal!$W$4=2,"ftH2O"))&"]" -> Trykktap [kPa] | G15: =CONCATENATE("Sens. Kjøling effekt * ",ROUND(K9,0),"/",ROUND(K10,0),"/",ROUND(K11,0)," ["&IF(cal!$W$4=1,"W",IF(cal!$W$4=2,"Btu/h"))&"]") -> Sens. Kjøling effekt * 8/14/25 [W] | H15: =CONCATENATE("Tot. Kjøle effekt ",ROUND(K9,0),"/",ROUND(K10,0),"/",ROUND(K11,0)," ["&IF(cal!$W$4=1,"W",IF(cal!$W$4=2,"Btu/h"))&"]") -> Tot. Kjøle effekt 8/14/25 [W] | I15: ="Vannmengde, kjøling ["&IF(cal!$W$4=1,"l/h",IF(cal!$W$4=2,"GPM"))&"]" -> Vannmengde, kjøling [l/h] | J15: =F15 -> Trykktap [kPa] | K15: Lydtrykk ** [dB(A)] | L15: Lydeffekt * [dB(A)] | M15: Elektrisk effekt [W] | N15: ="Luftmengde ["&IF(cal!$W$4=1,"m³/h",IF(cal!$W$4=2,"CFM"))&"]" -> Luftmengde [m³/h] | O15: ="Uitblaastemp. verwarming ["&IF(cal!$W$4=1,"°C",IF(cal!$W$4=2,"°F"))&"]" -> Uitblaastemp. verwarming [°C] | P15: ="Uitblaastemp. koeling ["&IF(cal!$W$4=1,"°C",IF(cal!$W$4=2,"°F"))&"]" -> Uitblaastemp. koeling [°C]
B16: =cal!$X$1&" "&$T$16&" "&ROUND(cal!X22,1)&IF(UnitsNo=1," cm",IF(UnitsNo=2," in"))& " "&$T$17&" "&ROUND(cal!Z22,1)&IF(UnitsNo=1," cm",IF(UnitsNo=2," in"))&" "&$T$18&" "&ROUND(cal!AB22,1)&IF(UnitsNo=1," cm",IF(UnitsNo=2," in"))&" (Type 1)" -> Briza 12 høyde 41 cm bredde 14 cm lengde 75 cm (Type 1) | R16: Temp. | T16: høyde
R17: varme! | T17: bredde
R18: kjøling! | T18: lengde
B22: =cal!$X$1&" "&$T$16&" "&ROUND(cal!X28,1)&IF(UnitsNo=1," cm",IF(UnitsNo=2," in"))& " "&$T$17&" "&ROUND(cal!Z28,1)&IF(UnitsNo=1," cm",IF(UnitsNo=2," in"))&" "&$T$18&" "&ROUND(cal!AB28,1)&IF(UnitsNo=1," cm",IF(UnitsNo=2," in"))&" (Type 2)" -> Briza 12 høyde 41 cm bredde 14 cm lengde 95 cm (Type 2)
B28: =cal!$X$1&" "&$T$16&" "&ROUND(cal!X34,1)&IF(UnitsNo=1," cm",IF(UnitsNo=2," in"))& " "&$T$17&" "&ROUND(cal!Z34,1)&IF(UnitsNo=1," cm",IF(UnitsNo=2," in"))&" "&$T$18&" "&ROUND(cal!AB34,1)&IF(UnitsNo=1," cm",IF(UnitsNo=2," in"))&" (Type 3)" -> Briza 12 høyde 41 cm bredde 14 cm lengde 125 cm (Type 3)
B34: =cal!$X$1&" "&$T$16&" "&ROUND(cal!X40,1)&IF(UnitsNo=1," cm",IF(UnitsNo=2," in"))& " "&$T$17&" "&ROUND(cal!Z40,1)&IF(UnitsNo=1," cm",IF(UnitsNo=2," in"))&" "&$T$18&" "&ROUND(cal!AB40,1)&IF(UnitsNo=1," cm",IF(UnitsNo=2," in"))&" (Type 4)" -> Briza 12 høyde 41 cm bredde 14 cm lengde 145 cm (Type 4)
B40: **Sound power according to ISO 3741:2010 | N40: =cal!P40 -> v2021-04-26
B41: ***Sound pressure with an assumed room damping of 8dB(A)

Sheet SP (hidden)
B7: Temperaturas | Q7: Copiar todos los datos
B8: Calefacción: | G8: Enfriamiento: | Q8: Unidades-SI
B9: Agua impulsión | C9: 0 | D9: 0 | E9: =cal!E9 -> 75 | G9: =B9 -> Agua impulsión | K9: =cal!K9 -> 8 | M9: Convers. de unidades | Q9: Unidades-Imperial
B10: Agua retorno | C10: 0 | D10: 0 | E10: =cal!E10 -> 65 | G10: =B10 -> Agua retorno | K10: =cal!K10 -> 14
B11: Ambiente | C11: 0 | D11: 0 | E11: =cal!E11 -> 20 | G11: =B11 -> Ambiente | K11: =cal!K11 -> 25
G12: Humedad relativa | K12: =cal!K12 -> 50%
B15: Nivel de velocidad | C15: Voltaje control [V] | D15: =CONCATENATE("Emisión calefacción ",ROUND(E9,0),"/",ROUND(E10,0),"/",ROUND(E11,0)," ["&IF(UnitsNo=1,"W",IF(UnitsNo=2,"Btu/h"))&"]") -> Emisión calefacción 75/65/20 [W] | E15: ="Caudal de agua, calefacción ["&IF(1=1,"l/h",IF(UnitsNo=2,"GPM"))&"]" -> Caudal de agua, calefacción [l/h] | F15: ="Pérdida de carga del agua ["&IF(UnitsNo=1,"kPa",IF(UnitsNo=2,"ftH2O"))&"]" -> Pérdida de carga del agua [kPa] | G15: =CONCATENATE("Emisión sensible Frío * ",ROUND(K9,0),"/",ROUND(K10,0),"/",ROUND(K11,0)," ["&IF(UnitsNo=1,"W",IF(UnitsNo=2,"Btu/h"))&"]") -> Emisión sensible Frío * 8/14/25 [W] | H15: =CONCATENATE("Emisión total Frío ",ROUND(K9,0),"/",ROUND(K10,0),"/",ROUND(K11,0)," ["&IF(UnitsNo=1,"W",IF(UnitsNo=2,"Btu/h"))&"]") -> Emisión total Frío 8/14/25 [W] | I15: ="Caudal de agua, Frío ["&IF(UnitsNo=1,"l/h",IF(UnitsNo=2,"GPM"))&"]" -> Caudal de agua, Frío [l/h] | J15: =F15 -> Pérdida de carga del agua [kPa] | K15: Presión sonora ** [dB(A)] | L15: Potencia sonora * [dB(A)] | M15: Potencia eléctrica absorbida [W] | N15: ="Caudal de aire ["&IF(UnitsNo=1,"m³/h",IF(UnitsNo=2,"CFM"))&"]" -> Caudal de aire [m³/h] | O15: ="Temperatura salida de aire calefacción ["&IF(UnitsNo=1,"°C",IF(UnitsNo=2,"°F"))&"]" -> Temperatura salida de aire calefacción [°C] | P15: ="Temperatura salida de aire refrigeración (bulbo seco) ["&IF(UnitsNo=1,"°C",IF(UnitsNo=2,"°F"))&"]" -> Temperatura salida de aire refrigeración (bulbo seco) [°C]
B16: =cal!$X$1&" "&$T$16&" "&ROUND(cal!X22,1)&IF(UnitsNo=1," cm",IF(UnitsNo=2," in"))& " "&$T$17&" "&ROUND(cal!Z22,1)&IF(UnitsNo=1," cm",IF(UnitsNo=2," in"))&" "&$T$18&" "&ROUND(cal!AB22,1)&IF(UnitsNo=1," cm",IF(UnitsNo=2," in"))&" (Type 1)" -> Briza 12 altura 41 cm ancho 14 cm longitud 75 cm (Type 1) | R16: Temp. | T16: altura
R17: calefac. | T17: ancho
R18: enfria. | T18: longitud
B22: =cal!$X$1&" "&$T$16&" "&ROUND(cal!X28,1)&IF(UnitsNo=1," cm",IF(UnitsNo=2," in"))& " "&$T$17&" "&ROUND(cal!Z28,1)&IF(UnitsNo=1," cm",IF(UnitsNo=2," in"))&" "&$T$18&" "&ROUND(cal!AB28,1)&IF(UnitsNo=1," cm",IF(UnitsNo=2," in"))&" (Type 2)" -> Briza 12 altura 41 cm ancho 14 cm longitud 95 cm (Type 2)
B28: =cal!$X$1&" "&$T$16&" "&ROUND(cal!X34,1)&IF(UnitsNo=1," cm",IF(UnitsNo=2," in"))& " "&$T$17&" "&ROUND(cal!Z34,1)&IF(UnitsNo=1," cm",IF(UnitsNo=2," in"))&" "&$T$18&" "&ROUND(cal!AB34,1)&IF(UnitsNo=1," cm",IF(UnitsNo=2," in"))&" (Type 3)" -> Briza 12 altura 41 cm ancho 14 cm longitud 125 cm (Type 3)
B34: =cal!$X$1&" "&$T$16&" "&ROUND(cal!X40,1)&IF(UnitsNo=1," cm",IF(UnitsNo=2," in"))& " "&$T$17&" "&ROUND(cal!Z40,1)&IF(UnitsNo=1," cm",IF(UnitsNo=2," in"))&" "&$T$18&" "&ROUND(cal!AB40,1)&IF(UnitsNo=1," cm",IF(UnitsNo=2," in"))&" (Type 4)" -> Briza 12 altura 41 cm ancho 14 cm longitud 145 cm (Type 4)
B40: **Potencia sonora de acuerdo a ISO 3741:2010 | N40: =cal!P40 -> v2021-04-26
B41: ***Presión sonora asumiendo una reducción de la estancia de 8dB(A)

Sheet SW (hidden)
B3: Formulary
H4: Hydraulic mix: | I4: 0 | J4: 0 | K4: 0
B5: Conditions | H5: Device - Ventilator - Utilization: | I5: 0 | J5: 0 | K5: 0
B7: Temperaturer | Q7: Kopiera all data
B8: Värme: | G8: Kyla: | Q8: SI-enheter
B9: Tillopp | E9: =cal!E9 -> 75 | G9: =B9 -> Tillopp | K9: =cal!K9 -> 8 | M9: Enhetssystem | Q9: Imperiella-enheter
B10: Retur | E10: =cal!E10 -> 65 | G10: =B10 -> Retur | K10: =cal!K10 -> 14
B11: Rum (torr) | E11: =cal!E11 -> 20 | G11: =B11 -> Rum (torr) | K11: =cal!K11 -> 25
G12: rel. Fuktighet | K12: =cal!K12 -> 50%
B15: Fläkthastighet | C15: Spänning, Fläkt [V] | D15: =CONCATENATE("Värme effekt ",ROUND(E9,0),"/",ROUND(E10,0),"/",ROUND(E11,0)," ["&IF(cal!$W$4=1,"W",IF(cal!$W$4=2,"Btu/h"))&"]") -> Värme effekt 75/65/20 [W] | E15: ="Vattenflöde, värme ["&IF(cal!$W$4=1,"l/h",IF(cal!$W$4=2,"GPM"))&"]" -> Vattenflöde, värme [l/h] | F15: ="Tryckfall, vatten ["&IF(cal!$W$4=1,"kPa",IF(cal!$W$4=2,"inH2O"))&"]" -> Tryckfall, vatten [kPa] | G15: =CONCATENATE("Märkbar kylkapacitet ",ROUND(K9,0),"/",ROUND(K10,0),"/",ROUND(K11,0)," ["&IF(cal!$W$4=1,"W",IF(cal!$W$4=2,"Btu/h"))&"]") -> Märkbar kylkapacitet 8/14/25 [W] | H15: =CONCATENATE("Total kylkapacitet ",ROUND(K9,0),"/",ROUND(K10,0),"/",ROUND(K11,0)," ["&IF(cal!$W$4=1,"W",IF(cal!$W$4=2,"Btu/h"))&"]") -> Total kylkapacitet 8/14/25 [W] | I15: ="Vattenflöde, kyla ["&IF(cal!$W$4=1,"l/h",IF(cal!$W$4=2,"GPM"))&"]" -> Vattenflöde, kyla [l/h] | J15: =F15 -> Tryckfall, vatten [kPa] | K15: Ljudtryck ** [dB(A)] | L15: Ljudeffekt * [dB(A)] | M15: Effektförbrukning [W] | N15: ="Luftflöde ["&IF(cal!$W$4=1,"m³/h",IF(cal!$W$4=2,"CFM"))&"]" -> Luftflöde [m³/h] | O15: ="Luftavgassystemets värming ["&IF(cal!$W$4=1,"°C",IF(cal!$W$4=2,"°F"))&"]" -> Luftavgassystemets värming [°C] | P15: ="Luftavgassystemets kylning ["&IF(cal!$W$4=1,"°C",IF(cal!$W$4=2,"°F"))&"]" -> Luftavgassystemets kylning [°C]
B16: =cal!$X$1&" "&$T$16&" "&ROUND(cal!X22,1)&IF(UnitsNo=1," cm",IF(UnitsNo=2," in"))& " "&$T$17&" "&ROUND(cal!Z22,1)&IF(UnitsNo=1," cm",IF(UnitsNo=2," in"))&" "&$T$18&" "&ROUND(cal!AB22,1)&IF(UnitsNo=1," cm",IF(UnitsNo=2," in"))&" (Typ 1)" -> Briza 12 höjd 41 cm djup 14 cm längd 75 cm (Typ 1) | R16: Temp. | T16: höjd
R17: värme! | T17: djup
R18: kyla! | T18: längd
B22: =cal!$X$1&" "&$T$16&" "&ROUND(cal!X28,1)&IF(UnitsNo=1," cm",IF(UnitsNo=2," in"))& " "&$T$17&" "&ROUND(cal!Z28,1)&IF(UnitsNo=1," cm",IF(UnitsNo=2," in"))&" "&$T$18&" "&ROUND(cal!AB28,1)&IF(UnitsNo=1," cm",IF(UnitsNo=2," in"))&" (Typ 2)" -> Briza 12 höjd 41 cm djup 14 cm längd 95 cm (Typ 2)
B28: =cal!$X$1&" "&$T$16&" "&ROUND(cal!X34,1)&IF(UnitsNo=1," cm",IF(UnitsNo=2," in"))& " "&$T$17&" "&ROUND(cal!Z34,1)&IF(UnitsNo=1," cm",IF(UnitsNo=2," in"))&" "&$T$18&" "&ROUND(cal!AB34,1)&IF(UnitsNo=1," cm",IF(UnitsNo=2," in"))&" (Typ 3)" -> Briza 12 höjd 41 cm djup 14 cm längd 125 cm (Typ 3)
B34: =cal!$X$1&" "&$T$16&" "&ROUND(cal!X40,1)&IF(UnitsNo=1," cm",IF(UnitsNo=2," in"))& " "&$T$17&" "&ROUND(cal!Z40,1)&IF(UnitsNo=1," cm",IF(UnitsNo=2," in"))&" "&$T$18&" "&ROUND(cal!AB40,1)&IF(UnitsNo=1," cm",IF(UnitsNo=2," in"))&" (Typ 4)" -> Briza 12 höjd 41 cm djup 14 cm längd 145 cm (Typ 4)
B40: *Ljudeffekt enligt ISO 3741: 2010 | N40: =cal!P40 -> v2021-04-26
B41: **Ljudtryck med en antagen rumsdämpning på 8dB (A)

Sheet TS (hidden)
B3: Invulformulier
H4: Směs vody: | I4: 0 | J4: 0 | K4: 0
B5: Randvoorwaarden | H5: Těleso - Ventilátor - Verze: | I5: 0 | J5: 0 | K5: 0
B7: Teploty | Q7: Kopírovat všechna data
B8: Topení: | G8: Chlazení: | Q8: Mezinárodní (Sl)
B9: ="Voda na přívodu" -> Voda na přívodu | E9: =cal!E9 -> 75 | G9: =B9 -> Voda na přívodu | K9: =cal!K9 -> 8 | M9: Převod jednotek | Q9: Imperiální
B10: ="Voda na zpátečce" -> Voda na zpátečce | E10: =cal!E10 -> 65 | G10: =B10 -> Voda na zpátečce | K10: =cal!K10 -> 14
B11: "Suchá" teplota vzduchu | E11: =cal!E11 -> 20 | G11: =B11 -> "Suchá" teplota vzduchu | K11: =cal!K11 -> 25
G12: Relativní vlhkost | K12: =cal!K12 -> 50%
B15: Rychlost | C15: Ovládací napětí [V] | D15: =CONCATENATE("Výkon Topení ",ROUND(E9,0),"/",ROUND(E10,0),"/",ROUND(E11,0)," ["&IF(UnitsNo=1,"W",IF(UnitsNo=2,"Btu/h"))&"]") -> Výkon Topení 75/65/20 [W] | E15: ="Průtok vody, topení ["&IF(UnitsNo=1,"l/h",IF(UnitsNo=2,"GPM"))&"]" -> Průtok vody, topení [l/h] | F15: ="Tlaková ztráta ["&IF(UnitsNo=1,"kPa",IF(UnitsNo=2,"inH2O"))&"]" -> Tlaková ztráta [kPa] | G15: =CONCATENATE("Výkon chlazení Znatelný ",ROUND(K9,0),"/",,ROUND(K10,0),"/",,ROUND(K11,0)," ["&IF(UnitsNo=1,"W",IF(UnitsNo=2,"Btu/h"))&"]") -> Výkon chlazení Znatelný 8/14/25 [W] | H15: =CONCATENATE("Výkon chlazení Celkový ",,ROUND(K9,0),"/",,ROUND(K10,0),"/",,ROUND(K11,0)," ["&IF(UnitsNo=1,"W",IF(UnitsNo=2,"Btu/h"))&"]") -> Výkon chlazení Celkový 8/14/25 [W] | I15: ="Průtok vody, chlazení ["&IF(UnitsNo=1,"l/h",IF(UnitsNo=2,"GPM"))&"]" -> Průtok vody, chlazení [l/h] | J15: =F15 -> Tlaková ztráta [kPa] | K15: Akustický tlak ** [dB(A)] | L15: Akustický výkon * [dB(A)] | M15: Elektrický výkon [W] | N15: ="Průtok vzduchu ["&IF(UnitsNo=1,"m³/h",IF(UnitsNo=2,"CFM"))&"]" -> Průtok vzduchu [m³/h] | O15: ="Výfuková teplota vzduchu top. ["&IF(UnitsNo=1,"°C",IF(UnitsNo=2,"°F"))&"]" -> Výfuková teplota vzduchu top. [°C] | P15: ="Výfuková teplota vzduchu chlaz. ["&IF(UnitsNo=1,"°C",IF(UnitsNo=2,"°F"))&"]" -> Výfuková teplota vzduchu chlaz. [°C]
B16: =cal!$X$1&" "&$T$16&", "&ROUND(cal!X22,1)&IF(UnitsNo=1," cm",IF(UnitsNo=2," in"))& ", "&$T$17&" "&ROUND(cal!Z22,1)&IF(UnitsNo=1," cm",IF(UnitsNo=2," in"))&", "&$T$18&" "&ROUND(cal!AB22,1)&IF(UnitsNo=1," cm",IF(UnitsNo=2," in"))&" (Typ 1)" -> Briza 12 Výška, 41 cm, Šířka 14 cm, Délka 75 cm (Typ 1) | R16: Teploty | T16: Výška
R17: topení! | T17: Šířka
R18: chlazení! | T18: Délka
B22: =cal!$X$1&" "&$T$16&" "&ROUND(cal!X28,1)&IF(UnitsNo=1," cm",IF(UnitsNo=2," in"))& " "&$T$17&" "&ROUND(cal!Z28,1)&IF(UnitsNo=1," cm",IF(UnitsNo=2," in"))&" "&$T$18&" "&ROUND(cal!AB28,1)&IF(UnitsNo=1," cm",IF(UnitsNo=2," in"))&" (Typ 2)" -> Briza 12 Výška 41 cm Šířka 14 cm Délka 95 cm (Typ 2)
B28: =cal!$X$1&" "&$T$16&" "&ROUND(cal!X34,1)&IF(UnitsNo=1," cm",IF(UnitsNo=2," in"))& " "&$T$17&" "&ROUND(cal!Z34,1)&IF(UnitsNo=1," cm",IF(UnitsNo=2," in"))&" "&$T$18&" "&ROUND(cal!AB34,1)&IF(UnitsNo=1," cm",IF(UnitsNo=2," in"))&" (Typ 3)" -> Briza 12 Výška 41 cm Šířka 14 cm Délka 125 cm (Typ 3)
B34: =cal!$X$1&" "&$T$16&" "&ROUND(cal!X40,1)&IF(UnitsNo=1," cm",IF(UnitsNo=2," in"))& " "&$T$17&" "&ROUND(cal!Z40,1)&IF(UnitsNo=1," cm",IF(UnitsNo=2," in"))&" "&$T$18&" "&ROUND(cal!AB40,1)&IF(UnitsNo=1," cm",IF(UnitsNo=2," in"))&" (Typ 4)" -> Briza 12 Výška 41 cm Šířka 14 cm Délka 145 cm (Typ 4)
B40: *Akustický tlak podle ISO 3741:2010 | N40: =cal!P40 -> v2021-04-26
B41: **Akustický výkon s předpokládaným útlumem místnosti 8 dB (A).

Sheet ExtraTaal1 (hidden)
B3: Formulary
H4: Hydraulic mix: | I4: 0 | J4: 0 | K4: 0
B5: Conditions | H5: Device - Ventilator - Utilization: | I5: 0 | J5: 0 | K5: 0
B7: Temperatures | Q7: Copy all data
B8: Heating: | G8: Cooling: | Q8: SI-units
B9: Supply water | E9: =cal!E9 -> 75 | G9: =B9 -> Supply water | K9: =cal!K9 -> 8 | M9: Unit conversion | Q9: Imperial-units
B10: Return water | E10: =cal!E10 -> 65 | G10: =B10 -> Return water | K10: =cal!K10 -> 14
B11: Entering air | E11: =cal!E11 -> 20 | G11: =B11 -> Entering air | K11: =cal!K11 -> 25
G12: Relative humidity | K12: =cal!K12 -> 50%
B15: Speed level | C15: Control voltage [V] | D15: =CONCATENATE("Heat output ",ROUND(E9,0),"/",ROUND(E10,0),"/",ROUND(E11,0)," ["&IF(cal!$W$4=1,"W",IF(cal!$W$4=2,"Btu/h"))&"]") -> Heat output 75/65/20 [W] | E15: ="Water flowrate, heating ["&IF(cal!$W$4=1,"l/h",IF(cal!$W$4=2,"GPM"))&"]" -> Water flowrate, heating [l/h] | F15: ="Watersided pressure loss ["&IF(cal!$W$4=1,"kPa",IF(cal!$W$4=2,"inH2O"))&"]" -> Watersided pressure loss [kPa] | G15: =CONCATENATE("Sens. cooling capacity ",ROUND(K9,0),"/",ROUND(K10,0),"/",ROUND(K11,0)," ["&IF(cal!$W$4=1,"W",IF(cal!$W$4=2,"Btu/h"))&"]") -> Sens. cooling capacity 8/14/25 [W] | H15: =CONCATENATE("Tot. cooling capacity ",ROUND(K9,0),"/",ROUND(K10,0),"/",ROUND(K11,0)," ["&IF(cal!$W$4=1,"W",IF(cal!$W$4=2,"Btu/h"))&"]") -> Tot. cooling capacity 8/14/25 [W] | I15: ="Water flowrate, cooling ["&IF(cal!$W$4=1,"l/h",IF(cal!$W$4=2,"GPM"))&"]" -> Water flowrate, cooling [l/h] | J15: ="Watersided pressure loss ["&IF(cal!$W$4=1,"kPa",IF(cal!$W$4=2,"inH2O"))&"]" -> Watersided pressure loss [kPa] | K15: Sound pressure ** [dB(A)] | L15: Sound power * [dB(A)] | M15: Electrical power [W] | N15: ="Air flowrate ["&IF(cal!$W$4=1,"m³/h",IF(cal!$W$4=2,"CFM"))&"]" -> Air flowrate [m³/h] | O15: ="Air exhaust temp. heating ["&IF(cal!$W$4=1,"°C",IF(cal!$W$4=2,"°F"))&"]" -> Air exhaust temp. heating [°C] | P15: ="Air exhaust temp. cooling ["&IF(cal!$W$4=1,"°C",IF(cal!$W$4=2,"°F"))&"]" -> Air exhaust temp. cooling [°C]
B16: =cal!$X$1&" "&$T$16&" "&ROUND(cal!X22,1)&IF(UnitsNo=1," cm",IF(UnitsNo=2," in"))& " "&$T$17&" "&ROUND(cal!Z22,1)&IF(UnitsNo=1," cm",IF(UnitsNo=2," in"))&" "&$T$18&" "&ROUND(cal!AB22,1)&IF(UnitsNo=1," cm",IF(UnitsNo=2," in"))&" (Type 1)" -> Briza 12 height 41 cm width 14 cm length 75 cm (Type 1) | R16: Temp. | T16: height
R17: heating! | T17: width
R18: cooling! | T18: length
B22: =cal!$X$1&" "&$T$16&" "&ROUND(cal!X28,1)&IF(UnitsNo=1," cm",IF(UnitsNo=2," in"))& " "&$T$17&" "&ROUND(cal!Z28,1)&IF(UnitsNo=1," cm",IF(UnitsNo=2," in"))&" "&$T$18&" "&ROUND(cal!AB28,1)&IF(UnitsNo=1," cm",IF(UnitsNo=2," in"))&" (Type 2)" -> Briza 12 height 41 cm width 14 cm length 95 cm (Type 2)
B28: =cal!$X$1&" "&$T$16&" "&ROUND(cal!X34,1)&IF(UnitsNo=1," cm",IF(UnitsNo=2," in"))& " "&$T$17&" "&ROUND(cal!Z34,1)&IF(UnitsNo=1," cm",IF(UnitsNo=2," in"))&" "&$T$18&" "&ROUND(cal!AB34,1)&IF(UnitsNo=1," cm",IF(UnitsNo=2," in"))&" (Type 3)" -> Briza 12 height 41 cm width 14 cm length 125 cm (Type 3)
B34: =cal!$X$1&" "&$T$16&" "&ROUND(cal!X40,1)&IF(UnitsNo=1," cm",IF(UnitsNo=2," in"))& " "&$T$17&" "&ROUND(cal!Z40,1)&IF(UnitsNo=1," cm",IF(UnitsNo=2," in"))&" "&$T$18&" "&ROUND(cal!AB40,1)&IF(UnitsNo=1," cm",IF(UnitsNo=2," in"))&" (Type 4)" -> Briza 12 height 41 cm width 14 cm length 145 cm (Type 4)
B40: *Sound power according to ISO 3741:2010 | N40: =cal!P40 -> v2021-04-26
B41: **Sound pressure with an assumed room damping of 8dB(A)

Sheet ExtraTaal2 (hidden)
B3: Formulary
H4: Hydraulic mix: | I4: 0 | J4: 0 | K4: 0
B5: Conditions | H5: Device - Ventilator - Utilization: | I5: 0 | J5: 0 | K5: 0
B7: Temperatures | Q7: Copy all data
B8: Heating: | G8: Cooling: | Q8: SI-units
B9: Supply water | E9: =cal!E9 -> 75 | G9: =B9 -> Supply water | K9: =cal!K9 -> 8 | M9: Unit conversion | Q9: Imperial-units
B10: Return water | E10: =cal!E10 -> 65 | G10: =B10 -> Return water | K10: =cal!K10 -> 14
B11: Entering air | E11: =cal!E11 -> 20 | G11: =B11 -> Entering air | K11: =cal!K11 -> 25
G12: Relative humidity | K12: =cal!K12 -> 50%
B15: Speed level | C15: Control voltage [V] | D15: =CONCATENATE("Heat output ",ROUND(E9,0),"/",ROUND(E10,0),"/",ROUND(E11,0)," ["&IF(cal!$W$4=1,"W",IF(cal!$W$4=2,"Btu/h"))&"]") -> Heat output 75/65/20 [W] | E15: ="Water flowrate, heating ["&IF(cal!$W$4=1,"l/h",IF(cal!$W$4=2,"GPM"))&"]" -> Water flowrate, heating [l/h] | F15: ="Watersided pressure loss ["&IF(cal!$W$4=1,"kPa",IF(cal!$W$4=2,"inH2O"))&"]" -> Watersided pressure loss [kPa] | G15: =CONCATENATE("Sens. cooling capacity ",ROUND(K9,0),"/",ROUND(K10,0),"/",ROUND(K11,0)," ["&IF(cal!$W$4=1,"W",IF(cal!$W$4=2,"Btu/h"))&"]") -> Sens. cooling capacity 8/14/25 [W] | H15: =CONCATENATE("Tot. cooling capacity ",ROUND(K9,0),"/",ROUND(K10,0),"/",ROUND(K11,0)," ["&IF(cal!$W$4=1,"W",IF(cal!$W$4=2,"Btu/h"))&"]") -> Tot. cooling capacity 8/14/25 [W] | I15: ="Water flowrate, cooling ["&IF(cal!$W$4=1,"l/h",IF(cal!$W$4=2,"GPM"))&"]" -> Water flowrate, cooling [l/h] | J15: ="Watersided pressure loss ["&IF(cal!$W$4=1,"kPa",IF(cal!$W$4=2,"inH2O"))&"]" -> Watersided pressure loss [kPa] | K15: Sound pressure ** [dB(A)] | L15: Sound power * [dB(A)] | M15: Electrical power [W] | N15: ="Air flowrate ["&IF(cal!$W$4=1,"m³/h",IF(cal!$W$4=2,"CFM"))&"]" -> Air flowrate [m³/h] | O15: ="Air exhaust temp. heating ["&IF(cal!$W$4=1,"°C",IF(cal!$W$4=2,"°F"))&"]" -> Air exhaust temp. heating [°C] | P15: ="Air exhaust temp. cooling ["&IF(cal!$W$4=1,"°C",IF(cal!$W$4=2,"°F"))&"]" -> Air exhaust temp. cooling [°C]
B16: =cal!$X$1&" "&$T$16&" "&ROUND(cal!X22,1)&IF(UnitsNo=1," cm",IF(UnitsNo=2," in"))& " "&$T$17&" "&ROUND(cal!Z22,1)&IF(UnitsNo=1," cm",IF(UnitsNo=2," in"))&" "&$T$18&" "&ROUND(cal!AB22,1)&IF(UnitsNo=1," cm",IF(UnitsNo=2," in"))&" (Type 1)" -> Briza 12 height 41 cm width 14 cm length 75 cm (Type 1) | R16: Temp. | T16: height
R17: heating! | T17: width
R18: cooling! | T18: length
B22: =cal!$X$1&" "&$T$16&" "&ROUND(cal!X28,1)&IF(UnitsNo=1," cm",IF(UnitsNo=2," in"))& " "&$T$17&" "&ROUND(cal!Z28,1)&IF(UnitsNo=1," cm",IF(UnitsNo=2," in"))&" "&$T$18&" "&ROUND(cal!AB28,1)&IF(UnitsNo=1," cm",IF(UnitsNo=2," in"))&" (Type 2)" -> Briza 12 height 41 cm width 14 cm length 95 cm (Type 2)
B28: =cal!$X$1&" "&$T$16&" "&ROUND(cal!X34,1)&IF(UnitsNo=1," cm",IF(UnitsNo=2," in"))& " "&$T$17&" "&ROUND(cal!Z34,1)&IF(UnitsNo=1," cm",IF(UnitsNo=2," in"))&" "&$T$18&" "&ROUND(cal!AB34,1)&IF(UnitsNo=1," cm",IF(UnitsNo=2," in"))&" (Type 3)" -> Briza 12 height 41 cm width 14 cm length 125 cm (Type 3)
B34: =cal!$X$1&" "&$T$16&" "&ROUND(cal!X40,1)&IF(UnitsNo=1," cm",IF(UnitsNo=2," in"))& " "&$T$17&" "&ROUND(cal!Z40,1)&IF(UnitsNo=1," cm",IF(UnitsNo=2," in"))&" "&$T$18&" "&ROUND(cal!AB40,1)&IF(UnitsNo=1," cm",IF(UnitsNo=2," in"))&" (Type 4)" -> Briza 12 height 41 cm width 14 cm length 145 cm (Type 4)
B40: *Sound power according to ISO 3741:2010 | N40: =cal!P40 -> v2021-04-26
B41: **Sound pressure with an assumed room damping of 8dB(A)

Sheet ExtraTaal3 (hidden)
B3: Formulary
H4: Hydraulic mix: | I4: 0 | J4: 0 | K4: 0
B5: Conditions | H5: Device - Ventilator - Utilization: | I5: 0 | J5: 0 | K5: 0
B7: Temperatures | Q7: Copy all data
B8: Heating: | G8: Cooling: | Q8: SI-units
B9: Supply water | E9: =cal!E9 -> 75 | G9: =B9 -> Supply water | K9: =cal!K9 -> 8 | M9: Unit conversion | Q9: Imperial-units
B10: Return water | E10: =cal!E10 -> 65 | G10: =B10 -> Return water | K10: =cal!K10 -> 14
B11: Entering air | E11: =cal!E11 -> 20 | G11: =B11 -> Entering air | K11: =cal!K11 -> 25
G12: Relative humidity | K12: =cal!K12 -> 50%
B15: Speed level | C15: Control voltage [V] | D15: =CONCATENATE("Heat output ",ROUND(E9,0),"/",ROUND(E10,0),"/",ROUND(E11,0)," ["&IF(cal!$W$4=1,"W",IF(cal!$W$4=2,"Btu/h"))&"]") -> Heat output 75/65/20 [W] | E15: ="Water flowrate, heating ["&IF(cal!$W$4=1,"l/h",IF(cal!$W$4=2,"GPM"))&"]" -> Water flowrate, heating [l/h] | F15: ="Watersided pressure loss ["&IF(cal!$W$4=1,"kPa",IF(cal!$W$4=2,"inH2O"))&"]" -> Watersided pressure loss [kPa] | G15: =CONCATENATE("Sens. cooling capacity ",ROUND(K9,0),"/",ROUND(K10,0),"/",ROUND(K11,0)," ["&IF(cal!$W$4=1,"W",IF(cal!$W$4=2,"Btu/h"))&"]") -> Sens. cooling capacity 8/14/25 [W] | H15: =CONCATENATE("Tot. cooling capacity ",ROUND(K9,0),"/",ROUND(K10,0),"/",ROUND(K11,0)," ["&IF(cal!$W$4=1,"W",IF(cal!$W$4=2,"Btu/h"))&"]") -> Tot. cooling capacity 8/14/25 [W] | I15: ="Water flowrate, cooling ["&IF(cal!$W$4=1,"l/h",IF(cal!$W$4=2,"GPM"))&"]" -> Water flowrate, cooling [l/h] | J15: ="Watersided pressure loss ["&IF(cal!$W$4=1,"kPa",IF(cal!$W$4=2,"inH2O"))&"]" -> Watersided pressure loss [kPa] | K15: Sound pressure ** [dB(A)] | L15: Sound power * [dB(A)] | M15: Electrical power [W] | N15: ="Air flowrate ["&IF(cal!$W$4=1,"m³/h",IF(cal!$W$4=2,"CFM"))&"]" -> Air flowrate [m³/h] | O15: ="Air exhaust temp. heating ["&IF(cal!$W$4=1,"°C",IF(cal!$W$4=2,"°F"))&"]" -> Air exhaust temp. heating [°C] | P15: ="Air exhaust temp. cooling ["&IF(cal!$W$4=1,"°C",IF(cal!$W$4=2,"°F"))&"]" -> Air exhaust temp. cooling [°C]
B16: =cal!$X$1&" "&$T$16&" "&ROUND(cal!X22,1)&IF(UnitsNo=1," cm",IF(UnitsNo=2," in"))& " "&$T$17&" "&ROUND(cal!Z22,1)&IF(UnitsNo=1," cm",IF(UnitsNo=2," in"))&" "&$T$18&" "&ROUND(cal!AB22,1)&IF(UnitsNo=1," cm",IF(UnitsNo=2," in"))&" (Type 1)" -> Briza 12 height 41 cm width 14 cm length 75 cm (Type 1) | R16: Temp. | T16: height
R17: heating! | T17: width
R18: cooling! | T18: length
B22: =cal!$X$1&" "&$T$16&" "&ROUND(cal!X28,1)&IF(UnitsNo=1," cm",IF(UnitsNo=2," in"))& " "&$T$17&" "&ROUND(cal!Z28,1)&IF(UnitsNo=1," cm",IF(UnitsNo=2," in"))&" "&$T$18&" "&ROUND(cal!AB28,1)&IF(UnitsNo=1," cm",IF(UnitsNo=2," in"))&" (Type 2)" -> Briza 12 height 41 cm width 14 cm length 95 cm (Type 2)
B28: =cal!$X$1&" "&$T$16&" "&ROUND(cal!X34,1)&IF(UnitsNo=1," cm",IF(UnitsNo=2," in"))& " "&$T$17&" "&ROUND(cal!Z34,1)&IF(UnitsNo=1," cm",IF(UnitsNo=2," in"))&" "&$T$18&" "&ROUND(cal!AB34,1)&IF(UnitsNo=1," cm",IF(UnitsNo=2," in"))&" (Type 3)" -> Briza 12 height 41 cm width 14 cm length 125 cm (Type 3)
B34: =cal!$X$1&" "&$T$16&" "&ROUND(cal!X40,1)&IF(UnitsNo=1," cm",IF(UnitsNo=2," in"))& " "&$T$17&" "&ROUND(cal!Z40,1)&IF(UnitsNo=1," cm",IF(UnitsNo=2," in"))&" "&$T$18&" "&ROUND(cal!AB40,1)&IF(UnitsNo=1," cm",IF(UnitsNo=2," in"))&" (Type 4)" -> Briza 12 height 41 cm width 14 cm length 145 cm (Type 4)
B40: *Sound power according to ISO 3741:2010 | N40: =cal!P40 -> v2021-04-26
B41: **Sound pressure with an assumed room damping of 8dB(A)
